Department Family,Entity,Date,Expense Type,Expense area,Supplier,Transaction Number,Amount,VAT registration Number
Department of Health,Salisbury NHS Foundation Trust,21-Sep-18,Printers & Copiers , ALL DIRECTORATES,APOGEE CORPORATION LTD,909202,62912.5,
Department of Health,Salisbury NHS Foundation Trust,14-Sep-18,Peripheral Clinics,Clinical Support and Family Services,UNIVERSITY HOSPITAL SOUTHAMPTON NHS FOUNDATION TRUST,7319810,223009.33,
Department of Health,Salisbury NHS Foundation Trust,28-Sep-18,ENERGY WATER - ELECTRICITY,Facilities Directorate,SCOTTISH POWER,105788996,7107.84,
Department of Health,Salisbury NHS Foundation Trust,28-Sep-18,ENERGY WATER - ELECTRICITY,Facilities Directorate,SCOTTISH POWER,105788996,355.39,
Department of Health,Salisbury NHS Foundation Trust,28-Sep-18,ENERGY WATER - ELECTRICITY,Facilities Directorate,SCOTTISH POWER,105788996,60358.39,
Department of Health,Salisbury NHS Foundation Trust,28-Sep-18,ENERGY WATER - ELECTRICITY,Facilities Directorate,SCOTTISH POWER,105788996,12071.68,
Department of Health,Salisbury NHS Foundation Trust,28-Sep-18,PATS CONS TREATMENT COMMERCIAL,Critical care,LIVABILITY,SPI032009,42466.67,
Department of Health,Salisbury NHS Foundation Trust,14-Sep-18,RATES,Facilities Directorate,WILTSHIRE COUNCIL,SEP 18 RATES,119264,
Department of Health,Salisbury NHS Foundation Trust,07-Sep-18,DRUGS,Clinical Support and Family Services,LLOYDSPHARMACY CLINICAL HOMECARE,SINV3070264,37394.85,
Department of Health,Salisbury NHS Foundation Trust,28-Sep-18,DRUGS,Clinical Support and Family Services,BAYER PLC,824C151891,26220,
Department of Health,Salisbury NHS Foundation Trust,28-Sep-18,DRUGS,Clinical Support and Family Services,BAYER PLC,824C151891,5244,
Department of Health,Salisbury NHS Foundation Trust,28-Sep-18,DRUGS,Clinical Support and Family Services,BAYER PLC,824C154638,34960,
Department of Health,Salisbury NHS Foundation Trust,28-Sep-18,DRUGS,Clinical Support and Family Services,BAYER PLC,824C154638,6992,
Department of Health,Salisbury NHS Foundation Trust,24-Sep-18,CONTOUTSERVICES - WASTE DISPOSAL,Facilities Directorate,SRCL LIMITED,1260324,23132.43,
Department of Health,Salisbury NHS Foundation Trust,24-Sep-18,MEDSURGCONS-SUTURES,Surgery,NHS LOGISTICS,1019108751,55.55,
Department of Health,Salisbury NHS Foundation Trust,24-Sep-18,M & S EQUIPELECTEQUIPINST - OTHER,Critical care,NHS LOGISTICS,1019108751,12,
Department of Health,Salisbury NHS Foundation Trust,24-Sep-18,MEDSURGCONS - OTHER,Critical care,NHS LOGISTICS,1019108751,194.04,
Department of Health,Salisbury NHS Foundation Trust,24-Sep-18,DRESSINGS - PRE STERILE,Medicine,NHS LOGISTICS,1019108751,15.56,
Department of Health,Salisbury NHS Foundation Trust,20-Sep-18,FOODSTUFFS,Facilities Directorate,PELICAN PROCUREMENT SERVICES LTD,Aug-18,79992.75,
Department of Health,Salisbury NHS Foundation Trust,20-Sep-18,FOODSTUFFS,Facilities Directorate,PELICAN PROCUREMENT SERVICES LTD,Aug-18,325.84,
Department of Health,Salisbury NHS Foundation Trust,28-Sep-18,M & S EQUIPELECTROEQUIPINSTS - OTHER,Clinical Support and Family Services,COBALT HEALTH,45187,27900,
Department of Health,Salisbury NHS Foundation Trust,24-Sep-18,DRESSINGS - PRE STERILE,Medicine,NHS LOGISTICS,1019108751,15.56,
Department of Health,Salisbury NHS Foundation Trust,24-Sep-18,DRESSINGS - PRE STERILE,Medicine,NHS LOGISTICS,1019108751,15.56,
Department of Health,Salisbury NHS Foundation Trust,24-Sep-18,ADULTS HEARING AIDS,Surgery,NHS LOGISTICS,1019108751,41.67,
Department of Health,Salisbury NHS Foundation Trust,24-Sep-18,DRESSINGS - PRE STERILE,Critical care,NHS LOGISTICS,1019108751,50.3,
Department of Health,Salisbury NHS Foundation Trust,24-Sep-18,DRESSINGS - PRE STERILE,Clinical Support and Family Services,NHS LOGISTICS,1019108751,2.97,
Department of Health,Salisbury NHS Foundation Trust,24-Sep-18,DRESSINGS - PRE STERILE,Clinical Support and Family Services,NHS LOGISTICS,1019108751,3.8,
Department of Health,Salisbury NHS Foundation Trust,24-Sep-18,MEDSURGCONS - OTHER,Medicine,NHS LOGISTICS,1019108751,18.26,
Department of Health,Salisbury NHS Foundation Trust,24-Sep-18,ADULTS HEARING AIDS,Surgery,NHS LOGISTICS,1019108751,2135.67,
Department of Health,Salisbury NHS Foundation Trust,24-Sep-18,MEDSURGCONS - OTHER,Surgery,NHS LOGISTICS,1019108751,7.67,
Department of Health,Salisbury NHS Foundation Trust,24-Sep-18,DRESSINGS - PRE STERILE,Critical care,NHS LOGISTICS,1019108751,2.97,
Department of Health,Salisbury NHS Foundation Trust,24-Sep-18,DRESSINGS - PRE STERILE,Medicine,NHS LOGISTICS,1019108751,7.05,
Department of Health,Salisbury NHS Foundation Trust,24-Sep-18,DRESSINGS - PRE STERILE,Medicine,NHS LOGISTICS,1019108751,2.97,
Department of Health,Salisbury NHS Foundation Trust,24-Sep-18,DRESSINGS - PRE STERILE,Medicine,NHS LOGISTICS,1019108751,3.8,
Department of Health,Salisbury NHS Foundation Trust,24-Sep-18,DRESSINGS - PRE STERILE,Critical care,NHS LOGISTICS,1019108751,84.6,
Department of Health,Salisbury NHS Foundation Trust,24-Sep-18,PATIENT APPLIANCES,Critical care,NHS LOGISTICS,1019108751,7.19,
Department of Health,Salisbury NHS Foundation Trust,24-Sep-18,TISSUES HAND TOWELS & TOILET PAPER,Clinical Support and Family Services,NHS LOGISTICS,1019108751,3.8,
Department of Health,Salisbury NHS Foundation Trust,24-Sep-18,TISSUES HAND TOWELS & TOILET PAPER,Clinical Support and Family Services,NHS LOGISTICS,1019108751,10.95,
Department of Health,Salisbury NHS Foundation Trust,24-Sep-18,MEDSURGCONS - OTHER,Clinical Support and Family Services,NHS LOGISTICS,1019108751,38.81,
Department of Health,Salisbury NHS Foundation Trust,24-Sep-18,MEDSURGCONS - OTHER,Surgery,NHS LOGISTICS,1019108751,72,
Department of Health,Salisbury NHS Foundation Trust,24-Sep-18,SURGICAL INSTRUMENTS: GENERAL,Surgery,NHS LOGISTICS,1019108751,85.91,
Department of Health,Salisbury NHS Foundation Trust,24-Sep-18,MEDSURGCONS-SUTURES,Surgery,NHS LOGISTICS,1019108751,75.73,
Department of Health,Salisbury NHS Foundation Trust,24-Sep-18,OTHER MEDICAL SUPPLIES,Surgery,NHS LOGISTICS,1019108751,149.93,
Department of Health,Salisbury NHS Foundation Trust,24-Sep-18,PAPER ITEMS GENERAL STATIONERY SUNDRIES,Surgery,NHS LOGISTICS,1019108751,33.57,
Department of Health,Salisbury NHS Foundation Trust,24-Sep-18,ADULTS HEARING AIDS,Surgery,NHS LOGISTICS,1019108751,530.63,
Department of Health,Salisbury NHS Foundation Trust,24-Sep-18,LAB EQUIP-LABORATORY APPARATUS,Clinical Support and Family Services,NHS LOGISTICS,1019108751,153.2,
Department of Health,Salisbury NHS Foundation Trust,24-Sep-18,MEDPROSTH-OTHOPAEDICS TRAUMA PRODUCTS,Critical care,NHS LOGISTICS,1019108751,41.13,
Department of Health,Salisbury NHS Foundation Trust,24-Sep-18,TOILETRIES PERSONAL HYGIENE PRODUCTS,Nursing Directorate,NHS LOGISTICS,1019108751,115.28,
Department of Health,Salisbury NHS Foundation Trust,24-Sep-18,TOILETRIES PERSONAL HYGIENE PRODUCTS,Surgery,NHS LOGISTICS,1019108751,9.25,
Department of Health,Salisbury NHS Foundation Trust,24-Sep-18,DRESSINGS - PRE STERILE,Surgery,NHS LOGISTICS,1019108751,14,
Department of Health,Salisbury NHS Foundation Trust,24-Sep-18,DRESSINGS - PRE STERILE,Surgery,NHS LOGISTICS,1019108751,0.93,
Department of Health,Salisbury NHS Foundation Trust,24-Sep-18,ELECTRICAL EQUIPMENT x,Medicine,NHS LOGISTICS,1019108751,22,
Department of Health,Salisbury NHS Foundation Trust,24-Sep-18,OTHER MEDICAL SUPPLIES,Clinical Support and Family Services,NHS LOGISTICS,1019108751,122.08,
Department of Health,Salisbury NHS Foundation Trust,24-Sep-18,DRESSINGS - PRE STERILE,Surgery,NHS LOGISTICS,1019108751,3.8,
Department of Health,Salisbury NHS Foundation Trust,24-Sep-18,MEDSURGCONS - OTHER,Clinical Support and Family Services,NHS LOGISTICS,1019108751,29.9,
Department of Health,Salisbury NHS Foundation Trust,24-Sep-18,SERVICES FROM NHS BODIES,Clinical Support and Family Services,NHS LOGISTICS,1019108751,24.88,
Department of Health,Salisbury NHS Foundation Trust,24-Sep-18,MEDSURGCONS - OTHER,Medicine,NHS LOGISTICS,1019108751,1920,
Department of Health,Salisbury NHS Foundation Trust,24-Sep-18,MEDSURGCONS - OTHER,Medicine,NHS LOGISTICS,1019108751,1920,
Department of Health,Salisbury NHS Foundation Trust,24-Sep-18,MEDSURGCONS - OTHER,Medicine,NHS LOGISTICS,1019108751,2204.1,
Department of Health,Salisbury NHS Foundation Trust,24-Sep-18,MEDSURGCONS - OTHER,Medicine,NHS LOGISTICS,1019108751,2204.1,
Department of Health,Salisbury NHS Foundation Trust,24-Sep-18,MEDSURGCONS - OTHER,Medicine,NHS LOGISTICS,1019108751,2204.1,
Department of Health,Salisbury NHS Foundation Trust,24-Sep-18,MEDSURGCONS - OTHER,Medicine,NHS LOGISTICS,1019108751,8816.4,
Department of Health,Salisbury NHS Foundation Trust,24-Sep-18,MEDSURGCONS - OTHER,Medicine,NHS LOGISTICS,1019108751,6612.3,
Department of Health,Salisbury NHS Foundation Trust,24-Sep-18,MEDSURGCONS - OTHER,Medicine,NHS LOGISTICS,1019108751,123.38,
Department of Health,Salisbury NHS Foundation Trust,24-Sep-18,MEDSURGCONS - OTHER,Medicine,NHS LOGISTICS,1019108751,166.1,
Department of Health,Salisbury NHS Foundation Trust,24-Sep-18,MEDSURGCONS - OTHER,Medicine,NHS LOGISTICS,1019108751,166.1,
Department of Health,Salisbury NHS Foundation Trust,24-Sep-18,MEDSURGCONS - OTHER,Medicine,NHS LOGISTICS,1019108751,90.96,
Department of Health,Salisbury NHS Foundation Trust,24-Sep-18,MEDSURGCONS - OTHER,Medicine,NHS LOGISTICS,1019108751,56.12,
Department of Health,Salisbury NHS Foundation Trust,24-Sep-18,MEDSURGCONS - OTHER,Medicine,NHS LOGISTICS,1019108751,816.33,
Department of Health,Salisbury NHS Foundation Trust,24-Sep-18,MEDSURGCONS - OTHER,Medicine,NHS LOGISTICS,1019108751,408.17,
Department of Health,Salisbury NHS Foundation Trust,24-Sep-18,DRESSINGS - PRE STERILE,Critical care,NHS LOGISTICS,1019108751,158.27,
Department of Health,Salisbury NHS Foundation Trust,24-Sep-18,OTHER MEDICAL SUPPLIES,Surgery,NHS LOGISTICS,1019108751,22.33,
Department of Health,Salisbury NHS Foundation Trust,24-Sep-18,DRESSINGS - PRE STERILE,Medicine,NHS LOGISTICS,1019108751,14,
Department of Health,Salisbury NHS Foundation Trust,24-Sep-18,DRESSINGS - PRE STERILE,Medicine,NHS LOGISTICS,1019108751,2.49,
Department of Health,Salisbury NHS Foundation Trust,24-Sep-18,PATIENTS INCONTINENCE,Medicine,NHS LOGISTICS,1019108751,2.59,
Department of Health,Salisbury NHS Foundation Trust,24-Sep-18,PATIENTS INCONTINENCE,Medicine,NHS LOGISTICS,1019108751,12.4,
Department of Health,Salisbury NHS Foundation Trust,24-Sep-18,TUBES,Medicine,NHS LOGISTICS,1019108751,6.85,
Department of Health,Salisbury NHS Foundation Trust,24-Sep-18,DRESSINGS - PRE STERILE,Medicine,NHS LOGISTICS,1019108751,0.93,
Department of Health,Salisbury NHS Foundation Trust,24-Sep-18,OTHER MEDICAL SUPPLIES,Medicine,NHS LOGISTICS,1019108751,3.77,
Department of Health,Salisbury NHS Foundation Trust,24-Sep-18,PATIENT APPLIANCES,Medicine,NHS LOGISTICS,1019108751,3.35,
Department of Health,Salisbury NHS Foundation Trust,24-Sep-18,MEDSURGCONS - OTHER,Medicine,NHS LOGISTICS,1019108751,3.91,
Department of Health,Salisbury NHS Foundation Trust,24-Sep-18,MEDSURGCONS - OTHER,Medicine,NHS LOGISTICS,1019108751,14.3,
Department of Health,Salisbury NHS Foundation Trust,24-Sep-18,TISSUES HAND TOWELS & TOILET PAPER,Medicine,NHS LOGISTICS,1019108751,0.68,
Department of Health,Salisbury NHS Foundation Trust,24-Sep-18,MEDSURGCONS - OTHER,Medicine,NHS LOGISTICS,1019108751,0.88,
Department of Health,Salisbury NHS Foundation Trust,24-Sep-18,NON DISPOSABLE BED LINEN,Medicine,NHS LOGISTICS,1019108751,18.75,
Department of Health,Salisbury NHS Foundation Trust,24-Sep-18,DISPOSABLE THEATRE DRAPES WIPES,Medicine,NHS LOGISTICS,1019108751,3.55,
Department of Health,Salisbury NHS Foundation Trust,24-Sep-18,TOILETRIES PERSONAL HYGIENE PRODUCTS,Surgery,NHS LOGISTICS,1019108751,17.15,
Department of Health,Salisbury NHS Foundation Trust,24-Sep-18,DISPOSABLE THEATRE DRAPES WIPES,Clinical Support and Family Services,NHS LOGISTICS,1019108751,15.69,
Department of Health,Salisbury NHS Foundation Trust,24-Sep-18,OPTICAL  -  OTHER,Surgery,NHS LOGISTICS,1019108751,89.07,
Department of Health,Salisbury NHS Foundation Trust,24-Sep-18,CLEANING MATERIALS PRODUCTS SUNDRIES,Surgery,NHS LOGISTICS,1019108751,8.8,
Department of Health,Salisbury NHS Foundation Trust,24-Sep-18,DRESSINGS - PRE STERILE,Surgery,NHS LOGISTICS,1019108751,2.93,
Department of Health,Salisbury NHS Foundation Trust,24-Sep-18,DRESSINGS - PRE STERILE,Surgery,NHS LOGISTICS,1019108751,5.73,
Department of Health,Salisbury NHS Foundation Trust,24-Sep-18,DRESSINGS - PRE STERILE,Surgery,NHS LOGISTICS,1019108751,3.93,
Department of Health,Salisbury NHS Foundation Trust,24-Sep-18,DISPOSABLE THEATRE DRAPES WIPES,Surgery,NHS LOGISTICS,1019108751,37.46,
Department of Health,Salisbury NHS Foundation Trust,24-Sep-18,MEDSURGCONS - OTHER,Surgery,NHS LOGISTICS,1019108751,12,
Department of Health,Salisbury NHS Foundation Trust,24-Sep-18,DRESSINGS - PRE STERILE,Clinical Support and Family Services,NHS LOGISTICS,1019108751,12.89,
Department of Health,Salisbury NHS Foundation Trust,24-Sep-18,M & S EQUIPELECTEQUIPINST - OTHER,Medicine,NHS LOGISTICS,1019108751,8.4,
Department of Health,Salisbury NHS Foundation Trust,24-Sep-18,TOILETRIES PERSONAL HYGIENE PRODUCTS,Medicine,NHS LOGISTICS,1019108751,3.08,
Department of Health,Salisbury NHS Foundation Trust,24-Sep-18,PATIENTS INCONTINENCE,Medicine,NHS LOGISTICS,1019108751,12.4,
Department of Health,Salisbury NHS Foundation Trust,24-Sep-18,DRESSINGS - PRE STERILE,Medicine,NHS LOGISTICS,1019108751,150,
Department of Health,Salisbury NHS Foundation Trust,24-Sep-18,ANAESTHETIC EQUIPMENT ACCESSORIES,Medicine,NHS LOGISTICS,1019108751,2.5,
Department of Health,Salisbury NHS Foundation Trust,24-Sep-18,PATIENT APPLIANCES,Medicine,NHS LOGISTICS,1019108751,3.35,
Department of Health,Salisbury NHS Foundation Trust,24-Sep-18,PATIENT APPLIANCES,Medicine,NHS LOGISTICS,1019108751,3.35,
Department of Health,Salisbury NHS Foundation Trust,24-Sep-18,PATIENT APPLIANCES,Medicine,NHS LOGISTICS,1019108751,3.35,
Department of Health,Salisbury NHS Foundation Trust,24-Sep-18,MEDSURGCONS - OTHER,Medicine,NHS LOGISTICS,1019108751,27.1,
Department of Health,Salisbury NHS Foundation Trust,24-Sep-18,TISSUES HAND TOWELS & TOILET PAPER,Medicine,NHS LOGISTICS,1019108751,0.68,
Department of Health,Salisbury NHS Foundation Trust,24-Sep-18,NON DISPOSABLE BED LINEN,Medicine,NHS LOGISTICS,1019108751,22.5,
Department of Health,Salisbury NHS Foundation Trust,24-Sep-18,DISPOSABLE THEATRE DRAPES WIPES,Medicine,NHS LOGISTICS,1019108751,3.55,
Department of Health,Salisbury NHS Foundation Trust,24-Sep-18,DRESSINGS - PRE STERILE,Medicine,NHS LOGISTICS,1019108751,4.83,
Department of Health,Salisbury NHS Foundation Trust,24-Sep-18,DRESSINGS - PRE STERILE,Medicine,NHS LOGISTICS,1019108751,3.29,
Department of Health,Salisbury NHS Foundation Trust,24-Sep-18,PATIENT APPLIANCES,Medicine,NHS LOGISTICS,1019108751,5.34,
Department of Health,Salisbury NHS Foundation Trust,24-Sep-18,DRESSINGS - PRE STERILE,Medicine,NHS LOGISTICS,1019108751,1.07,
Department of Health,Salisbury NHS Foundation Trust,24-Sep-18,DRESSINGS - PRE STERILE,Medicine,NHS LOGISTICS,1019108751,1.8,
Department of Health,Salisbury NHS Foundation Trust,24-Sep-18,DRESSINGS - PRE STERILE,Medicine,NHS LOGISTICS,1019108751,28,
Department of Health,Salisbury NHS Foundation Trust,24-Sep-18,M & S EQUIPELECTEQUIPINST - OTHER,Medicine,NHS LOGISTICS,1019108751,20.25,
Department of Health,Salisbury NHS Foundation Trust,24-Sep-18,DRESSINGS - PRE STERILE,Medicine,NHS LOGISTICS,1019108751,11.2,
Department of Health,Salisbury NHS Foundation Trust,24-Sep-18,OTHER MEDICAL SUPPLIES,Medicine,NHS LOGISTICS,1019108751,13.68,
Department of Health,Salisbury NHS Foundation Trust,24-Sep-18,DRUGS,Medicine,NHS LOGISTICS,1019108751,9.35,
Department of Health,Salisbury NHS Foundation Trust,24-Sep-18,SERVICES FROM NHS BODIES,Medicine,NHS LOGISTICS,1019108751,4.44,
Department of Health,Salisbury NHS Foundation Trust,24-Sep-18,MEDSURGCONS - OTHER,Medicine,NHS LOGISTICS,1019108751,59.78,
Department of Health,Salisbury NHS Foundation Trust,24-Sep-18,DRESSINGS - PRE STERILE,Medicine,NHS LOGISTICS,1019108751,2.84,
Department of Health,Salisbury NHS Foundation Trust,24-Sep-18,MEDSURGCONS - OTHER,Medicine,NHS LOGISTICS,1019108751,14.3,
Department of Health,Salisbury NHS Foundation Trust,24-Sep-18,MEDSURGCONS - OTHER,Medicine,NHS LOGISTICS,1019108751,8.83,
Department of Health,Salisbury NHS Foundation Trust,24-Sep-18,NON DISPOSABLE BED LINEN,Medicine,NHS LOGISTICS,1019108751,7.5,
Department of Health,Salisbury NHS Foundation Trust,24-Sep-18,DISPOSABLE THEATRE DRAPES WIPES,Medicine,NHS LOGISTICS,1019108751,14.2,
Department of Health,Salisbury NHS Foundation Trust,24-Sep-18,PATIENT APPLIANCES,Medicine,NHS LOGISTICS,1019108751,47.35,
Department of Health,Salisbury NHS Foundation Trust,24-Sep-18,PAPER ITEMS GENERAL STATIONERY SUNDRIES,Surgery,NHS LOGISTICS,1019108751,33.57,
Department of Health,Salisbury NHS Foundation Trust,24-Sep-18,CLEANING MATERIALS PRODUCTS SUNDRIES,Clinical Support and Family Services,NHS LOGISTICS,1019108751,8.8,
Department of Health,Salisbury NHS Foundation Trust,24-Sep-18,DRESSINGS - PRE STERILE,Surgery,NHS LOGISTICS,1019108751,2.13,
Department of Health,Salisbury NHS Foundation Trust,24-Sep-18,DRESSINGS - PRE STERILE,Surgery,NHS LOGISTICS,1019108751,1.8,
Department of Health,Salisbury NHS Foundation Trust,24-Sep-18,DRESSINGS - PRE STERILE,Surgery,NHS LOGISTICS,1019108751,17.42,
Department of Health,Salisbury NHS Foundation Trust,24-Sep-18,DISPOSABLE THEATRE DRAPES WIPES,Surgery,NHS LOGISTICS,1019108751,10.65,
Department of Health,Salisbury NHS Foundation Trust,24-Sep-18,DRESSINGS - PRE STERILE,Surgery,NHS LOGISTICS,1019108751,556.13,
Department of Health,Salisbury NHS Foundation Trust,24-Sep-18,MEDSURGCONS-SUTURES,Surgery,NHS LOGISTICS,1019108751,46.5,
Department of Health,Salisbury NHS Foundation Trust,24-Sep-18,PAPER ITEMS GENERAL STATIONERY SUNDRIES,Clinical Support and Family Services,NHS LOGISTICS,1019108751,25.18,
Department of Health,Salisbury NHS Foundation Trust,24-Sep-18,M & S EQUIPELECTEQUIPINST - OTHER,Clinical Support and Family Services,NHS LOGISTICS,1019108751,350.5,
Department of Health,Salisbury NHS Foundation Trust,24-Sep-18,M & S EQUIPELECTEQUIPINST - OTHER,Clinical Support and Family Services,NHS LOGISTICS,1019108751,154.63,
Department of Health,Salisbury NHS Foundation Trust,24-Sep-18,MEDSURGCONS - OTHER,Facilities Directorate,NHS LOGISTICS,1019108751,37.83,
Department of Health,Salisbury NHS Foundation Trust,24-Sep-18,BAGS SACKS - OTHER,Facilities Directorate,NHS LOGISTICS,1019108751,129,
Department of Health,Salisbury NHS Foundation Trust,24-Sep-18,BAGS SACKS - OTHER,Facilities Directorate,NHS LOGISTICS,1019108751,10.13,
Department of Health,Salisbury NHS Foundation Trust,24-Sep-18,BAGS SACKS - OTHER,Facilities Directorate,NHS LOGISTICS,1019108751,81.07,
Department of Health,Salisbury NHS Foundation Trust,24-Sep-18,LIQUID REFRESHMENTS,Facilities Directorate,NHS LOGISTICS,1019108751,7.82,
Department of Health,Salisbury NHS Foundation Trust,24-Sep-18,CLEANING MATERIALS PRODUCTS SUNDRIES,Facilities Directorate,NHS LOGISTICS,1019108751,46.4,
Department of Health,Salisbury NHS Foundation Trust,24-Sep-18,TOILETRIES PERSONAL HYGIENE PRODUCTS,Facilities Directorate,NHS LOGISTICS,1019108751,242.8,
Department of Health,Salisbury NHS Foundation Trust,24-Sep-18,CLEANING MATERIALS PRODUCTS SUNDRIES,Facilities Directorate,NHS LOGISTICS,1019108751,79.8,
Department of Health,Salisbury NHS Foundation Trust,24-Sep-18,CLEANING MATERIALS PRODUCTS SUNDRIES,Facilities Directorate,NHS LOGISTICS,1019108751,28.21,
Department of Health,Salisbury NHS Foundation Trust,24-Sep-18,DISPOSABLE THEATRE DRAPES WIPES,Facilities Directorate,NHS LOGISTICS,1019108751,68.4,
Department of Health,Salisbury NHS Foundation Trust,24-Sep-18,MEDSURGCONS - OTHER,Medicine,NHS LOGISTICS,1019108751,734.7,
Department of Health,Salisbury NHS Foundation Trust,24-Sep-18,MEDSURGCONS - OTHER,Medicine,NHS LOGISTICS,1019108751,244.9,
Department of Health,Salisbury NHS Foundation Trust,24-Sep-18,MEDSURGCONS - OTHER,Medicine,NHS LOGISTICS,1019108751,56.12,
Department of Health,Salisbury NHS Foundation Trust,24-Sep-18,LAB EQUIP-LABORATORY APPARATUS,Clinical Support and Family Services,NHS LOGISTICS,1019108751,748.67,
Department of Health,Salisbury NHS Foundation Trust,24-Sep-18,MEDSURGCONS-SUTURES,Medicine,NHS LOGISTICS,1019108751,66.37,
Department of Health,Salisbury NHS Foundation Trust,24-Sep-18,M & S EQUIPELECTEQUIPINST - OTHER,Medicine,NHS LOGISTICS,1019108751,8.4,
Department of Health,Salisbury NHS Foundation Trust,24-Sep-18,TOILETRIES PERSONAL HYGIENE PRODUCTS,Medicine,NHS LOGISTICS,1019108751,1.54,
Department of Health,Salisbury NHS Foundation Trust,24-Sep-18,OTHER MEDICAL SUPPLIES,Medicine,NHS LOGISTICS,1019108751,1.88,
Department of Health,Salisbury NHS Foundation Trust,24-Sep-18,NON DISPOSABLE BED LINEN,Medicine,NHS LOGISTICS,1019108751,3.75,
Department of Health,Salisbury NHS Foundation Trust,24-Sep-18,TOILETRIES PERSONAL HYGIENE PRODUCTS,Medicine,NHS LOGISTICS,1019108751,1.54,
Department of Health,Salisbury NHS Foundation Trust,24-Sep-18,OTHER MEDICAL SUPPLIES,Medicine,NHS LOGISTICS,1019108751,1.88,
Department of Health,Salisbury NHS Foundation Trust,24-Sep-18,OTHER MEDICAL SUPPLIES,Medicine,NHS LOGISTICS,1019108751,2,
Department of Health,Salisbury NHS Foundation Trust,24-Sep-18,MEDSURGCONS - OTHER,Medicine,NHS LOGISTICS,1019108751,7.15,
Department of Health,Salisbury NHS Foundation Trust,24-Sep-18,TISSUES HAND TOWELS & TOILET PAPER,Clinical Support and Family Services,NHS LOGISTICS,1019108751,21.9,
Department of Health,Salisbury NHS Foundation Trust,24-Sep-18,MED SURG EQUIP REP MAINT CLEANING,Clinical Support and Family Services,NHS LOGISTICS,1019108751,631.75,
Department of Health,Salisbury NHS Foundation Trust,24-Sep-18,DRESSINGS - PRE STERILE,Clinical Support and Family Services,NHS LOGISTICS,1019108751,1.87,
Department of Health,Salisbury NHS Foundation Trust,24-Sep-18,OTHER MEDICAL SUPPLIES,Clinical Support and Family Services,NHS LOGISTICS,1019108751,6.84,
Department of Health,Salisbury NHS Foundation Trust,24-Sep-18,DRESSINGS - PRE STERILE,Clinical Support and Family Services,NHS LOGISTICS,1019108751,2.68,
Department of Health,Salisbury NHS Foundation Trust,24-Sep-18,MEDSURGCONS - OTHER,Clinical Support and Family Services,NHS LOGISTICS,1019108751,10,
Department of Health,Salisbury NHS Foundation Trust,24-Sep-18,DISPOSABLE THEATRE DRAPES WIPES,Clinical Support and Family Services,NHS LOGISTICS,1019108751,10.65,
Department of Health,Salisbury NHS Foundation Trust,24-Sep-18,ELECTRICAL EQUIPMENT x,Human Resources,NHS LOGISTICS,1019108751,1.93,
Department of Health,Salisbury NHS Foundation Trust,24-Sep-18,DRESSINGS - PRE STERILE,Clinical Support and Family Services,NHS LOGISTICS,1019108751,0.93,
Department of Health,Salisbury NHS Foundation Trust,24-Sep-18,DRESSINGS - PRE STERILE,Clinical Support and Family Services,NHS LOGISTICS,1019108751,9.08,
Department of Health,Salisbury NHS Foundation Trust,24-Sep-18,OTHER MEDICAL SUPPLIES,Clinical Support and Family Services,NHS LOGISTICS,1019108751,224.9,
Department of Health,Salisbury NHS Foundation Trust,24-Sep-18,NON DISPOSABLE BED LINEN,Clinical Support and Family Services,NHS LOGISTICS,1019108751,7.5,
Department of Health,Salisbury NHS Foundation Trust,24-Sep-18,M & S EQUIPELECTEQUIPINST - OTHER,Clinical Support and Family Services,NHS LOGISTICS,1019108751,226.8,
Department of Health,Salisbury NHS Foundation Trust,24-Sep-18,M & S EQUIPELECTEQUIPINST - OTHER,Clinical Support and Family Services,NHS LOGISTICS,1019108751,103.09,
Department of Health,Salisbury NHS Foundation Trust,24-Sep-18,MED SURG EQUIP REP MAINT CLEANING,Clinical Support and Family Services,NHS LOGISTICS,1019108751,109.28,
Department of Health,Salisbury NHS Foundation Trust,24-Sep-18,M & S EQUIPELECTEQUIPINST - OTHER,Clinical Support and Family Services,NHS LOGISTICS,1019108751,128.87,
Department of Health,Salisbury NHS Foundation Trust,24-Sep-18,M & S EQUIPELECTEQUIPINST - OTHER,Clinical Support and Family Services,NHS LOGISTICS,1019108751,169.79,
Department of Health,Salisbury NHS Foundation Trust,24-Sep-18,M & S EQUIPELECTEQUIPINST - OTHER,Clinical Support and Family Services,NHS LOGISTICS,1019108751,231.95,
Department of Health,Salisbury NHS Foundation Trust,24-Sep-18,M & S EQUIPELECTEQUIPINST - OTHER,Clinical Support and Family Services,NHS LOGISTICS,1019108751,231.95,
Department of Health,Salisbury NHS Foundation Trust,24-Sep-18,LAB EQUIP-LABORATORY APPARATUS,Clinical Support and Family Services,NHS LOGISTICS,1019108751,37.85,
Department of Health,Salisbury NHS Foundation Trust,24-Sep-18,LAB EQUIP-LABORATORY APPARATUS,Clinical Support and Family Services,NHS LOGISTICS,1019108751,36.8,
Department of Health,Salisbury NHS Foundation Trust,24-Sep-18,LAB EQUIP-LABORATORY APPARATUS,Clinical Support and Family Services,NHS LOGISTICS,1019108751,296.67,
Department of Health,Salisbury NHS Foundation Trust,24-Sep-18,LAB EQUIP-LABORATORY APPARATUS,Clinical Support and Family Services,NHS LOGISTICS,1019108751,51.33,
Department of Health,Salisbury NHS Foundation Trust,24-Sep-18,DRESSINGS - PRE STERILE,Surgery,NHS LOGISTICS,1019108751,28,
Department of Health,Salisbury NHS Foundation Trust,24-Sep-18,MEDSURGCONS-SUTURES,Surgery,NHS LOGISTICS,1019108751,46.5,
Department of Health,Salisbury NHS Foundation Trust,24-Sep-18,M & S EQUIPELECTEQUIPINST - OTHER,Critical care,NHS LOGISTICS,1019108751,16.8,
Department of Health,Salisbury NHS Foundation Trust,24-Sep-18,TOILETRIES PERSONAL HYGIENE PRODUCTS,Critical care,NHS LOGISTICS,1019108751,3.08,
Department of Health,Salisbury NHS Foundation Trust,24-Sep-18,ANAESTHETIC EQUIPMENT ACCESSORIES,Critical care,NHS LOGISTICS,1019108751,1.3,
Department of Health,Salisbury NHS Foundation Trust,24-Sep-18,OTHER MEDICAL SUPPLIES,Critical care,NHS LOGISTICS,1019108751,8.18,
Department of Health,Salisbury NHS Foundation Trust,24-Sep-18,OTHER MEDICAL SUPPLIES,Critical care,NHS LOGISTICS,1019108751,3.77,
Department of Health,Salisbury NHS Foundation Trust,24-Sep-18,TOILETRIES PERSONAL HYGIENE PRODUCTS,Critical care,NHS LOGISTICS,1019108751,3.67,
Department of Health,Salisbury NHS Foundation Trust,24-Sep-18,MEDSURGCONS - OTHER,Critical care,NHS LOGISTICS,1019108751,21.45,
Department of Health,Salisbury NHS Foundation Trust,24-Sep-18,TOILETRIES PERSONAL HYGIENE PRODUCTS,Critical care,NHS LOGISTICS,1019108751,4.13,
Department of Health,Salisbury NHS Foundation Trust,24-Sep-18,M & S EQUIPELECTEQUIPINST - OTHER,Critical care,NHS LOGISTICS,1019108751,1.58,
Department of Health,Salisbury NHS Foundation Trust,24-Sep-18,MEDSURGCONS - OTHER,Critical care,NHS LOGISTICS,1019108751,1.77,
Department of Health,Salisbury NHS Foundation Trust,24-Sep-18,NON DISPOSABLE BED LINEN,Critical care,NHS LOGISTICS,1019108751,15,
Department of Health,Salisbury NHS Foundation Trust,24-Sep-18,DISPOSABLE THEATRE DRAPES WIPES,Critical care,NHS LOGISTICS,1019108751,30.8,
Department of Health,Salisbury NHS Foundation Trust,24-Sep-18,DISPOSABLE THEATRE DRAPES WIPES,Critical care,NHS LOGISTICS,1019108751,3.55,
Department of Health,Salisbury NHS Foundation Trust,24-Sep-18,PAPER ITEMS GENERAL STATIONERY SUNDRIES,Medicine,NHS LOGISTICS,1019108751,64.53,
Department of Health,Salisbury NHS Foundation Trust,24-Sep-18,MEDSURGCONS - OTHER,Medicine,NHS LOGISTICS,1019108751,76.31,
Department of Health,Salisbury NHS Foundation Trust,24-Sep-18,MEDSURGCONS - OTHER,Medicine,NHS LOGISTICS,1019108751,76.31,
Department of Health,Salisbury NHS Foundation Trust,24-Sep-18,DRESSINGS - PRE STERILE,Clinical Support and Family Services,NHS LOGISTICS,1019108751,17.73,
Department of Health,Salisbury NHS Foundation Trust,24-Sep-18,DRESSINGS - PRE STERILE,Clinical Support and Family Services,NHS LOGISTICS,1019108751,25.68,
Department of Health,Salisbury NHS Foundation Trust,24-Sep-18,DRESSINGS - PRE STERILE,Clinical Support and Family Services,NHS LOGISTICS,1019108751,44.41,
Department of Health,Salisbury NHS Foundation Trust,24-Sep-18,DRESSINGS - PRE STERILE,Clinical Support and Family Services,NHS LOGISTICS,1019108751,28,
Department of Health,Salisbury NHS Foundation Trust,24-Sep-18,DRESSINGS - PRE STERILE,Clinical Support and Family Services,NHS LOGISTICS,1019108751,62.46,
Department of Health,Salisbury NHS Foundation Trust,24-Sep-18,DRESSINGS - PRE STERILE,Clinical Support and Family Services,NHS LOGISTICS,1019108751,15.42,
Department of Health,Salisbury NHS Foundation Trust,24-Sep-18,DRESSINGS - PRE STERILE,Clinical Support and Family Services,NHS LOGISTICS,1019108751,34.28,
Department of Health,Salisbury NHS Foundation Trust,24-Sep-18,TOILETRIES PERSONAL HYGIENE PRODUCTS,Clinical Support and Family Services,NHS LOGISTICS,1019108751,14.45,
Department of Health,Salisbury NHS Foundation Trust,24-Sep-18,DRESSINGS - PRE STERILE,Medicine,NHS LOGISTICS,1019108751,9.67,
Department of Health,Salisbury NHS Foundation Trust,24-Sep-18,COOKING & KITCHEN UTENSILS,Medicine,NHS LOGISTICS,1019108751,1.82,
Department of Health,Salisbury NHS Foundation Trust,24-Sep-18,TOILETRIES PERSONAL HYGIENE PRODUCTS,Medicine,NHS LOGISTICS,1019108751,3.08,
Department of Health,Salisbury NHS Foundation Trust,24-Sep-18,DRESSINGS - PRE STERILE,Medicine,NHS LOGISTICS,1019108751,14,
Department of Health,Salisbury NHS Foundation Trust,24-Sep-18,DRESSINGS - PRE STERILE,Medicine,NHS LOGISTICS,1019108751,1.87,
Department of Health,Salisbury NHS Foundation Trust,24-Sep-18,OTHER MEDICAL SUPPLIES,Medicine,NHS LOGISTICS,1019108751,9.38,
Department of Health,Salisbury NHS Foundation Trust,24-Sep-18,ANAESTHETIC EQUIPMENT ACCESSORIES,Medicine,NHS LOGISTICS,1019108751,2.5,
Department of Health,Salisbury NHS Foundation Trust,24-Sep-18,OTHER MEDICAL SUPPLIES,Medicine,NHS LOGISTICS,1019108751,8.18,
Department of Health,Salisbury NHS Foundation Trust,24-Sep-18,OTHER MEDICAL SUPPLIES,Medicine,NHS LOGISTICS,1019108751,6.84,
Department of Health,Salisbury NHS Foundation Trust,24-Sep-18,OTHER MEDICAL SUPPLIES,Medicine,NHS LOGISTICS,1019108751,3.77,
Department of Health,Salisbury NHS Foundation Trust,24-Sep-18,PATIENT APPLIANCES,Medicine,NHS LOGISTICS,1019108751,3.35,
Department of Health,Salisbury NHS Foundation Trust,24-Sep-18,DRESSINGS - PRE STERILE,Medicine,NHS LOGISTICS,1019108751,5.37,
Department of Health,Salisbury NHS Foundation Trust,24-Sep-18,MEDSURGCONS - OTHER,Medicine,NHS LOGISTICS,1019108751,59.78,
Department of Health,Salisbury NHS Foundation Trust,24-Sep-18,MEDSURGCONS - OTHER,Medicine,NHS LOGISTICS,1019108751,14.3,
Department of Health,Salisbury NHS Foundation Trust,24-Sep-18,MEDSURGCONS - OTHER,Medicine,NHS LOGISTICS,1019108751,2.65,
Department of Health,Salisbury NHS Foundation Trust,24-Sep-18,NON DISPOSABLE BED LINEN,Medicine,NHS LOGISTICS,1019108751,7.5,
Department of Health,Salisbury NHS Foundation Trust,24-Sep-18,DISPOSABLE THEATRE DRAPES WIPES,Medicine,NHS LOGISTICS,1019108751,3.55,
Department of Health,Salisbury NHS Foundation Trust,24-Sep-18,M & S EQUIPELECTEQUIPINST - OTHER,Medicine,NHS LOGISTICS,1019108751,8.4,
Department of Health,Salisbury NHS Foundation Trust,24-Sep-18,CLEANING MATERIALS PRODUCTS SUNDRIES,Medicine,NHS LOGISTICS,1019108751,8.8,
Department of Health,Salisbury NHS Foundation Trust,24-Sep-18,DRESSINGS - PRE STERILE,Medicine,NHS LOGISTICS,1019108751,2.49,
Department of Health,Salisbury NHS Foundation Trust,24-Sep-18,PATIENTS INCONTINENCE,Medicine,NHS LOGISTICS,1019108751,3,
Department of Health,Salisbury NHS Foundation Trust,24-Sep-18,PATIENTS INCONTINENCE,Medicine,NHS LOGISTICS,1019108751,6.2,
Department of Health,Salisbury NHS Foundation Trust,24-Sep-18,OTHER MEDICAL SUPPLIES,Medicine,NHS LOGISTICS,1019108751,6.84,
Department of Health,Salisbury NHS Foundation Trust,24-Sep-18,OTHER MEDICAL SUPPLIES,Medicine,NHS LOGISTICS,1019108751,3.77,
Department of Health,Salisbury NHS Foundation Trust,24-Sep-18,PATIENT APPLIANCES,Medicine,NHS LOGISTICS,1019108751,3.35,
Department of Health,Salisbury NHS Foundation Trust,24-Sep-18,PATIENT APPLIANCES,Medicine,NHS LOGISTICS,1019108751,3.35,
Department of Health,Salisbury NHS Foundation Trust,24-Sep-18,TOILETRIES PERSONAL HYGIENE PRODUCTS,Medicine,NHS LOGISTICS,1019108751,3.67,
Department of Health,Salisbury NHS Foundation Trust,24-Sep-18,DRESSINGS - PRE STERILE,Medicine,NHS LOGISTICS,1019108751,2.68,
Department of Health,Salisbury NHS Foundation Trust,24-Sep-18,MEDSURGCONS - OTHER,Medicine,NHS LOGISTICS,1019108751,14.3,
Department of Health,Salisbury NHS Foundation Trust,24-Sep-18,TISSUES HAND TOWELS & TOILET PAPER,Medicine,NHS LOGISTICS,1019108751,0.68,
Department of Health,Salisbury NHS Foundation Trust,24-Sep-18,NON DISPOSABLE BED LINEN,Medicine,NHS LOGISTICS,1019108751,7.5,
Department of Health,Salisbury NHS Foundation Trust,24-Sep-18,DISPOSABLE THEATRE DRAPES WIPES,Medicine,NHS LOGISTICS,1019108751,7.1,
Department of Health,Salisbury NHS Foundation Trust,24-Sep-18,PATIENTS INCONTINENCE,Medicine,NHS LOGISTICS,1019108751,3,
Department of Health,Salisbury NHS Foundation Trust,24-Sep-18,DRESSINGS - PRE STERILE,Medicine,NHS LOGISTICS,1019108751,0.93,
Department of Health,Salisbury NHS Foundation Trust,24-Sep-18,TOILETRIES PERSONAL HYGIENE PRODUCTS,Medicine,NHS LOGISTICS,1019108751,3.67,
Department of Health,Salisbury NHS Foundation Trust,24-Sep-18,MEDSURGCONS - OTHER,Medicine,NHS LOGISTICS,1019108751,14.3,
Department of Health,Salisbury NHS Foundation Trust,24-Sep-18,MEDSURGCONS - OTHER,Medicine,NHS LOGISTICS,1019108751,0.88,
Department of Health,Salisbury NHS Foundation Trust,24-Sep-18,NON DISPOSABLE BED LINEN,Medicine,NHS LOGISTICS,1019108751,3.75,
Department of Health,Salisbury NHS Foundation Trust,24-Sep-18,DISPOSABLE THEATRE DRAPES WIPES,Medicine,NHS LOGISTICS,1019108751,3.55,
Department of Health,Salisbury NHS Foundation Trust,24-Sep-18,PATIENTS FOOTWEAR,Medicine,NHS LOGISTICS,1019108751,64.98,
Department of Health,Salisbury NHS Foundation Trust,24-Sep-18,PATIENTS INCONTINENCE,Surgery,NHS LOGISTICS,1019108751,3.1,
Department of Health,Salisbury NHS Foundation Trust,24-Sep-18,TOILETRIES PERSONAL HYGIENE PRODUCTS,Surgery,NHS LOGISTICS,1019108751,0.93,
Department of Health,Salisbury NHS Foundation Trust,24-Sep-18,MEDSURGCONS - OTHER,Surgery,NHS LOGISTICS,1019108751,0.88,
Department of Health,Salisbury NHS Foundation Trust,24-Sep-18,TUBES,Surgery,NHS LOGISTICS,1019108751,3.61,
Department of Health,Salisbury NHS Foundation Trust,24-Sep-18,MEDSURGCONS-SUTURES,Surgery,NHS LOGISTICS,1019108751,112.63,
Department of Health,Salisbury NHS Foundation Trust,24-Sep-18,PATIENTS INCONTINENCE,Medicine,NHS LOGISTICS,1019108751,12.4,
Department of Health,Salisbury NHS Foundation Trust,24-Sep-18,DRESSINGS - PRE STERILE,Medicine,NHS LOGISTICS,1019108751,1.87,
Department of Health,Salisbury NHS Foundation Trust,24-Sep-18,OTHER MEDICAL SUPPLIES,Medicine,NHS LOGISTICS,1019108751,3.77,
Department of Health,Salisbury NHS Foundation Trust,24-Sep-18,DRESSINGS - PRE STERILE,Medicine,NHS LOGISTICS,1019108751,2.68,
Department of Health,Salisbury NHS Foundation Trust,24-Sep-18,MEDSURGCONS - OTHER,Medicine,NHS LOGISTICS,1019108751,14.3,
Department of Health,Salisbury NHS Foundation Trust,24-Sep-18,MEDSURGCONS - OTHER,Medicine,NHS LOGISTICS,1019108751,1.77,
Department of Health,Salisbury NHS Foundation Trust,24-Sep-18,NON DISPOSABLE BED LINEN,Medicine,NHS LOGISTICS,1019108751,15,
Department of Health,Salisbury NHS Foundation Trust,24-Sep-18,TUBES,Surgery,NHS LOGISTICS,1019108751,6.58,
Department of Health,Salisbury NHS Foundation Trust,24-Sep-18,M & S EQUIPELECTEQUIPINST - OTHER,Surgery,NHS LOGISTICS,1019108751,6.75,
Department of Health,Salisbury NHS Foundation Trust,24-Sep-18,OTHER MEDICAL SUPPLIES,Surgery,NHS LOGISTICS,1019108751,4.69,
Department of Health,Salisbury NHS Foundation Trust,24-Sep-18,OTHER MEDICAL SUPPLIES,Surgery,NHS LOGISTICS,1019108751,5.65,
Department of Health,Salisbury NHS Foundation Trust,24-Sep-18,MEDSURGCONS - OTHER,Surgery,NHS LOGISTICS,1019108751,14.3,
Department of Health,Salisbury NHS Foundation Trust,24-Sep-18,MEDSURGCONS - OTHER,Surgery,NHS LOGISTICS,1019108751,27.1,
Department of Health,Salisbury NHS Foundation Trust,24-Sep-18,TISSUES HAND TOWELS & TOILET PAPER,Surgery,NHS LOGISTICS,1019108751,0.68,
Department of Health,Salisbury NHS Foundation Trust,24-Sep-18,TUBES,Surgery,NHS LOGISTICS,1019108751,3.61,
Department of Health,Salisbury NHS Foundation Trust,24-Sep-18,DISPOSABLE THEATRE DRAPES WIPES,Surgery,NHS LOGISTICS,1019108751,2.1,
Department of Health,Salisbury NHS Foundation Trust,24-Sep-18,PATIENTS INCONTINENCE,Surgery,NHS LOGISTICS,1019108751,6.2,
Department of Health,Salisbury NHS Foundation Trust,24-Sep-18,M & S EQUIPELECTEQUIPINST - OTHER,Surgery,NHS LOGISTICS,1019108751,20.25,
Department of Health,Salisbury NHS Foundation Trust,24-Sep-18,DRESSINGS - PRE STERILE,Surgery,NHS LOGISTICS,1019108751,2.68,
Department of Health,Salisbury NHS Foundation Trust,24-Sep-18,TISSUES HAND TOWELS & TOILET PAPER,Surgery,NHS LOGISTICS,1019108751,0.68,
Department of Health,Salisbury NHS Foundation Trust,24-Sep-18,MEDSURGCONS - OTHER,Surgery,NHS LOGISTICS,1019108751,1.77,
Department of Health,Salisbury NHS Foundation Trust,24-Sep-18,NON DISPOSABLE BED LINEN,Surgery,NHS LOGISTICS,1019108751,7.5,
Department of Health,Salisbury NHS Foundation Trust,24-Sep-18,DISPOSABLE THEATRE DRAPES WIPES,Surgery,NHS LOGISTICS,1019108751,7.1,
Department of Health,Salisbury NHS Foundation Trust,24-Sep-18,BEVERAGES & AMBIENT FOOD,Facilities Directorate,NHS LOGISTICS,1019108751,11.86,
Department of Health,Salisbury NHS Foundation Trust,24-Sep-18,BEVERAGES & AMBIENT FOOD,Facilities Directorate,NHS LOGISTICS,1019108751,169.92,
Department of Health,Salisbury NHS Foundation Trust,24-Sep-18,BEVERAGES & AMBIENT FOOD,Facilities Directorate,NHS LOGISTICS,1019108751,6.02,
Department of Health,Salisbury NHS Foundation Trust,24-Sep-18,MEAT GAME POULTRY FISH,Facilities Directorate,NHS LOGISTICS,1019108751,51.84,
Department of Health,Salisbury NHS Foundation Trust,24-Sep-18,FRUIT & VEGETABLES,Facilities Directorate,NHS LOGISTICS,1019108751,82.32,
Department of Health,Salisbury NHS Foundation Trust,24-Sep-18,FRUIT & VEGETABLES,Facilities Directorate,NHS LOGISTICS,1019108751,17.52,
Department of Health,Salisbury NHS Foundation Trust,24-Sep-18,FRUIT & VEGETABLES,Facilities Directorate,NHS LOGISTICS,1019108751,25.2,
Department of Health,Salisbury NHS Foundation Trust,24-Sep-18,FRUIT & VEGETABLES,Facilities Directorate,NHS LOGISTICS,1019108751,20.76,
Department of Health,Salisbury NHS Foundation Trust,24-Sep-18,FRUIT & VEGETABLES,Facilities Directorate,NHS LOGISTICS,1019108751,12.78,
Department of Health,Salisbury NHS Foundation Trust,24-Sep-18,FRUIT & VEGETABLES,Facilities Directorate,NHS LOGISTICS,1019108751,11.7,
Department of Health,Salisbury NHS Foundation Trust,24-Sep-18,FRUIT & VEGETABLES,Facilities Directorate,NHS LOGISTICS,1019108751,35.64,
Department of Health,Salisbury NHS Foundation Trust,24-Sep-18,FRUIT & VEGETABLES,Facilities Directorate,NHS LOGISTICS,1019108751,13.2,
Department of Health,Salisbury NHS Foundation Trust,24-Sep-18,FRUIT & VEGETABLES,Facilities Directorate,NHS LOGISTICS,1019108751,4.8,
Department of Health,Salisbury NHS Foundation Trust,24-Sep-18,FRUIT & VEGETABLES,Facilities Directorate,NHS LOGISTICS,1019108751,5.24,
Department of Health,Salisbury NHS Foundation Trust,24-Sep-18,FRUIT & VEGETABLES,Facilities Directorate,NHS LOGISTICS,1019108751,60,
Department of Health,Salisbury NHS Foundation Trust,24-Sep-18,FRUIT & VEGETABLES,Facilities Directorate,NHS LOGISTICS,1019108751,20.28,
Department of Health,Salisbury NHS Foundation Trust,24-Sep-18,FRUIT & VEGETABLES,Facilities Directorate,NHS LOGISTICS,1019108751,10.62,
Department of Health,Salisbury NHS Foundation Trust,24-Sep-18,BEVERAGES & AMBIENT FOOD,Facilities Directorate,NHS LOGISTICS,1019108751,4.55,
Department of Health,Salisbury NHS Foundation Trust,24-Sep-18,BEVERAGES & AMBIENT FOOD,Facilities Directorate,NHS LOGISTICS,1019108751,10.26,
Department of Health,Salisbury NHS Foundation Trust,24-Sep-18,BEVERAGES & AMBIENT FOOD,Facilities Directorate,NHS LOGISTICS,1019108751,67.05,
Department of Health,Salisbury NHS Foundation Trust,24-Sep-18,BEVERAGES & AMBIENT FOOD,Facilities Directorate,NHS LOGISTICS,1019108751,105.48,
Department of Health,Salisbury NHS Foundation Trust,24-Sep-18,LIQUID REFRESHMENTS,Facilities Directorate,NHS LOGISTICS,1019108751,17.45,
Department of Health,Salisbury NHS Foundation Trust,24-Sep-18,LIQUID REFRESHMENTS,Facilities Directorate,NHS LOGISTICS,1019108751,19.75,
Department of Health,Salisbury NHS Foundation Trust,24-Sep-18,LIQUID REFRESHMENTS,Facilities Directorate,NHS LOGISTICS,1019108751,5.07,
Department of Health,Salisbury NHS Foundation Trust,24-Sep-18,LIQUID REFRESHMENTS,Facilities Directorate,NHS LOGISTICS,1019108751,24.8,
Department of Health,Salisbury NHS Foundation Trust,24-Sep-18,LIQUID REFRESHMENTS,Facilities Directorate,NHS LOGISTICS,1019108751,5.07,
Department of Health,Salisbury NHS Foundation Trust,24-Sep-18,LIQUID REFRESHMENTS,Facilities Directorate,NHS LOGISTICS,1019108751,9.17,
Department of Health,Salisbury NHS Foundation Trust,24-Sep-18,LIQUID REFRESHMENTS,Facilities Directorate,NHS LOGISTICS,1019108751,26.33,
Department of Health,Salisbury NHS Foundation Trust,24-Sep-18,LIQUID REFRESHMENTS,Facilities Directorate,NHS LOGISTICS,1019108751,26.5,
Department of Health,Salisbury NHS Foundation Trust,24-Sep-18,LIQUID REFRESHMENTS,Facilities Directorate,NHS LOGISTICS,1019108751,26.5,
Department of Health,Salisbury NHS Foundation Trust,24-Sep-18,LIQUID REFRESHMENTS,Facilities Directorate,NHS LOGISTICS,1019108751,210.6,
Department of Health,Salisbury NHS Foundation Trust,24-Sep-18,LIQUID REFRESHMENTS,Facilities Directorate,NHS LOGISTICS,1019108751,3.91,
Department of Health,Salisbury NHS Foundation Trust,24-Sep-18,BEVERAGES & AMBIENT FOOD,Facilities Directorate,NHS LOGISTICS,1019108751,7.56,
Department of Health,Salisbury NHS Foundation Trust,24-Sep-18,TISSUES HAND TOWELS & TOILET PAPER,Facilities Directorate,NHS LOGISTICS,1019108751,10.95,
Department of Health,Salisbury NHS Foundation Trust,24-Sep-18,COOKING & KITCHEN UTENSILS,Facilities Directorate,NHS LOGISTICS,1019108751,25,
Department of Health,Salisbury NHS Foundation Trust,24-Sep-18,BEVERAGES & AMBIENT FOOD,Facilities Directorate,NHS LOGISTICS,1019108751,18.72,
Department of Health,Salisbury NHS Foundation Trust,24-Sep-18,BEVERAGES & AMBIENT FOOD,Facilities Directorate,NHS LOGISTICS,1019108751,19.68,
Department of Health,Salisbury NHS Foundation Trust,24-Sep-18,BEVERAGES & AMBIENT FOOD,Facilities Directorate,NHS LOGISTICS,1019108751,17.46,
Department of Health,Salisbury NHS Foundation Trust,24-Sep-18,BEVERAGES & AMBIENT FOOD,Facilities Directorate,NHS LOGISTICS,1019108751,21.48,
Department of Health,Salisbury NHS Foundation Trust,24-Sep-18,MEDSURGCONS - OTHER,Facilities Directorate,NHS LOGISTICS,1019108751,21.54,
Department of Health,Salisbury NHS Foundation Trust,24-Sep-18,MEDSURGCONS - OTHER,Facilities Directorate,NHS LOGISTICS,1019108751,23.92,
Department of Health,Salisbury NHS Foundation Trust,24-Sep-18,BEVERAGES & AMBIENT FOOD,Facilities Directorate,NHS LOGISTICS,1019108751,57.48,
Department of Health,Salisbury NHS Foundation Trust,24-Sep-18,BEVERAGES & AMBIENT FOOD,Facilities Directorate,NHS LOGISTICS,1019108751,7.68,
Department of Health,Salisbury NHS Foundation Trust,24-Sep-18,BEVERAGES & AMBIENT FOOD,Facilities Directorate,NHS LOGISTICS,1019108751,8.9,
Department of Health,Salisbury NHS Foundation Trust,24-Sep-18,FLAVOURINGS HERBS SPICES,Facilities Directorate,NHS LOGISTICS,1019108751,1.42,
Department of Health,Salisbury NHS Foundation Trust,24-Sep-18,FLAVOURINGS HERBS SPICES,Facilities Directorate,NHS LOGISTICS,1019108751,3.1,
Department of Health,Salisbury NHS Foundation Trust,24-Sep-18,BEVERAGES & AMBIENT FOOD,Facilities Directorate,NHS LOGISTICS,1019108751,3.19,
Department of Health,Salisbury NHS Foundation Trust,24-Sep-18,BEVERAGES & AMBIENT FOOD,Facilities Directorate,NHS LOGISTICS,1019108751,5.04,
Department of Health,Salisbury NHS Foundation Trust,24-Sep-18,BEVERAGES & AMBIENT FOOD,Facilities Directorate,NHS LOGISTICS,1019108751,4.43,
Department of Health,Salisbury NHS Foundation Trust,24-Sep-18,BEVERAGES & AMBIENT FOOD,Facilities Directorate,NHS LOGISTICS,1019108751,6.21,
Department of Health,Salisbury NHS Foundation Trust,24-Sep-18,BEVERAGES & AMBIENT FOOD,Facilities Directorate,NHS LOGISTICS,1019108751,23.14,
Department of Health,Salisbury NHS Foundation Trust,24-Sep-18,BEVERAGES & AMBIENT FOOD,Facilities Directorate,NHS LOGISTICS,1019108751,8.87,
Department of Health,Salisbury NHS Foundation Trust,24-Sep-18,BEVERAGES & AMBIENT FOOD,Facilities Directorate,NHS LOGISTICS,1019108751,3.93,
Department of Health,Salisbury NHS Foundation Trust,24-Sep-18,BEVERAGES & AMBIENT FOOD,Facilities Directorate,NHS LOGISTICS,1019108751,7.72,
Department of Health,Salisbury NHS Foundation Trust,24-Sep-18,BEVERAGES & AMBIENT FOOD,Facilities Directorate,NHS LOGISTICS,1019108751,4.53,
Department of Health,Salisbury NHS Foundation Trust,24-Sep-18,BEVERAGES & AMBIENT FOOD,Facilities Directorate,NHS LOGISTICS,1019108751,6.4,
Department of Health,Salisbury NHS Foundation Trust,24-Sep-18,BEVERAGES & AMBIENT FOOD,Facilities Directorate,NHS LOGISTICS,1019108751,8.9,
Department of Health,Salisbury NHS Foundation Trust,24-Sep-18,EGGS MILK OTHER DAIRY PRODUCTS,Facilities Directorate,NHS LOGISTICS,1019108751,64.58,
Department of Health,Salisbury NHS Foundation Trust,24-Sep-18,DIETETIC FOOD,Facilities Directorate,NHS LOGISTICS,1019108751,12.06,
Department of Health,Salisbury NHS Foundation Trust,24-Sep-18,DIETETIC FOOD,Facilities Directorate,NHS LOGISTICS,1019108751,12.06,
Department of Health,Salisbury NHS Foundation Trust,24-Sep-18,FLAVOURINGS HERBS SPICES,Facilities Directorate,NHS LOGISTICS,1019108751,25.06,
Department of Health,Salisbury NHS Foundation Trust,24-Sep-18,BABY TEXTURE MODIFIED FOODS,Facilities Directorate,NHS LOGISTICS,1019108751,48.06,
Department of Health,Salisbury NHS Foundation Trust,24-Sep-18,BEVERAGES & AMBIENT FOOD,Facilities Directorate,NHS LOGISTICS,1019108751,10.72,
Department of Health,Salisbury NHS Foundation Trust,24-Sep-18,FLAVOURINGS HERBS SPICES,Facilities Directorate,NHS LOGISTICS,1019108751,3.42,
Department of Health,Salisbury NHS Foundation Trust,24-Sep-18,BEVERAGES & AMBIENT FOOD,Facilities Directorate,NHS LOGISTICS,1019108751,10.8,
Department of Health,Salisbury NHS Foundation Trust,24-Sep-18,BEVERAGES & AMBIENT FOOD,Facilities Directorate,NHS LOGISTICS,1019108751,47.34,
Department of Health,Salisbury NHS Foundation Trust,24-Sep-18,BEVERAGES & AMBIENT FOOD,Facilities Directorate,NHS LOGISTICS,1019108751,6.05,
Department of Health,Salisbury NHS Foundation Trust,24-Sep-18,BEVERAGES & AMBIENT FOOD,Facilities Directorate,NHS LOGISTICS,1019108751,7.04,
Department of Health,Salisbury NHS Foundation Trust,24-Sep-18,BEVERAGES & AMBIENT FOOD,Facilities Directorate,NHS LOGISTICS,1019108751,20.7,
Department of Health,Salisbury NHS Foundation Trust,24-Sep-18,BEVERAGES & AMBIENT FOOD,Facilities Directorate,NHS LOGISTICS,1019108751,36.6,
Department of Health,Salisbury NHS Foundation Trust,24-Sep-18,MEDPROSTH-OTHOPAEDICS TRAUMA PRODUCTS,Critical care,NHS LOGISTICS,1019108751,41.13,
Department of Health,Salisbury NHS Foundation Trust,24-Sep-18,BAGS SACKS - OTHER,Surgery,NHS LOGISTICS,1019108751,12.19,
Department of Health,Salisbury NHS Foundation Trust,24-Sep-18,DRESSINGS - PRE STERILE,Surgery,NHS LOGISTICS,1019108751,4.75,
Department of Health,Salisbury NHS Foundation Trust,24-Sep-18,DRESSINGS - PRE STERILE,Surgery,NHS LOGISTICS,1019108751,74.68,
Department of Health,Salisbury NHS Foundation Trust,24-Sep-18,DRESSINGS - PRE STERILE,Surgery,NHS LOGISTICS,1019108751,1.23,
Department of Health,Salisbury NHS Foundation Trust,24-Sep-18,M & S EQUIPELECTEQUIPINST - OTHER,Medicine,NHS LOGISTICS,1019108751,6.75,
Department of Health,Salisbury NHS Foundation Trust,24-Sep-18,DRESSINGS - PRE STERILE,Medicine,NHS LOGISTICS,1019108751,1.87,
Department of Health,Salisbury NHS Foundation Trust,24-Sep-18,ANAESTHETIC EQUIPMENT ACCESSORIES,Medicine,NHS LOGISTICS,1019108751,3.13,
Department of Health,Salisbury NHS Foundation Trust,24-Sep-18,PATIENT APPLIANCES,Medicine,NHS LOGISTICS,1019108751,3.35,
Department of Health,Salisbury NHS Foundation Trust,24-Sep-18,PATIENT APPLIANCES,Medicine,NHS LOGISTICS,1019108751,4.39,
Department of Health,Salisbury NHS Foundation Trust,24-Sep-18,MEDSURGCONS - OTHER,Medicine,NHS LOGISTICS,1019108751,5.89,
Department of Health,Salisbury NHS Foundation Trust,24-Sep-18,TISSUES HAND TOWELS & TOILET PAPER,Medicine,NHS LOGISTICS,1019108751,0.68,
Department of Health,Salisbury NHS Foundation Trust,24-Sep-18,NON DISPOSABLE BED LINEN,Medicine,NHS LOGISTICS,1019108751,11.25,
Department of Health,Salisbury NHS Foundation Trust,24-Sep-18,DISPOSABLE THEATRE DRAPES WIPES,Medicine,NHS LOGISTICS,1019108751,3.55,
Department of Health,Salisbury NHS Foundation Trust,24-Sep-18,DRESSINGS - PRE STERILE,Critical care,NHS LOGISTICS,1019108751,90,
Department of Health,Salisbury NHS Foundation Trust,24-Sep-18,MEDSURGCONS - OTHER,Critical care,NHS LOGISTICS,1019108751,14.3,
Department of Health,Salisbury NHS Foundation Trust,24-Sep-18,MEDSURGCONS - OTHER,Critical care,NHS LOGISTICS,1019108751,0.88,
Department of Health,Salisbury NHS Foundation Trust,24-Sep-18,DISPOSABLE THEATRE DRAPES WIPES,Critical care,NHS LOGISTICS,1019108751,65.96,
Department of Health,Salisbury NHS Foundation Trust,24-Sep-18,MEDSURGCONS - OTHER,Surgery,NHS LOGISTICS,1019108751,21.42,
Department of Health,Salisbury NHS Foundation Trust,24-Sep-18,OTHER MEDICAL SUPPLIES,Surgery,NHS LOGISTICS,1019108751,1.88,
Department of Health,Salisbury NHS Foundation Trust,24-Sep-18,OTHER MEDICAL SUPPLIES,Surgery,NHS LOGISTICS,1019108751,52.73,
Department of Health,Salisbury NHS Foundation Trust,24-Sep-18,MEDSURGCONS - OTHER,Surgery,NHS LOGISTICS,1019108751,47.83,
Department of Health,Salisbury NHS Foundation Trust,24-Sep-18,M & S EQUIPELECTEQUIPINST - OTHER,Surgery,NHS LOGISTICS,1019108751,3.15,
Department of Health,Salisbury NHS Foundation Trust,24-Sep-18,MED SURG EQUIP REP MAINT CLEANING,Surgery,NHS LOGISTICS,1019108751,10.97,
Department of Health,Salisbury NHS Foundation Trust,24-Sep-18,NON DISPOSABLE BED LINEN,Surgery,NHS LOGISTICS,1019108751,22.5,
Department of Health,Salisbury NHS Foundation Trust,24-Sep-18,PATIENT APPLIANCES,Surgery,NHS LOGISTICS,1019108751,7.8,
Department of Health,Salisbury NHS Foundation Trust,24-Sep-18,MEDSURGCONS - OTHER,Surgery,NHS LOGISTICS,1019108751,5.34,
Department of Health,Salisbury NHS Foundation Trust,24-Sep-18,DISPOSABLE THEATRE DRAPES WIPES,Surgery,NHS LOGISTICS,1019108751,3.55,
Department of Health,Salisbury NHS Foundation Trust,24-Sep-18,HABERDASHERY,Surgery,NHS LOGISTICS,1019108751,1.73,
Department of Health,Salisbury NHS Foundation Trust,24-Sep-18,M & S EQUIPELECTEQUIPINST - OTHER,Clinical Support and Family Services,NHS LOGISTICS,1019108751,618.57,
Department of Health,Salisbury NHS Foundation Trust,24-Sep-18,MEDPROSTH-OTHOPAEDICS TRAUMA PRODUCTS,Critical care,NHS LOGISTICS,1019108751,144.33,
Department of Health,Salisbury NHS Foundation Trust,24-Sep-18,LAB EQUIP-LABORATORY APPARATUS,Clinical Support and Family Services,NHS LOGISTICS,1019108751,25.83,
Department of Health,Salisbury NHS Foundation Trust,24-Sep-18,LAB EQUIP-LABORATORY APPARATUS,Clinical Support and Family Services,NHS LOGISTICS,1019108751,73.2,
Department of Health,Salisbury NHS Foundation Trust,24-Sep-18,BEVERAGES & AMBIENT FOOD,Surgery,NHS LOGISTICS,1019108751,63.48,
Department of Health,Salisbury NHS Foundation Trust,24-Sep-18,DRESSINGS - PRE STERILE,Surgery,NHS LOGISTICS,1019108751,4.68,
Department of Health,Salisbury NHS Foundation Trust,24-Sep-18,DRESSINGS - PRE STERILE,Surgery,NHS LOGISTICS,1019108751,4.27,
Department of Health,Salisbury NHS Foundation Trust,24-Sep-18,MEDSURGCONS - OTHER,Surgery,NHS LOGISTICS,1019108751,6.82,
Department of Health,Salisbury NHS Foundation Trust,24-Sep-18,DRUGS,Surgery,NHS LOGISTICS,1019108751,39.27,
Department of Health,Salisbury NHS Foundation Trust,24-Sep-18,DRUGS,Surgery,NHS LOGISTICS,1019108751,9.35,
Department of Health,Salisbury NHS Foundation Trust,24-Sep-18,DRUGS,Surgery,NHS LOGISTICS,1019108751,54.9,
Department of Health,Salisbury NHS Foundation Trust,24-Sep-18,OTHER MEDICAL SUPPLIES,Surgery,NHS LOGISTICS,1019108751,7.53,
Department of Health,Salisbury NHS Foundation Trust,24-Sep-18,BEVERAGES & AMBIENT FOOD,Surgery,NHS LOGISTICS,1019108751,3.72,
Department of Health,Salisbury NHS Foundation Trust,24-Sep-18,TUBES,Surgery,NHS LOGISTICS,1019108751,24.58,
Department of Health,Salisbury NHS Foundation Trust,24-Sep-18,PATIENT APPLIANCES,Surgery,NHS LOGISTICS,1019108751,3.24,
Department of Health,Salisbury NHS Foundation Trust,24-Sep-18,LAB EQUIP-LABORATORY APPARATUS,Surgery,NHS LOGISTICS,1019108751,27.65,
Department of Health,Salisbury NHS Foundation Trust,24-Sep-18,MEDSURGCONS - OTHER,Surgery,NHS LOGISTICS,1019108751,91.07,
Department of Health,Salisbury NHS Foundation Trust,24-Sep-18,DISPOSABLE THEATRE DRAPES WIPES,Surgery,NHS LOGISTICS,1019108751,3.73,
Department of Health,Salisbury NHS Foundation Trust,24-Sep-18,DRESSINGS - PRE STERILE,Surgery,NHS LOGISTICS,1019108751,41.6,
Department of Health,Salisbury NHS Foundation Trust,24-Sep-18,DRESSINGS - PRE STERILE,Surgery,NHS LOGISTICS,1019108751,3.9,
Department of Health,Salisbury NHS Foundation Trust,24-Sep-18,TISSUES HAND TOWELS & TOILET PAPER,Surgery,NHS LOGISTICS,1019108751,3.75,
Department of Health,Salisbury NHS Foundation Trust,24-Sep-18,TISSUES HAND TOWELS & TOILET PAPER,Surgery,NHS LOGISTICS,1019108751,7.6,
Department of Health,Salisbury NHS Foundation Trust,24-Sep-18,DRESSINGS - PRE STERILE,Surgery,NHS LOGISTICS,1019108751,12.08,
Department of Health,Salisbury NHS Foundation Trust,24-Sep-18,NON DISPOSABLE BED LINEN,Surgery,NHS LOGISTICS,1019108751,3.75,
Department of Health,Salisbury NHS Foundation Trust,24-Sep-18,TISSUES HAND TOWELS & TOILET PAPER,Critical care,NHS LOGISTICS,1019108751,3.8,
Department of Health,Salisbury NHS Foundation Trust,24-Sep-18,DRESSINGS - PRE STERILE,Critical care,NHS LOGISTICS,1019108751,14,
Department of Health,Salisbury NHS Foundation Trust,24-Sep-18,MEDSURGCONS - OTHER,Critical care,NHS LOGISTICS,1019108751,7.15,
Department of Health,Salisbury NHS Foundation Trust,24-Sep-18,DISPOSABLE THEATRE DRAPES WIPES,Critical care,NHS LOGISTICS,1019108751,3.55,
Department of Health,Salisbury NHS Foundation Trust,24-Sep-18,HEALTHCARE - WEAR,Surgery,NHS LOGISTICS,1019108751,190.13,
Department of Health,Salisbury NHS Foundation Trust,24-Sep-18,TISSUES HAND TOWELS & TOILET PAPER,Surgery,NHS LOGISTICS,1019108751,10.95,
Department of Health,Salisbury NHS Foundation Trust,24-Sep-18,DRESSINGS - PRE STERILE,Surgery,NHS LOGISTICS,1019108751,2.93,
Department of Health,Salisbury NHS Foundation Trust,24-Sep-18,SURGICAL INSTRUMENTS: DISPOSABLE,Surgery,NHS LOGISTICS,1019108751,70.58,
Department of Health,Salisbury NHS Foundation Trust,24-Sep-18,LAB EQUIP-LABORATORY APPARATUS,Clinical Support and Family Services,NHS LOGISTICS,1019108751,6.31,
Department of Health,Salisbury NHS Foundation Trust,24-Sep-18,LAB EQUIP-LABORATORY APPARATUS,Clinical Support and Family Services,NHS LOGISTICS,1019108751,49.07,
Department of Health,Salisbury NHS Foundation Trust,24-Sep-18,LAB EQUIP-LABORATORY APPARATUS,Clinical Support and Family Services,NHS LOGISTICS,1019108751,93.58,
Department of Health,Salisbury NHS Foundation Trust,24-Sep-18,LAB EQUIP-LABORATORY APPARATUS,Clinical Support and Family Services,NHS LOGISTICS,1019108751,12.83,
Department of Health,Salisbury NHS Foundation Trust,24-Sep-18,LAB EQUIP-LABORATORY APPARATUS,Clinical Support and Family Services,NHS LOGISTICS,1019108751,6.3,
Department of Health,Salisbury NHS Foundation Trust,24-Sep-18,OTHER MEDICAL SUPPLIES,Clinical Support and Family Services,NHS LOGISTICS,1019108751,37.53,
Department of Health,Salisbury NHS Foundation Trust,24-Sep-18,MEDSURGCONS - OTHER,Clinical Support and Family Services,NHS LOGISTICS,1019108751,8.83,
Department of Health,Salisbury NHS Foundation Trust,24-Sep-18,TOILETRIES PERSONAL HYGIENE PRODUCTS,Critical care,NHS LOGISTICS,1019108751,6.17,
Department of Health,Salisbury NHS Foundation Trust,24-Sep-18,DRESSINGS - PRE STERILE,Critical care,NHS LOGISTICS,1019108751,2.93,
Department of Health,Salisbury NHS Foundation Trust,24-Sep-18,DRESSINGS - PRE STERILE,Critical care,NHS LOGISTICS,1019108751,2.13,
Department of Health,Salisbury NHS Foundation Trust,24-Sep-18,DRESSINGS - PRE STERILE,Critical care,NHS LOGISTICS,1019108751,5.66,
Department of Health,Salisbury NHS Foundation Trust,24-Sep-18,DRESSINGS - PRE STERILE,Critical care,NHS LOGISTICS,1019108751,3.93,
Department of Health,Salisbury NHS Foundation Trust,24-Sep-18,TISSUES HAND TOWELS & TOILET PAPER,Surgery,NHS LOGISTICS,1019108751,1.25,
Department of Health,Salisbury NHS Foundation Trust,24-Sep-18,NON DISPOSABLE BED LINEN,Clinical Support and Family Services,NHS LOGISTICS,1019108751,7.5,
Department of Health,Salisbury NHS Foundation Trust,24-Sep-18,PATIENT APPLIANCES,Clinical Support and Family Services,NHS LOGISTICS,1019108751,8.63,
Department of Health,Salisbury NHS Foundation Trust,24-Sep-18,DRESSINGS - PRE STERILE,Clinical Support and Family Services,NHS LOGISTICS,1019108751,168.87,
Department of Health,Salisbury NHS Foundation Trust,24-Sep-18,M & S EQUIPELECTEQUIPINST - OTHER,Critical care,NHS LOGISTICS,1019108751,8.4,
Department of Health,Salisbury NHS Foundation Trust,24-Sep-18,TOILETRIES PERSONAL HYGIENE PRODUCTS,Critical care,NHS LOGISTICS,1019108751,1.54,
Department of Health,Salisbury NHS Foundation Trust,24-Sep-18,TISSUES HAND TOWELS & TOILET PAPER,Critical care,NHS LOGISTICS,1019108751,7.6,
Department of Health,Salisbury NHS Foundation Trust,24-Sep-18,OTHER MEDICAL SUPPLIES,Critical care,NHS LOGISTICS,1019108751,8.18,
Department of Health,Salisbury NHS Foundation Trust,24-Sep-18,OTHER MEDICAL SUPPLIES,Critical care,NHS LOGISTICS,1019108751,5.65,
Department of Health,Salisbury NHS Foundation Trust,24-Sep-18,MEDSURGCONS - OTHER,Critical care,NHS LOGISTICS,1019108751,16.53,
Department of Health,Salisbury NHS Foundation Trust,24-Sep-18,MEDSURGCONS - OTHER,Critical care,NHS LOGISTICS,1019108751,3.91,
Department of Health,Salisbury NHS Foundation Trust,24-Sep-18,MEDSURGCONS - OTHER,Critical care,NHS LOGISTICS,1019108751,21.45,
Department of Health,Salisbury NHS Foundation Trust,24-Sep-18,TOILETRIES PERSONAL HYGIENE PRODUCTS,Critical care,NHS LOGISTICS,1019108751,4.13,
Department of Health,Salisbury NHS Foundation Trust,24-Sep-18,M & S EQUIPELECTEQUIPINST - OTHER,Critical care,NHS LOGISTICS,1019108751,1.58,
Department of Health,Salisbury NHS Foundation Trust,24-Sep-18,MEDSURGCONS - OTHER,Critical care,NHS LOGISTICS,1019108751,0.88,
Department of Health,Salisbury NHS Foundation Trust,24-Sep-18,NON DISPOSABLE BED LINEN,Critical care,NHS LOGISTICS,1019108751,15,
Department of Health,Salisbury NHS Foundation Trust,24-Sep-18,DISPOSABLE THEATRE DRAPES WIPES,Critical care,NHS LOGISTICS,1019108751,23.1,
Department of Health,Salisbury NHS Foundation Trust,24-Sep-18,MEDSURGCONS - OTHER,Surgery,NHS LOGISTICS,1019108751,87.1,
Department of Health,Salisbury NHS Foundation Trust,24-Sep-18,PATIENTS INCONTINENCE,Critical care,NHS LOGISTICS,1019108751,3.1,
Department of Health,Salisbury NHS Foundation Trust,24-Sep-18,OTHER MEDICAL SUPPLIES,Critical care,NHS LOGISTICS,1019108751,7.53,
Department of Health,Salisbury NHS Foundation Trust,24-Sep-18,DRESSINGS - PRE STERILE,Critical care,NHS LOGISTICS,1019108751,54.55,
Department of Health,Salisbury NHS Foundation Trust,24-Sep-18,DRESSINGS - PRE STERILE,Critical care,NHS LOGISTICS,1019108751,90,
Department of Health,Salisbury NHS Foundation Trust,24-Sep-18,MEDSURGCONS - OTHER,Critical care,NHS LOGISTICS,1019108751,1.77,
Department of Health,Salisbury NHS Foundation Trust,24-Sep-18,DISPOSABLE THEATRE DRAPES WIPES,Critical care,NHS LOGISTICS,1019108751,3.55,
Department of Health,Salisbury NHS Foundation Trust,24-Sep-18,TISSUES HAND TOWELS & TOILET PAPER,Clinical Support and Family Services,NHS LOGISTICS,1019108751,21.9,
Department of Health,Salisbury NHS Foundation Trust,24-Sep-18,ANAESTHETIC EQUIPMENT ACCESSORIES,Clinical Support and Family Services,NHS LOGISTICS,1019108751,0.65,
Department of Health,Salisbury NHS Foundation Trust,24-Sep-18,OTHER MEDICAL SUPPLIES,Clinical Support and Family Services,NHS LOGISTICS,1019108751,6.84,
Department of Health,Salisbury NHS Foundation Trust,24-Sep-18,DRESSINGS - PRE STERILE,Clinical Support and Family Services,NHS LOGISTICS,1019108751,2.68,
Department of Health,Salisbury NHS Foundation Trust,24-Sep-18,DRESSINGS - PRE STERILE,Clinical Support and Family Services,NHS LOGISTICS,1019108751,7.27,
Department of Health,Salisbury NHS Foundation Trust,24-Sep-18,DRESSINGS - PRE STERILE,Clinical Support and Family Services,NHS LOGISTICS,1019108751,4.42,
Department of Health,Salisbury NHS Foundation Trust,24-Sep-18,DISPOSABLE THEATRE DRAPES WIPES,Clinical Support and Family Services,NHS LOGISTICS,1019108751,3.55,
Department of Health,Salisbury NHS Foundation Trust,24-Sep-18,OTHER MEDICAL SUPPLIES,Medicine,NHS LOGISTICS,1019108751,52.77,
Department of Health,Salisbury NHS Foundation Trust,24-Sep-18,OTHER MEDICAL SUPPLIES,Medicine,NHS LOGISTICS,1019108751,521.33,
Department of Health,Salisbury NHS Foundation Trust,24-Sep-18,OTHER MEDICAL SUPPLIES,Medicine,NHS LOGISTICS,1019108751,155.56,
Department of Health,Salisbury NHS Foundation Trust,24-Sep-18,ELECTRICAL EQUIPMENT x,Medicine,NHS LOGISTICS,1019108751,3.87,
Department of Health,Salisbury NHS Foundation Trust,24-Sep-18,TISSUES HAND TOWELS & TOILET PAPER,Medicine,NHS LOGISTICS,1019108751,10.95,
Department of Health,Salisbury NHS Foundation Trust,24-Sep-18,TISSUES HAND TOWELS & TOILET PAPER,Medicine,NHS LOGISTICS,1019108751,0.39,
Department of Health,Salisbury NHS Foundation Trust,24-Sep-18,MEDSURGCONS - OTHER,Medicine,NHS LOGISTICS,1019108751,4.75,
Department of Health,Salisbury NHS Foundation Trust,24-Sep-18,DRESSINGS - PRE STERILE,Surgery,NHS LOGISTICS,1019108751,27.62,
Department of Health,Salisbury NHS Foundation Trust,24-Sep-18,DRESSINGS - PRE STERILE,Surgery,NHS LOGISTICS,1019108751,74.68,
Department of Health,Salisbury NHS Foundation Trust,24-Sep-18,BEVERAGES & AMBIENT FOOD,Surgery,NHS LOGISTICS,1019108751,57.36,
Department of Health,Salisbury NHS Foundation Trust,24-Sep-18,BEVERAGES & AMBIENT FOOD,Surgery,NHS LOGISTICS,1019108751,2.48,
Department of Health,Salisbury NHS Foundation Trust,24-Sep-18,BEVERAGES & AMBIENT FOOD,Surgery,NHS LOGISTICS,1019108751,14.08,
Department of Health,Salisbury NHS Foundation Trust,24-Sep-18,TOILETRIES PERSONAL HYGIENE PRODUCTS,Surgery,NHS LOGISTICS,1019108751,1.54,
Department of Health,Salisbury NHS Foundation Trust,24-Sep-18,DRESSINGS - PRE STERILE,Surgery,NHS LOGISTICS,1019108751,0.93,
Department of Health,Salisbury NHS Foundation Trust,24-Sep-18,TUBES,Clinical Support and Family Services,NHS LOGISTICS,1019108751,6.58,
Department of Health,Salisbury NHS Foundation Trust,24-Sep-18,DRESSINGS - PRE STERILE,Clinical Support and Family Services,NHS LOGISTICS,1019108751,28,
Department of Health,Salisbury NHS Foundation Trust,24-Sep-18,TISSUES HAND TOWELS & TOILET PAPER,Clinical Support and Family Services,NHS LOGISTICS,1019108751,0.78,
Department of Health,Salisbury NHS Foundation Trust,24-Sep-18,OTHER MEDICAL SUPPLIES,Clinical Support and Family Services,NHS LOGISTICS,1019108751,6.84,
Department of Health,Salisbury NHS Foundation Trust,24-Sep-18,OTHER MEDICAL SUPPLIES,Clinical Support and Family Services,NHS LOGISTICS,1019108751,1.88,
Department of Health,Salisbury NHS Foundation Trust,24-Sep-18,DRESSINGS - PRE STERILE,Clinical Support and Family Services,NHS LOGISTICS,1019108751,4.54,
Department of Health,Salisbury NHS Foundation Trust,24-Sep-18,TUBES,Clinical Support and Family Services,NHS LOGISTICS,1019108751,3.61,
Department of Health,Salisbury NHS Foundation Trust,24-Sep-18,NON DISPOSABLE BED LINEN,Clinical Support and Family Services,NHS LOGISTICS,1019108751,7.5,
Department of Health,Salisbury NHS Foundation Trust,24-Sep-18,M & S EQUIPELECTEQUIPINST - OTHER,Clinical Support and Family Services,NHS LOGISTICS,1019108751,103.09,
Department of Health,Salisbury NHS Foundation Trust,24-Sep-18,MED SURG EQUIP REP MAINT CLEANING,Clinical Support and Family Services,NHS LOGISTICS,1019108751,109.28,
Department of Health,Salisbury NHS Foundation Trust,24-Sep-18,M & S EQUIPELECTEQUIPINST - OTHER,Clinical Support and Family Services,NHS LOGISTICS,1019108751,128.87,
Department of Health,Salisbury NHS Foundation Trust,24-Sep-18,LAB EQUIP-LABORATORY APPARATUS,Surgery,NHS LOGISTICS,1019108751,18.43,
Department of Health,Salisbury NHS Foundation Trust,24-Sep-18,BAGS SACKS - OTHER,Critical care,NHS LOGISTICS,1019108751,3,
Department of Health,Salisbury NHS Foundation Trust,24-Sep-18,TOILETRIES PERSONAL HYGIENE PRODUCTS,Critical care,NHS LOGISTICS,1019108751,4.63,
Department of Health,Salisbury NHS Foundation Trust,24-Sep-18,MEDSURGCONS - OTHER,Critical care,NHS LOGISTICS,1019108751,0.88,
Department of Health,Salisbury NHS Foundation Trust,24-Sep-18,NON DISPOSABLE BED LINEN,Critical care,NHS LOGISTICS,1019108751,3.75,
Department of Health,Salisbury NHS Foundation Trust,24-Sep-18,PATIENTS BABY WEAR,Medicine,NHS LOGISTICS,1019108751,48.2,
Department of Health,Salisbury NHS Foundation Trust,24-Sep-18,MEDSURGCONS - OTHER,Medicine,NHS LOGISTICS,1019108751,14.3,
Department of Health,Salisbury NHS Foundation Trust,24-Sep-18,NON DISPOSABLE BED LINEN,Medicine,NHS LOGISTICS,1019108751,26.25,
Department of Health,Salisbury NHS Foundation Trust,24-Sep-18,TOILETRIES PERSONAL HYGIENE PRODUCTS,Medicine,NHS LOGISTICS,1019108751,3.08,
Department of Health,Salisbury NHS Foundation Trust,24-Sep-18,PATIENTS INCONTINENCE,Medicine,NHS LOGISTICS,1019108751,6,
Department of Health,Salisbury NHS Foundation Trust,24-Sep-18,DRESSINGS - PRE STERILE,Medicine,NHS LOGISTICS,1019108751,1.87,
Department of Health,Salisbury NHS Foundation Trust,24-Sep-18,PATIENT APPLIANCES,Medicine,NHS LOGISTICS,1019108751,8.05,
Department of Health,Salisbury NHS Foundation Trust,24-Sep-18,MEDSURGCONS - OTHER,Medicine,NHS LOGISTICS,1019108751,4.85,
Department of Health,Salisbury NHS Foundation Trust,24-Sep-18,MEDSURGCONS - OTHER,Medicine,NHS LOGISTICS,1019108751,3.53,
Department of Health,Salisbury NHS Foundation Trust,24-Sep-18,NON DISPOSABLE BED LINEN,Medicine,NHS LOGISTICS,1019108751,3.75,
Department of Health,Salisbury NHS Foundation Trust,24-Sep-18,DISPOSABLE THEATRE DRAPES WIPES,Medicine,NHS LOGISTICS,1019108751,3.55,
Department of Health,Salisbury NHS Foundation Trust,24-Sep-18,DRESSINGS - PRE STERILE,Critical care,NHS LOGISTICS,1019108751,6.58,
Department of Health,Salisbury NHS Foundation Trust,24-Sep-18,DRESSINGS - PRE STERILE,Critical care,NHS LOGISTICS,1019108751,5.96,
Department of Health,Salisbury NHS Foundation Trust,24-Sep-18,DRESSINGS - PRE STERILE,Critical care,NHS LOGISTICS,1019108751,23.41,
Department of Health,Salisbury NHS Foundation Trust,24-Sep-18,DRESSINGS - PRE STERILE,Critical care,NHS LOGISTICS,1019108751,19.78,
Department of Health,Salisbury NHS Foundation Trust,24-Sep-18,DRESSINGS - PRE STERILE,Critical care,NHS LOGISTICS,1019108751,22.8,
Department of Health,Salisbury NHS Foundation Trust,24-Sep-18,DRESSINGS - PRE STERILE,Critical care,NHS LOGISTICS,1019108751,3.43,
Department of Health,Salisbury NHS Foundation Trust,24-Sep-18,DISPOSABLE THEATRE DRAPES WIPES,Critical care,NHS LOGISTICS,1019108751,0.66,
Department of Health,Salisbury NHS Foundation Trust,24-Sep-18,OTHER MEDICAL SUPPLIES,Surgery,NHS LOGISTICS,1019108751,3.77,
Department of Health,Salisbury NHS Foundation Trust,24-Sep-18,OTHER MEDICAL SUPPLIES,Surgery,NHS LOGISTICS,1019108751,11.3,
Department of Health,Salisbury NHS Foundation Trust,24-Sep-18,MEDSURGCONS - OTHER,Surgery,NHS LOGISTICS,1019108751,20,
Department of Health,Salisbury NHS Foundation Trust,24-Sep-18,OTHER MEDICAL SUPPLIES,Surgery,NHS LOGISTICS,1019108751,123.43,
Department of Health,Salisbury NHS Foundation Trust,24-Sep-18,DRESSINGS - PRE STERILE,Surgery,NHS LOGISTICS,1019108751,17.98,
Department of Health,Salisbury NHS Foundation Trust,24-Sep-18,MEDSURGCONS - OTHER,Surgery,NHS LOGISTICS,1019108751,101.8,
Department of Health,Salisbury NHS Foundation Trust,24-Sep-18,M & S EQUIPELECTEQUIPINST - OTHER,Surgery,NHS LOGISTICS,1019108751,128.68,
Department of Health,Salisbury NHS Foundation Trust,24-Sep-18,OTHER MEDICAL SUPPLIES,Surgery,NHS LOGISTICS,1019108751,18.83,
Department of Health,Salisbury NHS Foundation Trust,24-Sep-18,TOILETRIES PERSONAL HYGIENE PRODUCTS,Surgery,NHS LOGISTICS,1019108751,9.25,
Department of Health,Salisbury NHS Foundation Trust,24-Sep-18,DRESSINGS - PRE STERILE,Surgery,NHS LOGISTICS,1019108751,9.97,
Department of Health,Salisbury NHS Foundation Trust,24-Sep-18,DRUGS,Surgery,NHS LOGISTICS,1019108751,14.73,
Department of Health,Salisbury NHS Foundation Trust,24-Sep-18,DRUGS,Surgery,NHS LOGISTICS,1019108751,57.6,
Department of Health,Salisbury NHS Foundation Trust,24-Sep-18,DISPOSABLE THEATRE DRAPES WIPES,Surgery,NHS LOGISTICS,1019108751,37.46,
Department of Health,Salisbury NHS Foundation Trust,24-Sep-18,MEDSURGCONS-SUTURES,Surgery,NHS LOGISTICS,1019108751,65.58,
Department of Health,Salisbury NHS Foundation Trust,24-Sep-18,MEDSURGCONS-SUTURES,Surgery,NHS LOGISTICS,1019108751,26.3,
Department of Health,Salisbury NHS Foundation Trust,24-Sep-18,MEDSURGCONS-SUTURES,Surgery,NHS LOGISTICS,1019108751,26.73,
Department of Health,Salisbury NHS Foundation Trust,24-Sep-18,MEDSURGCONS-SUTURES,Surgery,NHS LOGISTICS,1019108751,52.63,
Department of Health,Salisbury NHS Foundation Trust,24-Sep-18,PAPER ITEMS GENERAL STATIONERY SUNDRIES,Clinical Support and Family Services,NHS LOGISTICS,1019108751,174.17,
Department of Health,Salisbury NHS Foundation Trust,24-Sep-18,OTHER MEDICAL SUPPLIES,Medicine,NHS LOGISTICS,1019108751,26.23,
Department of Health,Salisbury NHS Foundation Trust,24-Sep-18,OTHER MEDICAL SUPPLIES,Clinical Support and Family Services,NHS LOGISTICS,1019108751,273,
Department of Health,Salisbury NHS Foundation Trust,24-Sep-18,PAPER ITEMS GENERAL STATIONERY SUNDRIES,Medicine,NHS LOGISTICS,1019108751,33.57,
Department of Health,Salisbury NHS Foundation Trust,24-Sep-18,OTHER MEDICAL SUPPLIES,Surgery,NHS LOGISTICS,1019108751,49.28,
Department of Health,Salisbury NHS Foundation Trust,24-Sep-18,M & S EQUIPELECTEQUIPINST - OTHER,Critical care,NHS LOGISTICS,1019108751,25.2,
Department of Health,Salisbury NHS Foundation Trust,24-Sep-18,MEDSURGCONS - OTHER,Critical care,NHS LOGISTICS,1019108751,21.47,
Department of Health,Salisbury NHS Foundation Trust,24-Sep-18,TISSUES HAND TOWELS & TOILET PAPER,Critical care,NHS LOGISTICS,1019108751,7.2,
Department of Health,Salisbury NHS Foundation Trust,24-Sep-18,NON DISPOSABLE BED LINEN,Critical care,NHS LOGISTICS,1019108751,33.18,
Department of Health,Salisbury NHS Foundation Trust,24-Sep-18,PATIENT APPLIANCES,Critical care,NHS LOGISTICS,1019108751,13.4,
Department of Health,Salisbury NHS Foundation Trust,24-Sep-18,DRESSINGS - PRE STERILE,Critical care,NHS LOGISTICS,1019108751,22.5,
Department of Health,Salisbury NHS Foundation Trust,24-Sep-18,DRESSINGS - PRE STERILE,Critical care,NHS LOGISTICS,1019108751,2.68,
Department of Health,Salisbury NHS Foundation Trust,24-Sep-18,DRESSINGS - PRE STERILE,Critical care,NHS LOGISTICS,1019108751,2.21,
Department of Health,Salisbury NHS Foundation Trust,24-Sep-18,MEDSURGCONS - OTHER,Critical care,NHS LOGISTICS,1019108751,7.15,
Department of Health,Salisbury NHS Foundation Trust,24-Sep-18,NON DISPOSABLE BED LINEN,Critical care,NHS LOGISTICS,1019108751,60,
Department of Health,Salisbury NHS Foundation Trust,24-Sep-18,PATIENT APPLIANCES,Critical care,NHS LOGISTICS,1019108751,129.5,
Department of Health,Salisbury NHS Foundation Trust,24-Sep-18,PATIENT APPLIANCES,Critical care,NHS LOGISTICS,1019108751,19.5,
Department of Health,Salisbury NHS Foundation Trust,24-Sep-18,DISPOSABLE THEATRE DRAPES WIPES,Critical care,NHS LOGISTICS,1019108751,28.4,
Department of Health,Salisbury NHS Foundation Trust,24-Sep-18,DRESSINGS - PRE STERILE,Critical care,NHS LOGISTICS,1019108751,1.87,
Department of Health,Salisbury NHS Foundation Trust,24-Sep-18,OTHER MEDICAL SUPPLIES,Critical care,NHS LOGISTICS,1019108751,1.88,
Department of Health,Salisbury NHS Foundation Trust,24-Sep-18,PATIENT APPLIANCES,Medicine,NHS LOGISTICS,1019108751,74.72,
Department of Health,Salisbury NHS Foundation Trust,24-Sep-18,LAB EQUIP-LABORATORY APPARATUS,Clinical Support and Family Services,NHS LOGISTICS,1019108751,32.08,
Department of Health,Salisbury NHS Foundation Trust,24-Sep-18,LAB EQUIP-LABORATORY APPARATUS,Clinical Support and Family Services,NHS LOGISTICS,1019108751,62.08,
Department of Health,Salisbury NHS Foundation Trust,24-Sep-18,M & S EQUIPELECTEQUIPINST - OTHER,Clinical Support and Family Services,NHS LOGISTICS,1019108751,8.4,
Department of Health,Salisbury NHS Foundation Trust,24-Sep-18,TOILETRIES PERSONAL HYGIENE PRODUCTS,Clinical Support and Family Services,NHS LOGISTICS,1019108751,3.08,
Department of Health,Salisbury NHS Foundation Trust,24-Sep-18,TISSUES HAND TOWELS & TOILET PAPER,Clinical Support and Family Services,NHS LOGISTICS,1019108751,1.27,
Department of Health,Salisbury NHS Foundation Trust,24-Sep-18,M & S EQUIPELECTEQUIPINST - OTHER,Clinical Support and Family Services,NHS LOGISTICS,1019108751,6.75,
Department of Health,Salisbury NHS Foundation Trust,24-Sep-18,SURGICAL INSTRUMENTS: GENERAL,Clinical Support and Family Services,NHS LOGISTICS,1019108751,4.92,
Department of Health,Salisbury NHS Foundation Trust,24-Sep-18,DRESSINGS - PRE STERILE,Clinical Support and Family Services,NHS LOGISTICS,1019108751,2.68,
Department of Health,Salisbury NHS Foundation Trust,24-Sep-18,DRESSINGS - PRE STERILE,Clinical Support and Family Services,NHS LOGISTICS,1019108751,1.82,
Department of Health,Salisbury NHS Foundation Trust,24-Sep-18,MEDSURGCONS - OTHER,Clinical Support and Family Services,NHS LOGISTICS,1019108751,3.78,
Department of Health,Salisbury NHS Foundation Trust,24-Sep-18,MEDSURGCONS - OTHER,Clinical Support and Family Services,NHS LOGISTICS,1019108751,3.91,
Department of Health,Salisbury NHS Foundation Trust,24-Sep-18,BABY TEXTURE MODIFIED FOODS,Clinical Support and Family Services,NHS LOGISTICS,1019108751,16.66,
Department of Health,Salisbury NHS Foundation Trust,24-Sep-18,MEDSURGCONS - OTHER,Clinical Support and Family Services,NHS LOGISTICS,1019108751,7.15,
Department of Health,Salisbury NHS Foundation Trust,24-Sep-18,NON DISPOSABLE BED LINEN,Clinical Support and Family Services,NHS LOGISTICS,1019108751,11.25,
Department of Health,Salisbury NHS Foundation Trust,24-Sep-18,PATIENT APPLIANCES,Clinical Support and Family Services,NHS LOGISTICS,1019108751,4.32,
Department of Health,Salisbury NHS Foundation Trust,24-Sep-18,TISSUES HAND TOWELS & TOILET PAPER,Clinical Support and Family Services,NHS LOGISTICS,1019108751,10.95,
Department of Health,Salisbury NHS Foundation Trust,24-Sep-18,NON DISPOSABLE BED LINEN,Clinical Support and Family Services,NHS LOGISTICS,1019108751,3.75,
Department of Health,Salisbury NHS Foundation Trust,24-Sep-18,TOILETRIES PERSONAL HYGIENE PRODUCTS,Surgery,NHS LOGISTICS,1019108751,3.08,
Department of Health,Salisbury NHS Foundation Trust,24-Sep-18,TISSUES HAND TOWELS & TOILET PAPER,Surgery,NHS LOGISTICS,1019108751,2.53,
Department of Health,Salisbury NHS Foundation Trust,24-Sep-18,OTHER MEDICAL SUPPLIES,Surgery,NHS LOGISTICS,1019108751,9.38,
Department of Health,Salisbury NHS Foundation Trust,24-Sep-18,MEDSURGCONS - OTHER,Surgery,NHS LOGISTICS,1019108751,5.3,
Department of Health,Salisbury NHS Foundation Trust,24-Sep-18,DISPOSABLE THEATRE DRAPES WIPES,Surgery,NHS LOGISTICS,1019108751,3.55,
Department of Health,Salisbury NHS Foundation Trust,24-Sep-18,TISSUES HAND TOWELS & TOILET PAPER,Surgery,NHS LOGISTICS,1019108751,3.8,
Department of Health,Salisbury NHS Foundation Trust,24-Sep-18,MEDSURGCONS - OTHER,Surgery,NHS LOGISTICS,1019108751,35.49,
Department of Health,Salisbury NHS Foundation Trust,24-Sep-18,DRESSINGS - PRE STERILE,Surgery,NHS LOGISTICS,1019108751,0.91,
Department of Health,Salisbury NHS Foundation Trust,24-Sep-18,OTHER MEDICAL SUPPLIES,Directorate of Finance and Procurement,NHS LOGISTICS,1019108751,308.58,
Department of Health,Salisbury NHS Foundation Trust,24-Sep-18,TISSUES HAND TOWELS & TOILET PAPER,Surgery,NHS LOGISTICS,1019108751,3.8,
Department of Health,Salisbury NHS Foundation Trust,24-Sep-18,PATIENT APPLIANCES,Clinical Support and Family Services,NHS LOGISTICS,1019108751,40.87,
Department of Health,Salisbury NHS Foundation Trust,24-Sep-18,TISSUES HAND TOWELS & TOILET PAPER,Clinical Support and Family Services,NHS LOGISTICS,1019108751,6.33,
Department of Health,Salisbury NHS Foundation Trust,24-Sep-18,LAB EQUIP-LABORATORY APPARATUS,Clinical Support and Family Services,NHS LOGISTICS,1019108751,3.15,
Department of Health,Salisbury NHS Foundation Trust,24-Sep-18,OTHER MEDICAL SUPPLIES,Clinical Support and Family Services,NHS LOGISTICS,1019108751,9.38,
Department of Health,Salisbury NHS Foundation Trust,24-Sep-18,DISPOSABLE THEATRE DRAPES WIPES,Clinical Support and Family Services,NHS LOGISTICS,1019108751,3.55,
Department of Health,Salisbury NHS Foundation Trust,24-Sep-18,BABY TEXTURE MODIFIED FOODS,Clinical Support and Family Services,NHS LOGISTICS,1019108751,10.55,
Department of Health,Salisbury NHS Foundation Trust,24-Sep-18,OTHER MEDICAL SUPPLIES,Clinical Support and Family Services,NHS LOGISTICS,1019108751,1.88,
Department of Health,Salisbury NHS Foundation Trust,24-Sep-18,MEDSURGCONS - OTHER,Clinical Support and Family Services,NHS LOGISTICS,1019108751,23.57,
Department of Health,Salisbury NHS Foundation Trust,24-Sep-18,OTHER MEDICAL SUPPLIES,Surgery,NHS LOGISTICS,1019108751,16.47,
Department of Health,Salisbury NHS Foundation Trust,24-Sep-18,TISSUES HAND TOWELS & TOILET PAPER,Surgery,NHS LOGISTICS,1019108751,1.27,
Department of Health,Salisbury NHS Foundation Trust,24-Sep-18,DRESSINGS - PRE STERILE,Surgery,NHS LOGISTICS,1019108751,4.98,
Department of Health,Salisbury NHS Foundation Trust,24-Sep-18,MEDSURGCONS - OTHER,Surgery,NHS LOGISTICS,1019108751,60.85,
Department of Health,Salisbury NHS Foundation Trust,24-Sep-18,DRESSINGS - PRE STERILE,Surgery,NHS LOGISTICS,1019108751,1.87,
Department of Health,Salisbury NHS Foundation Trust,24-Sep-18,MEDSURGCONS - OTHER,Surgery,NHS LOGISTICS,1019108751,21.42,
Department of Health,Salisbury NHS Foundation Trust,24-Sep-18,OTHER MEDICAL SUPPLIES,Surgery,NHS LOGISTICS,1019108751,5.65,
Department of Health,Salisbury NHS Foundation Trust,24-Sep-18,OTHER MEDICAL SUPPLIES,Surgery,NHS LOGISTICS,1019108751,20.79,
Department of Health,Salisbury NHS Foundation Trust,24-Sep-18,TOILETRIES PERSONAL HYGIENE PRODUCTS,Surgery,NHS LOGISTICS,1019108751,4.15,
Department of Health,Salisbury NHS Foundation Trust,24-Sep-18,MEDSURGCONS - OTHER,Surgery,NHS LOGISTICS,1019108751,47.83,
Department of Health,Salisbury NHS Foundation Trust,24-Sep-18,MEDSURGCONS - OTHER,Surgery,NHS LOGISTICS,1019108751,7.15,
Department of Health,Salisbury NHS Foundation Trust,24-Sep-18,NON DISPOSABLE BED LINEN,Surgery,NHS LOGISTICS,1019108751,56.25,
Department of Health,Salisbury NHS Foundation Trust,24-Sep-18,PATIENT APPLIANCES,Surgery,NHS LOGISTICS,1019108751,7.8,
Department of Health,Salisbury NHS Foundation Trust,24-Sep-18,MEDSURGCONS - OTHER,Surgery,NHS LOGISTICS,1019108751,5.34,
Department of Health,Salisbury NHS Foundation Trust,24-Sep-18,DISPOSABLE THEATRE DRAPES WIPES,Surgery,NHS LOGISTICS,1019108751,4.48,
Department of Health,Salisbury NHS Foundation Trust,24-Sep-18,DISPOSABLE THEATRE DRAPES WIPES,Surgery,NHS LOGISTICS,1019108751,3.55,
Department of Health,Salisbury NHS Foundation Trust,24-Sep-18,DRESSINGS - PRE STERILE,Surgery,NHS LOGISTICS,1019108751,4.83,
Department of Health,Salisbury NHS Foundation Trust,24-Sep-18,PATIENTS INCONTINENCE,Surgery,NHS LOGISTICS,1019108751,3.1,
Department of Health,Salisbury NHS Foundation Trust,24-Sep-18,OTHER MEDICAL SUPPLIES,Surgery,NHS LOGISTICS,1019108751,8.18,
Department of Health,Salisbury NHS Foundation Trust,24-Sep-18,OTHER MEDICAL SUPPLIES,Surgery,NHS LOGISTICS,1019108751,1.88,
Department of Health,Salisbury NHS Foundation Trust,24-Sep-18,MEDSURGCONS - OTHER,Surgery,NHS LOGISTICS,1019108751,21.45,
Department of Health,Salisbury NHS Foundation Trust,24-Sep-18,MEDSURGCONS - OTHER,Surgery,NHS LOGISTICS,1019108751,0.88,
Department of Health,Salisbury NHS Foundation Trust,24-Sep-18,NON DISPOSABLE BED LINEN,Surgery,NHS LOGISTICS,1019108751,11.25,
Department of Health,Salisbury NHS Foundation Trust,24-Sep-18,TUBES,Surgery,NHS LOGISTICS,1019108751,6.58,
Department of Health,Salisbury NHS Foundation Trust,24-Sep-18,NON DISPOSABLE BED LINEN,Surgery,NHS LOGISTICS,1019108751,27,
Department of Health,Salisbury NHS Foundation Trust,24-Sep-18,NON DISPOSABLE BED LINEN,Surgery,NHS LOGISTICS,1019108751,52.75,
Department of Health,Salisbury NHS Foundation Trust,24-Sep-18,LAB EQUIP-LABORATORY APPARATUS,Clinical Support and Family Services,NHS LOGISTICS,1019108751,48.82,
Department of Health,Salisbury NHS Foundation Trust,24-Sep-18,DRESSINGS - PRE STERILE,Medicine,NHS LOGISTICS,1019108751,0.93,
Department of Health,Salisbury NHS Foundation Trust,24-Sep-18,OTHER MEDICAL SUPPLIES,Medicine,NHS LOGISTICS,1019108751,8.18,
Department of Health,Salisbury NHS Foundation Trust,24-Sep-18,OTHER MEDICAL SUPPLIES,Medicine,NHS LOGISTICS,1019108751,1.88,
Department of Health,Salisbury NHS Foundation Trust,24-Sep-18,PATIENT APPLIANCES,Medicine,NHS LOGISTICS,1019108751,8.78,
Department of Health,Salisbury NHS Foundation Trust,24-Sep-18,PATIENT APPLIANCES,Medicine,NHS LOGISTICS,1019108751,4.39,
Department of Health,Salisbury NHS Foundation Trust,24-Sep-18,MEDSURGCONS - OTHER,Medicine,NHS LOGISTICS,1019108751,3.91,
Department of Health,Salisbury NHS Foundation Trust,24-Sep-18,MEDSURGCONS - OTHER,Medicine,NHS LOGISTICS,1019108751,6.82,
Department of Health,Salisbury NHS Foundation Trust,24-Sep-18,MEDSURGCONS - OTHER,Medicine,NHS LOGISTICS,1019108751,14.3,
Department of Health,Salisbury NHS Foundation Trust,24-Sep-18,TISSUES HAND TOWELS & TOILET PAPER,Medicine,NHS LOGISTICS,1019108751,0.68,
Department of Health,Salisbury NHS Foundation Trust,24-Sep-18,MEDSURGCONS - OTHER,Medicine,NHS LOGISTICS,1019108751,0.88,
Department of Health,Salisbury NHS Foundation Trust,24-Sep-18,M & S EQUIPELECTEQUIPINST - OTHER,Medicine,NHS LOGISTICS,1019108751,8.4,
Department of Health,Salisbury NHS Foundation Trust,24-Sep-18,TISSUES HAND TOWELS & TOILET PAPER,Medicine,NHS LOGISTICS,1019108751,1.17,
Department of Health,Salisbury NHS Foundation Trust,24-Sep-18,PATIENTS INCONTINENCE,Medicine,NHS LOGISTICS,1019108751,3.1,
Department of Health,Salisbury NHS Foundation Trust,24-Sep-18,M & S EQUIPELECTEQUIPINST - OTHER,Medicine,NHS LOGISTICS,1019108751,2.63,
Department of Health,Salisbury NHS Foundation Trust,24-Sep-18,DRESSINGS - PRE STERILE,Surgery,NHS LOGISTICS,1019108751,2.49,
Department of Health,Salisbury NHS Foundation Trust,24-Sep-18,DRESSINGS - PRE STERILE,Surgery,NHS LOGISTICS,1019108751,1.87,
Department of Health,Salisbury NHS Foundation Trust,24-Sep-18,MEDSURGCONS - OTHER,Surgery,NHS LOGISTICS,1019108751,14.3,
Department of Health,Salisbury NHS Foundation Trust,24-Sep-18,TUBES,Surgery,NHS LOGISTICS,1019108751,7.22,
Department of Health,Salisbury NHS Foundation Trust,24-Sep-18,DRESSINGS - PRE STERILE,Surgery,NHS LOGISTICS,1019108751,12.46,
Department of Health,Salisbury NHS Foundation Trust,24-Sep-18,PATIENTS INCONTINENCE,Surgery,NHS LOGISTICS,1019108751,6.2,
Department of Health,Salisbury NHS Foundation Trust,24-Sep-18,M & S EQUIPELECTEQUIPINST - OTHER,Surgery,NHS LOGISTICS,1019108751,13.5,
Department of Health,Salisbury NHS Foundation Trust,24-Sep-18,TOILETRIES PERSONAL HYGIENE PRODUCTS,Surgery,NHS LOGISTICS,1019108751,4.15,
Department of Health,Salisbury NHS Foundation Trust,24-Sep-18,MEDSURGCONS - OTHER,Surgery,NHS LOGISTICS,1019108751,0.88,
Department of Health,Salisbury NHS Foundation Trust,24-Sep-18,OTHER MEDICAL SUPPLIES,Surgery,NHS LOGISTICS,1019108751,6.84,
Department of Health,Salisbury NHS Foundation Trust,24-Sep-18,DRESSINGS - PRE STERILE,Surgery,NHS LOGISTICS,1019108751,5.66,
Department of Health,Salisbury NHS Foundation Trust,24-Sep-18,TOILETRIES PERSONAL HYGIENE PRODUCTS,Surgery,NHS LOGISTICS,1019108751,91.05,
Department of Health,Salisbury NHS Foundation Trust,24-Sep-18,MEDSURGCONS-SUTURES,Surgery,NHS LOGISTICS,1019108751,86.12,
Department of Health,Salisbury NHS Foundation Trust,24-Sep-18,MEDSURGCONS-SUTURES,Surgery,NHS LOGISTICS,1019108751,65.58,
Department of Health,Salisbury NHS Foundation Trust,24-Sep-18,MEDSURGCONS-SUTURES,Surgery,NHS LOGISTICS,1019108751,26.3,
Department of Health,Salisbury NHS Foundation Trust,24-Sep-18,MEDSURGCONS-SUTURES,Surgery,NHS LOGISTICS,1019108751,26.73,
Department of Health,Salisbury NHS Foundation Trust,24-Sep-18,DRESSINGS - PRE STERILE,Surgery,NHS LOGISTICS,1019108751,1.23,
Department of Health,Salisbury NHS Foundation Trust,24-Sep-18,NON DISPOSABLE BED LINEN,Surgery,NHS LOGISTICS,1019108751,30,
Department of Health,Salisbury NHS Foundation Trust,24-Sep-18,FLAVOURINGS HERBS SPICES,Facilities Directorate,NHS LOGISTICS,1019108751,37.92,
Department of Health,Salisbury NHS Foundation Trust,24-Sep-18,BEVERAGES & AMBIENT FOOD,Facilities Directorate,NHS LOGISTICS,1019108751,11.86,
Department of Health,Salisbury NHS Foundation Trust,24-Sep-18,BEVERAGES & AMBIENT FOOD,Facilities Directorate,NHS LOGISTICS,1019108751,141.6,
Department of Health,Salisbury NHS Foundation Trust,24-Sep-18,BEVERAGES & AMBIENT FOOD,Facilities Directorate,NHS LOGISTICS,1019108751,2.34,
Department of Health,Salisbury NHS Foundation Trust,24-Sep-18,BEVERAGES & AMBIENT FOOD,Facilities Directorate,NHS LOGISTICS,1019108751,1.72,
Department of Health,Salisbury NHS Foundation Trust,24-Sep-18,BEVERAGES & AMBIENT FOOD,Facilities Directorate,NHS LOGISTICS,1019108751,6.02,
Department of Health,Salisbury NHS Foundation Trust,24-Sep-18,MEAT GAME POULTRY FISH,Facilities Directorate,NHS LOGISTICS,1019108751,51.84,
Department of Health,Salisbury NHS Foundation Trust,24-Sep-18,FRUIT & VEGETABLES,Facilities Directorate,NHS LOGISTICS,1019108751,52.38,
Department of Health,Salisbury NHS Foundation Trust,24-Sep-18,FRUIT & VEGETABLES,Facilities Directorate,NHS LOGISTICS,1019108751,3.08,
Department of Health,Salisbury NHS Foundation Trust,24-Sep-18,FRUIT & VEGETABLES,Facilities Directorate,NHS LOGISTICS,1019108751,29.94,
Department of Health,Salisbury NHS Foundation Trust,24-Sep-18,FRUIT & VEGETABLES,Facilities Directorate,NHS LOGISTICS,1019108751,13.2,
Department of Health,Salisbury NHS Foundation Trust,24-Sep-18,FRUIT & VEGETABLES,Facilities Directorate,NHS LOGISTICS,1019108751,4.8,
Department of Health,Salisbury NHS Foundation Trust,24-Sep-18,FRUIT & VEGETABLES,Facilities Directorate,NHS LOGISTICS,1019108751,40.56,
Department of Health,Salisbury NHS Foundation Trust,24-Sep-18,FRUIT & VEGETABLES,Facilities Directorate,NHS LOGISTICS,1019108751,7.48,
Department of Health,Salisbury NHS Foundation Trust,24-Sep-18,FRUIT & VEGETABLES,Facilities Directorate,NHS LOGISTICS,1019108751,10.62,
Department of Health,Salisbury NHS Foundation Trust,24-Sep-18,BEVERAGES & AMBIENT FOOD,Facilities Directorate,NHS LOGISTICS,1019108751,2.63,
Department of Health,Salisbury NHS Foundation Trust,24-Sep-18,BEVERAGES & AMBIENT FOOD,Facilities Directorate,NHS LOGISTICS,1019108751,4.64,
Department of Health,Salisbury NHS Foundation Trust,24-Sep-18,BEVERAGES & AMBIENT FOOD,Facilities Directorate,NHS LOGISTICS,1019108751,23.72,
Department of Health,Salisbury NHS Foundation Trust,24-Sep-18,BEVERAGES & AMBIENT FOOD,Facilities Directorate,NHS LOGISTICS,1019108751,53.64,
Department of Health,Salisbury NHS Foundation Trust,24-Sep-18,BEVERAGES & AMBIENT FOOD,Facilities Directorate,NHS LOGISTICS,1019108751,70.32,
Department of Health,Salisbury NHS Foundation Trust,24-Sep-18,LIQUID REFRESHMENTS,Facilities Directorate,NHS LOGISTICS,1019108751,8.73,
Department of Health,Salisbury NHS Foundation Trust,24-Sep-18,LIQUID REFRESHMENTS,Facilities Directorate,NHS LOGISTICS,1019108751,19.75,
Department of Health,Salisbury NHS Foundation Trust,24-Sep-18,LIQUID REFRESHMENTS,Facilities Directorate,NHS LOGISTICS,1019108751,7.6,
Department of Health,Salisbury NHS Foundation Trust,24-Sep-18,LIQUID REFRESHMENTS,Facilities Directorate,NHS LOGISTICS,1019108751,18.6,
Department of Health,Salisbury NHS Foundation Trust,24-Sep-18,LIQUID REFRESHMENTS,Facilities Directorate,NHS LOGISTICS,1019108751,7.6,
Department of Health,Salisbury NHS Foundation Trust,24-Sep-18,LIQUID REFRESHMENTS,Facilities Directorate,NHS LOGISTICS,1019108751,18.33,
Department of Health,Salisbury NHS Foundation Trust,24-Sep-18,LIQUID REFRESHMENTS,Facilities Directorate,NHS LOGISTICS,1019108751,26.5,
Department of Health,Salisbury NHS Foundation Trust,24-Sep-18,LIQUID REFRESHMENTS,Facilities Directorate,NHS LOGISTICS,1019108751,105.3,
Department of Health,Salisbury NHS Foundation Trust,24-Sep-18,LIQUID REFRESHMENTS,Facilities Directorate,NHS LOGISTICS,1019108751,27.95,
Department of Health,Salisbury NHS Foundation Trust,24-Sep-18,BEVERAGES & AMBIENT FOOD,Facilities Directorate,NHS LOGISTICS,1019108751,15,
Department of Health,Salisbury NHS Foundation Trust,24-Sep-18,BEVERAGES & AMBIENT FOOD,Facilities Directorate,NHS LOGISTICS,1019108751,17.17,
Department of Health,Salisbury NHS Foundation Trust,24-Sep-18,BEVERAGES & AMBIENT FOOD,Facilities Directorate,NHS LOGISTICS,1019108751,15,
Department of Health,Salisbury NHS Foundation Trust,24-Sep-18,BEVERAGES & AMBIENT FOOD,Facilities Directorate,NHS LOGISTICS,1019108751,14.52,
Department of Health,Salisbury NHS Foundation Trust,24-Sep-18,BEVERAGES & AMBIENT FOOD,Facilities Directorate,NHS LOGISTICS,1019108751,9.52,
Department of Health,Salisbury NHS Foundation Trust,24-Sep-18,BEVERAGES & AMBIENT FOOD,Facilities Directorate,NHS LOGISTICS,1019108751,2.91,
Department of Health,Salisbury NHS Foundation Trust,24-Sep-18,BEVERAGES & AMBIENT FOOD,Facilities Directorate,NHS LOGISTICS,1019108751,32.22,
Department of Health,Salisbury NHS Foundation Trust,24-Sep-18,BEVERAGES & AMBIENT FOOD,Facilities Directorate,NHS LOGISTICS,1019108751,19.16,
Department of Health,Salisbury NHS Foundation Trust,24-Sep-18,BEVERAGES & AMBIENT FOOD,Facilities Directorate,NHS LOGISTICS,1019108751,7.68,
Department of Health,Salisbury NHS Foundation Trust,24-Sep-18,FLAVOURINGS HERBS SPICES,Facilities Directorate,NHS LOGISTICS,1019108751,1.42,
Department of Health,Salisbury NHS Foundation Trust,24-Sep-18,FLAVOURINGS HERBS SPICES,Facilities Directorate,NHS LOGISTICS,1019108751,2.3,
Department of Health,Salisbury NHS Foundation Trust,24-Sep-18,FLAVOURINGS HERBS SPICES,Facilities Directorate,NHS LOGISTICS,1019108751,3.1,
Department of Health,Salisbury NHS Foundation Trust,24-Sep-18,BEVERAGES & AMBIENT FOOD,Facilities Directorate,NHS LOGISTICS,1019108751,8.7,
Department of Health,Salisbury NHS Foundation Trust,24-Sep-18,BEVERAGES & AMBIENT FOOD,Facilities Directorate,NHS LOGISTICS,1019108751,12.42,
Department of Health,Salisbury NHS Foundation Trust,24-Sep-18,BEVERAGES & AMBIENT FOOD,Facilities Directorate,NHS LOGISTICS,1019108751,11.57,
Department of Health,Salisbury NHS Foundation Trust,24-Sep-18,EGGS MILK OTHER DAIRY PRODUCTS,Facilities Directorate,NHS LOGISTICS,1019108751,64.58,
Department of Health,Salisbury NHS Foundation Trust,24-Sep-18,DIETETIC FOOD,Facilities Directorate,NHS LOGISTICS,1019108751,8.04,
Department of Health,Salisbury NHS Foundation Trust,24-Sep-18,DIETETIC FOOD,Facilities Directorate,NHS LOGISTICS,1019108751,8.04,
Department of Health,Salisbury NHS Foundation Trust,24-Sep-18,BEVERAGES & AMBIENT FOOD,Facilities Directorate,NHS LOGISTICS,1019108751,8.4,
Department of Health,Salisbury NHS Foundation Trust,24-Sep-18,FLAVOURINGS HERBS SPICES,Facilities Directorate,NHS LOGISTICS,1019108751,13.03,
Department of Health,Salisbury NHS Foundation Trust,24-Sep-18,FLAVOURINGS HERBS SPICES,Facilities Directorate,NHS LOGISTICS,1019108751,30.21,
Department of Health,Salisbury NHS Foundation Trust,24-Sep-18,BEVERAGES & AMBIENT FOOD,Facilities Directorate,NHS LOGISTICS,1019108751,5.58,
Department of Health,Salisbury NHS Foundation Trust,24-Sep-18,FLAVOURINGS HERBS SPICES,Facilities Directorate,NHS LOGISTICS,1019108751,3.42,
Department of Health,Salisbury NHS Foundation Trust,24-Sep-18,BEVERAGES & AMBIENT FOOD,Facilities Directorate,NHS LOGISTICS,1019108751,5.6,
Department of Health,Salisbury NHS Foundation Trust,24-Sep-18,BEVERAGES & AMBIENT FOOD,Facilities Directorate,NHS LOGISTICS,1019108751,31.56,
Department of Health,Salisbury NHS Foundation Trust,24-Sep-18,BEVERAGES & AMBIENT FOOD,Facilities Directorate,NHS LOGISTICS,1019108751,6.05,
Department of Health,Salisbury NHS Foundation Trust,24-Sep-18,BEVERAGES & AMBIENT FOOD,Facilities Directorate,NHS LOGISTICS,1019108751,62.1,
Department of Health,Salisbury NHS Foundation Trust,24-Sep-18,BEVERAGES & AMBIENT FOOD,Facilities Directorate,NHS LOGISTICS,1019108751,3.05,
Department of Health,Salisbury NHS Foundation Trust,24-Sep-18,SURGICAL INSTRUMENTS: GENERAL,Surgery,NHS LOGISTICS,1019108751,152.93,
Department of Health,Salisbury NHS Foundation Trust,24-Sep-18,EGGS MILK OTHER DAIRY PRODUCTS,Facilities Directorate,NHS LOGISTICS,1019108751,64.58,
Department of Health,Salisbury NHS Foundation Trust,24-Sep-18,BEVERAGES & AMBIENT FOOD,Facilities Directorate,NHS LOGISTICS,1019108751,47.34,
Department of Health,Salisbury NHS Foundation Trust,24-Sep-18,BEVERAGES & AMBIENT FOOD,Facilities Directorate,NHS LOGISTICS,1019108751,57.48,
Department of Health,Salisbury NHS Foundation Trust,24-Sep-18,BEVERAGES & AMBIENT FOOD,Facilities Directorate,NHS LOGISTICS,1019108751,36.6,
Department of Health,Salisbury NHS Foundation Trust,24-Sep-18,BEVERAGES & AMBIENT FOOD,Facilities Directorate,NHS LOGISTICS,1019108751,6.21,
Department of Health,Salisbury NHS Foundation Trust,24-Sep-18,BEVERAGES & AMBIENT FOOD,Facilities Directorate,NHS LOGISTICS,1019108751,4.53,
Department of Health,Salisbury NHS Foundation Trust,24-Sep-18,BEVERAGES & AMBIENT FOOD,Facilities Directorate,NHS LOGISTICS,1019108751,5.04,
Department of Health,Salisbury NHS Foundation Trust,24-Sep-18,BEVERAGES & AMBIENT FOOD,Facilities Directorate,NHS LOGISTICS,1019108751,3.93,
Department of Health,Salisbury NHS Foundation Trust,24-Sep-18,BEVERAGES & AMBIENT FOOD,Facilities Directorate,NHS LOGISTICS,1019108751,7.72,
Department of Health,Salisbury NHS Foundation Trust,24-Sep-18,BEVERAGES & AMBIENT FOOD,Facilities Directorate,NHS LOGISTICS,1019108751,6.4,
Department of Health,Salisbury NHS Foundation Trust,24-Sep-18,BEVERAGES & AMBIENT FOOD,Facilities Directorate,NHS LOGISTICS,1019108751,3.19,
Department of Health,Salisbury NHS Foundation Trust,24-Sep-18,BEVERAGES & AMBIENT FOOD,Facilities Directorate,NHS LOGISTICS,1019108751,4.43,
Department of Health,Salisbury NHS Foundation Trust,24-Sep-18,FLAVOURINGS HERBS SPICES,Facilities Directorate,NHS LOGISTICS,1019108751,3.42,
Department of Health,Salisbury NHS Foundation Trust,24-Sep-18,COOKING & KITCHEN UTENSILS,Facilities Directorate,NHS LOGISTICS,1019108751,25,
Department of Health,Salisbury NHS Foundation Trust,24-Sep-18,BEVERAGES & AMBIENT FOOD,Facilities Directorate,NHS LOGISTICS,1019108751,18.72,
Department of Health,Salisbury NHS Foundation Trust,24-Sep-18,LIQUID REFRESHMENTS,Facilities Directorate,NHS LOGISTICS,1019108751,3.91,
Department of Health,Salisbury NHS Foundation Trust,24-Sep-18,BEVERAGES & AMBIENT FOOD,Facilities Directorate,NHS LOGISTICS,1019108751,10.72,
Department of Health,Salisbury NHS Foundation Trust,24-Sep-18,BEVERAGES & AMBIENT FOOD,Facilities Directorate,NHS LOGISTICS,1019108751,6.02,
Department of Health,Salisbury NHS Foundation Trust,24-Sep-18,MEAT GAME POULTRY FISH,Facilities Directorate,NHS LOGISTICS,1019108751,51.84,
Department of Health,Salisbury NHS Foundation Trust,24-Sep-18,FRUIT & VEGETABLES,Facilities Directorate,NHS LOGISTICS,1019108751,60,
Department of Health,Salisbury NHS Foundation Trust,24-Sep-18,BEVERAGES & AMBIENT FOOD,Facilities Directorate,NHS LOGISTICS,1019108751,11.86,
Department of Health,Salisbury NHS Foundation Trust,24-Sep-18,BEVERAGES & AMBIENT FOOD,Facilities Directorate,NHS LOGISTICS,1019108751,169.92,
Department of Health,Salisbury NHS Foundation Trust,24-Sep-18,BEVERAGES & AMBIENT FOOD,Facilities Directorate,NHS LOGISTICS,1019108751,21.48,
Department of Health,Salisbury NHS Foundation Trust,24-Sep-18,FRUIT & VEGETABLES,Facilities Directorate,NHS LOGISTICS,1019108751,11.7,
Department of Health,Salisbury NHS Foundation Trust,24-Sep-18,FRUIT & VEGETABLES,Facilities Directorate,NHS LOGISTICS,1019108751,12.78,
Department of Health,Salisbury NHS Foundation Trust,24-Sep-18,FRUIT & VEGETABLES,Facilities Directorate,NHS LOGISTICS,1019108751,10.62,
Department of Health,Salisbury NHS Foundation Trust,24-Sep-18,FRUIT & VEGETABLES,Facilities Directorate,NHS LOGISTICS,1019108751,66.36,
Department of Health,Salisbury NHS Foundation Trust,24-Sep-18,FRUIT & VEGETABLES,Facilities Directorate,NHS LOGISTICS,1019108751,35.64,
Department of Health,Salisbury NHS Foundation Trust,24-Sep-18,FRUIT & VEGETABLES,Facilities Directorate,NHS LOGISTICS,1019108751,20.76,
Department of Health,Salisbury NHS Foundation Trust,24-Sep-18,FRUIT & VEGETABLES,Facilities Directorate,NHS LOGISTICS,1019108751,17.52,
Department of Health,Salisbury NHS Foundation Trust,24-Sep-18,FRUIT & VEGETABLES,Facilities Directorate,NHS LOGISTICS,1019108751,4.8,
Department of Health,Salisbury NHS Foundation Trust,24-Sep-18,BEVERAGES & AMBIENT FOOD,Facilities Directorate,NHS LOGISTICS,1019108751,7.68,
Department of Health,Salisbury NHS Foundation Trust,24-Sep-18,LIQUID REFRESHMENTS,Facilities Directorate,NHS LOGISTICS,1019108751,9.17,
Department of Health,Salisbury NHS Foundation Trust,24-Sep-18,LIQUID REFRESHMENTS,Facilities Directorate,NHS LOGISTICS,1019108751,26.33,
Department of Health,Salisbury NHS Foundation Trust,24-Sep-18,LIQUID REFRESHMENTS,Facilities Directorate,NHS LOGISTICS,1019108751,26.5,
Department of Health,Salisbury NHS Foundation Trust,24-Sep-18,LIQUID REFRESHMENTS,Facilities Directorate,NHS LOGISTICS,1019108751,26.5,
Department of Health,Salisbury NHS Foundation Trust,24-Sep-18,BEVERAGES & AMBIENT FOOD,Facilities Directorate,NHS LOGISTICS,1019108751,32.34,
Department of Health,Salisbury NHS Foundation Trust,24-Sep-18,BEVERAGES & AMBIENT FOOD,Facilities Directorate,NHS LOGISTICS,1019108751,3.52,
Department of Health,Salisbury NHS Foundation Trust,24-Sep-18,BEVERAGES & AMBIENT FOOD,Facilities Directorate,NHS LOGISTICS,1019108751,23.14,
Department of Health,Salisbury NHS Foundation Trust,24-Sep-18,BEVERAGES & AMBIENT FOOD,Facilities Directorate,NHS LOGISTICS,1019108751,8.87,
Department of Health,Salisbury NHS Foundation Trust,24-Sep-18,BEVERAGES & AMBIENT FOOD,Facilities Directorate,NHS LOGISTICS,1019108751,6.05,
Department of Health,Salisbury NHS Foundation Trust,24-Sep-18,BEVERAGES & AMBIENT FOOD,Facilities Directorate,NHS LOGISTICS,1019108751,20.61,
Department of Health,Salisbury NHS Foundation Trust,24-Sep-18,FLAVOURINGS HERBS SPICES,Facilities Directorate,NHS LOGISTICS,1019108751,25.06,
Department of Health,Salisbury NHS Foundation Trust,24-Sep-18,BEVERAGES & AMBIENT FOOD,Facilities Directorate,NHS LOGISTICS,1019108751,40.23,
Department of Health,Salisbury NHS Foundation Trust,24-Sep-18,BEVERAGES & AMBIENT FOOD,Facilities Directorate,NHS LOGISTICS,1019108751,10.26,
Department of Health,Salisbury NHS Foundation Trust,24-Sep-18,BEVERAGES & AMBIENT FOOD,Facilities Directorate,NHS LOGISTICS,1019108751,77.94,
Department of Health,Salisbury NHS Foundation Trust,24-Sep-18,BEVERAGES & AMBIENT FOOD,Facilities Directorate,NHS LOGISTICS,1019108751,17.46,
Department of Health,Salisbury NHS Foundation Trust,24-Sep-18,BEVERAGES & AMBIENT FOOD,Facilities Directorate,NHS LOGISTICS,1019108751,19.68,
Department of Health,Salisbury NHS Foundation Trust,24-Sep-18,BEVERAGES & AMBIENT FOOD,Facilities Directorate,NHS LOGISTICS,1019108751,7.56,
Department of Health,Salisbury NHS Foundation Trust,24-Sep-18,FLAVOURINGS HERBS SPICES,Facilities Directorate,NHS LOGISTICS,1019108751,1.55,
Department of Health,Salisbury NHS Foundation Trust,24-Sep-18,BEVERAGES & AMBIENT FOOD,Facilities Directorate,NHS LOGISTICS,1019108751,10.8,
Department of Health,Salisbury NHS Foundation Trust,24-Sep-18,BEVERAGES & AMBIENT FOOD,Facilities Directorate,NHS LOGISTICS,1019108751,8.9,
Department of Health,Salisbury NHS Foundation Trust,24-Sep-18,BEVERAGES & AMBIENT FOOD,Facilities Directorate,NHS LOGISTICS,1019108751,8.9,
Department of Health,Salisbury NHS Foundation Trust,24-Sep-18,FLAVOURINGS HERBS SPICES,Facilities Directorate,NHS LOGISTICS,1019108751,1.42,
Department of Health,Salisbury NHS Foundation Trust,24-Sep-18,BEVERAGES & AMBIENT FOOD,Facilities Directorate,NHS LOGISTICS,1019108751,4.55,
Department of Health,Salisbury NHS Foundation Trust,24-Sep-18,BEVERAGES & AMBIENT FOOD,Facilities Directorate,NHS LOGISTICS,1019108751,6.94,
Department of Health,Salisbury NHS Foundation Trust,24-Sep-18,LIQUID REFRESHMENTS,Facilities Directorate,NHS LOGISTICS,1019108751,210.6,
Department of Health,Salisbury NHS Foundation Trust,24-Sep-18,LIQUID REFRESHMENTS,Facilities Directorate,NHS LOGISTICS,1019108751,19.75,
Department of Health,Salisbury NHS Foundation Trust,24-Sep-18,LIQUID REFRESHMENTS,Facilities Directorate,NHS LOGISTICS,1019108751,24.8,
Department of Health,Salisbury NHS Foundation Trust,24-Sep-18,LIQUID REFRESHMENTS,Facilities Directorate,NHS LOGISTICS,1019108751,5.07,
Department of Health,Salisbury NHS Foundation Trust,24-Sep-18,LIQUID REFRESHMENTS,Facilities Directorate,NHS LOGISTICS,1019108751,5.07,
Department of Health,Salisbury NHS Foundation Trust,24-Sep-18,LIQUID REFRESHMENTS,Facilities Directorate,NHS LOGISTICS,1019108751,17.45,
Department of Health,Salisbury NHS Foundation Trust,24-Sep-18,BABY TEXTURE MODIFIED FOODS,Facilities Directorate,NHS LOGISTICS,1019108751,24.03,
Department of Health,Salisbury NHS Foundation Trust,24-Sep-18,DIETETIC FOOD,Facilities Directorate,NHS LOGISTICS,1019108751,4.02,
Department of Health,Salisbury NHS Foundation Trust,24-Sep-18,BEVERAGES & AMBIENT FOOD,Facilities Directorate,NHS LOGISTICS,1019108751,105.48,
Department of Health,Salisbury NHS Foundation Trust,24-Sep-18,TISSUES HAND TOWELS & TOILET PAPER,Facilities Directorate,NHS LOGISTICS,1019108751,10.95,
Department of Health,Salisbury NHS Foundation Trust,24-Sep-18,FRUIT & VEGETABLES,Facilities Directorate,NHS LOGISTICS,1019108751,5.24,
Department of Health,Salisbury NHS Foundation Trust,24-Sep-18,FRUIT & VEGETABLES,Facilities Directorate,NHS LOGISTICS,1019108751,12.96,
Department of Health,Salisbury NHS Foundation Trust,24-Sep-18,FRUIT & VEGETABLES,Facilities Directorate,NHS LOGISTICS,1019108751,10.2,
Department of Health,Salisbury NHS Foundation Trust,24-Sep-18,FRUIT & VEGETABLES,Facilities Directorate,NHS LOGISTICS,1019108751,82.32,
Department of Health,Salisbury NHS Foundation Trust,24-Sep-18,FRUIT & VEGETABLES,Facilities Directorate,NHS LOGISTICS,1019108751,34.08,
Department of Health,Salisbury NHS Foundation Trust,24-Sep-18,FRUIT & VEGETABLES,Facilities Directorate,NHS LOGISTICS,1019108751,25.2,
Department of Health,Salisbury NHS Foundation Trust,24-Sep-18,FRUIT & VEGETABLES,Facilities Directorate,NHS LOGISTICS,1019108751,19.86,
Department of Health,Salisbury NHS Foundation Trust,24-Sep-18,FRUIT & VEGETABLES,Facilities Directorate,NHS LOGISTICS,1019108751,13.2,
Department of Health,Salisbury NHS Foundation Trust,24-Sep-18,MEDSURGCONS - OTHER,Facilities Directorate,NHS LOGISTICS,1019108751,21.54,
Department of Health,Salisbury NHS Foundation Trust,24-Sep-18,MEDSURGCONS - OTHER,Facilities Directorate,NHS LOGISTICS,1019108751,23.92,
Department of Health,Salisbury NHS Foundation Trust,24-Sep-18,LIQUID REFRESHMENTS,Facilities Directorate,NHS LOGISTICS,1019108751,15.47,
Department of Health,Salisbury NHS Foundation Trust,24-Sep-18,M & S EQUIPELECTEQUIPINST - OTHER,Clinical Support and Family Services,NHS LOGISTICS,1019108751,49.26,
Department of Health,Salisbury NHS Foundation Trust,24-Sep-18,BABY TEXTURE MODIFIED FOODS,Clinical Support and Family Services,NHS LOGISTICS,1019108751,23.56,
Department of Health,Salisbury NHS Foundation Trust,24-Sep-18,MEDSURGCONS-SUTURES,Surgery,NHS LOGISTICS,1019108751,11.11,
Department of Health,Salisbury NHS Foundation Trust,24-Sep-18,M & S EQUIPELECTEQUIPINST - OTHER,Critical care,NHS LOGISTICS,1019108751,2.4,
Department of Health,Salisbury NHS Foundation Trust,24-Sep-18,MEDSURGCONS - OTHER,Critical care,NHS LOGISTICS,1019108751,38.81,
Department of Health,Salisbury NHS Foundation Trust,24-Sep-18,DRESSINGS - PRE STERILE,Medicine,NHS LOGISTICS,1019108751,3.11,
Department of Health,Salisbury NHS Foundation Trust,24-Sep-18,DRESSINGS - PRE STERILE,Medicine,NHS LOGISTICS,1019108751,3.11,
Department of Health,Salisbury NHS Foundation Trust,24-Sep-18,DRESSINGS - PRE STERILE,Medicine,NHS LOGISTICS,1019108751,3.11,
Department of Health,Salisbury NHS Foundation Trust,24-Sep-18,ADULTS HEARING AIDS,Surgery,NHS LOGISTICS,1019108751,8.33,
Department of Health,Salisbury NHS Foundation Trust,24-Sep-18,DRESSINGS - PRE STERILE,Critical care,NHS LOGISTICS,1019108751,10.06,
Department of Health,Salisbury NHS Foundation Trust,24-Sep-18,DRESSINGS - PRE STERILE,Clinical Support and Family Services,NHS LOGISTICS,1019108751,0.59,
Department of Health,Salisbury NHS Foundation Trust,24-Sep-18,DRESSINGS - PRE STERILE,Clinical Support and Family Services,NHS LOGISTICS,1019108751,0.76,
Department of Health,Salisbury NHS Foundation Trust,24-Sep-18,MEDSURGCONS - OTHER,Medicine,NHS LOGISTICS,1019108751,3.65,
Department of Health,Salisbury NHS Foundation Trust,24-Sep-18,MEDSURGCONS - OTHER,Surgery,NHS LOGISTICS,1019108751,1.53,
Department of Health,Salisbury NHS Foundation Trust,24-Sep-18,DRESSINGS - PRE STERILE,Critical care,NHS LOGISTICS,1019108751,0.59,
Department of Health,Salisbury NHS Foundation Trust,24-Sep-18,DRESSINGS - PRE STERILE,Medicine,NHS LOGISTICS,1019108751,1.41,
Department of Health,Salisbury NHS Foundation Trust,24-Sep-18,DRESSINGS - PRE STERILE,Medicine,NHS LOGISTICS,1019108751,0.59,
Department of Health,Salisbury NHS Foundation Trust,24-Sep-18,DRESSINGS - PRE STERILE,Medicine,NHS LOGISTICS,1019108751,0.76,
Department of Health,Salisbury NHS Foundation Trust,24-Sep-18,DRESSINGS - PRE STERILE,Critical care,NHS LOGISTICS,1019108751,16.92,
Department of Health,Salisbury NHS Foundation Trust,24-Sep-18,PATIENT APPLIANCES,Critical care,NHS LOGISTICS,1019108751,1.44,
Department of Health,Salisbury NHS Foundation Trust,24-Sep-18,TISSUES HAND TOWELS & TOILET PAPER,Clinical Support and Family Services,NHS LOGISTICS,1019108751,2.95,
Department of Health,Salisbury NHS Foundation Trust,24-Sep-18,MEDSURGCONS - OTHER,Clinical Support and Family Services,NHS LOGISTICS,1019108751,7.76,
Department of Health,Salisbury NHS Foundation Trust,24-Sep-18,MEDSURGCONS - OTHER,Surgery,NHS LOGISTICS,1019108751,14.4,
Department of Health,Salisbury NHS Foundation Trust,24-Sep-18,SURGICAL INSTRUMENTS: GENERAL,Surgery,NHS LOGISTICS,1019108751,17.18,
Department of Health,Salisbury NHS Foundation Trust,24-Sep-18,MEDSURGCONS-SUTURES,Surgery,NHS LOGISTICS,1019108751,15.15,
Department of Health,Salisbury NHS Foundation Trust,24-Sep-18,OTHER MEDICAL SUPPLIES,Surgery,NHS LOGISTICS,1019108751,29.99,
Department of Health,Salisbury NHS Foundation Trust,24-Sep-18,PAPER ITEMS GENERAL STATIONERY SUNDRIES,Surgery,NHS LOGISTICS,1019108751,6.71,
Department of Health,Salisbury NHS Foundation Trust,24-Sep-18,ADULTS HEARING AIDS,Surgery,NHS LOGISTICS,1019108751,106.13,
Department of Health,Salisbury NHS Foundation Trust,24-Sep-18,LAB EQUIP-LABORATORY APPARATUS,Clinical Support and Family Services,NHS LOGISTICS,1019108751,30.64,
Department of Health,Salisbury NHS Foundation Trust,24-Sep-18,MEDPROSTH-OTHOPAEDICS TRAUMA PRODUCTS,Critical care,NHS LOGISTICS,1019108751,8.23,
Department of Health,Salisbury NHS Foundation Trust,24-Sep-18,TOILETRIES PERSONAL HYGIENE PRODUCTS,Nursing Directorate,NHS LOGISTICS,1019108751,23.06,
Department of Health,Salisbury NHS Foundation Trust,24-Sep-18,TOILETRIES PERSONAL HYGIENE PRODUCTS,Surgery,NHS LOGISTICS,1019108751,1.85,
Department of Health,Salisbury NHS Foundation Trust,24-Sep-18,DRESSINGS - PRE STERILE,Surgery,NHS LOGISTICS,1019108751,2.8,
Department of Health,Salisbury NHS Foundation Trust,24-Sep-18,DRESSINGS - PRE STERILE,Surgery,NHS LOGISTICS,1019108751,0.19,
Department of Health,Salisbury NHS Foundation Trust,24-Sep-18,ELECTRICAL EQUIPMENT x,Medicine,NHS LOGISTICS,1019108751,4.4,
Department of Health,Salisbury NHS Foundation Trust,24-Sep-18,OTHER MEDICAL SUPPLIES,Clinical Support and Family Services,NHS LOGISTICS,1019108751,24.42,
Department of Health,Salisbury NHS Foundation Trust,24-Sep-18,DRESSINGS - PRE STERILE,Surgery,NHS LOGISTICS,1019108751,0.76,
Department of Health,Salisbury NHS Foundation Trust,24-Sep-18,MEDSURGCONS - OTHER,Clinical Support and Family Services,NHS LOGISTICS,1019108751,5.98,
Department of Health,Salisbury NHS Foundation Trust,24-Sep-18,SERVICES FROM NHS BODIES,Clinical Support and Family Services,NHS LOGISTICS,1019108751,4.98,
Department of Health,Salisbury NHS Foundation Trust,24-Sep-18,MEDSURGCONS - OTHER,Medicine,NHS LOGISTICS,1019108751,384,
Department of Health,Salisbury NHS Foundation Trust,24-Sep-18,MEDSURGCONS - OTHER,Medicine,NHS LOGISTICS,1019108751,384,
Department of Health,Salisbury NHS Foundation Trust,24-Sep-18,MEDSURGCONS - OTHER,Medicine,NHS LOGISTICS,1019108751,440.82,
Department of Health,Salisbury NHS Foundation Trust,24-Sep-18,MEDSURGCONS - OTHER,Medicine,NHS LOGISTICS,1019108751,440.82,
Department of Health,Salisbury NHS Foundation Trust,24-Sep-18,MEDSURGCONS - OTHER,Medicine,NHS LOGISTICS,1019108751,440.82,
Department of Health,Salisbury NHS Foundation Trust,24-Sep-18,MEDSURGCONS - OTHER,Medicine,NHS LOGISTICS,1019108751,1763.28,
Department of Health,Salisbury NHS Foundation Trust,24-Sep-18,MEDSURGCONS - OTHER,Medicine,NHS LOGISTICS,1019108751,1322.46,
Department of Health,Salisbury NHS Foundation Trust,24-Sep-18,MEDSURGCONS - OTHER,Medicine,NHS LOGISTICS,1019108751,24.68,
Department of Health,Salisbury NHS Foundation Trust,24-Sep-18,MEDSURGCONS - OTHER,Medicine,NHS LOGISTICS,1019108751,33.22,
Department of Health,Salisbury NHS Foundation Trust,24-Sep-18,MEDSURGCONS - OTHER,Medicine,NHS LOGISTICS,1019108751,33.22,
Department of Health,Salisbury NHS Foundation Trust,24-Sep-18,MEDSURGCONS - OTHER,Medicine,NHS LOGISTICS,1019108751,18.19,
Department of Health,Salisbury NHS Foundation Trust,24-Sep-18,MEDSURGCONS - OTHER,Medicine,NHS LOGISTICS,1019108751,11.22,
Department of Health,Salisbury NHS Foundation Trust,24-Sep-18,MEDSURGCONS - OTHER,Medicine,NHS LOGISTICS,1019108751,163.27,
Department of Health,Salisbury NHS Foundation Trust,24-Sep-18,MEDSURGCONS - OTHER,Medicine,NHS LOGISTICS,1019108751,81.63,
Department of Health,Salisbury NHS Foundation Trust,24-Sep-18,DRESSINGS - PRE STERILE,Critical care,NHS LOGISTICS,1019108751,31.65,
Department of Health,Salisbury NHS Foundation Trust,24-Sep-18,OTHER MEDICAL SUPPLIES,Surgery,NHS LOGISTICS,1019108751,4.47,
Department of Health,Salisbury NHS Foundation Trust,24-Sep-18,DRESSINGS - PRE STERILE,Medicine,NHS LOGISTICS,1019108751,2.8,
Department of Health,Salisbury NHS Foundation Trust,24-Sep-18,DRESSINGS - PRE STERILE,Medicine,NHS LOGISTICS,1019108751,0.5,
Department of Health,Salisbury NHS Foundation Trust,24-Sep-18,PATIENTS INCONTINENCE,Medicine,NHS LOGISTICS,1019108751,0.52,
Department of Health,Salisbury NHS Foundation Trust,24-Sep-18,PATIENTS INCONTINENCE,Medicine,NHS LOGISTICS,1019108751,2.48,
Department of Health,Salisbury NHS Foundation Trust,24-Sep-18,TUBES,Medicine,NHS LOGISTICS,1019108751,1.37,
Department of Health,Salisbury NHS Foundation Trust,24-Sep-18,DRESSINGS - PRE STERILE,Medicine,NHS LOGISTICS,1019108751,0.19,
Department of Health,Salisbury NHS Foundation Trust,24-Sep-18,OTHER MEDICAL SUPPLIES,Medicine,NHS LOGISTICS,1019108751,0.75,
Department of Health,Salisbury NHS Foundation Trust,24-Sep-18,PATIENT APPLIANCES,Medicine,NHS LOGISTICS,1019108751,0.67,
Department of Health,Salisbury NHS Foundation Trust,24-Sep-18,MEDSURGCONS - OTHER,Medicine,NHS LOGISTICS,1019108751,0.78,
Department of Health,Salisbury NHS Foundation Trust,24-Sep-18,MEDSURGCONS - OTHER,Medicine,NHS LOGISTICS,1019108751,2.86,
Department of Health,Salisbury NHS Foundation Trust,24-Sep-18,TISSUES HAND TOWELS & TOILET PAPER,Medicine,NHS LOGISTICS,1019108751,0.14,
Department of Health,Salisbury NHS Foundation Trust,24-Sep-18,MEDSURGCONS - OTHER,Medicine,NHS LOGISTICS,1019108751,0.18,
Department of Health,Salisbury NHS Foundation Trust,24-Sep-18,NON DISPOSABLE BED LINEN,Medicine,NHS LOGISTICS,1019108751,3.75,
Department of Health,Salisbury NHS Foundation Trust,24-Sep-18,DISPOSABLE THEATRE DRAPES WIPES,Medicine,NHS LOGISTICS,1019108751,0.71,
Department of Health,Salisbury NHS Foundation Trust,24-Sep-18,TOILETRIES PERSONAL HYGIENE PRODUCTS,Surgery,NHS LOGISTICS,1019108751,3.43,
Department of Health,Salisbury NHS Foundation Trust,24-Sep-18,DISPOSABLE THEATRE DRAPES WIPES,Clinical Support and Family Services,NHS LOGISTICS,1019108751,3.14,
Department of Health,Salisbury NHS Foundation Trust,24-Sep-18,OPTICAL  -  OTHER,Surgery,NHS LOGISTICS,1019108751,17.81,
Department of Health,Salisbury NHS Foundation Trust,24-Sep-18,CLEANING MATERIALS PRODUCTS SUNDRIES,Surgery,NHS LOGISTICS,1019108751,1.76,
Department of Health,Salisbury NHS Foundation Trust,24-Sep-18,DRESSINGS - PRE STERILE,Surgery,NHS LOGISTICS,1019108751,0.59,
Department of Health,Salisbury NHS Foundation Trust,24-Sep-18,DRESSINGS - PRE STERILE,Surgery,NHS LOGISTICS,1019108751,1.15,
Department of Health,Salisbury NHS Foundation Trust,24-Sep-18,DRESSINGS - PRE STERILE,Surgery,NHS LOGISTICS,1019108751,0.79,
Department of Health,Salisbury NHS Foundation Trust,24-Sep-18,MEDSURGCONS - OTHER,Surgery,NHS LOGISTICS,1019108751,2.4,
Department of Health,Salisbury NHS Foundation Trust,24-Sep-18,DISPOSABLE THEATRE DRAPES WIPES,Surgery,NHS LOGISTICS,1019108751,7.49,
Department of Health,Salisbury NHS Foundation Trust,24-Sep-18,DRESSINGS - PRE STERILE,Clinical Support and Family Services,NHS LOGISTICS,1019108751,2.58,
Department of Health,Salisbury NHS Foundation Trust,24-Sep-18,M & S EQUIPELECTEQUIPINST - OTHER,Medicine,NHS LOGISTICS,1019108751,1.68,
Department of Health,Salisbury NHS Foundation Trust,24-Sep-18,TOILETRIES PERSONAL HYGIENE PRODUCTS,Medicine,NHS LOGISTICS,1019108751,0.62,
Department of Health,Salisbury NHS Foundation Trust,24-Sep-18,PATIENTS INCONTINENCE,Medicine,NHS LOGISTICS,1019108751,2.48,
Department of Health,Salisbury NHS Foundation Trust,24-Sep-18,DRESSINGS - PRE STERILE,Medicine,NHS LOGISTICS,1019108751,30,
Department of Health,Salisbury NHS Foundation Trust,24-Sep-18,ANAESTHETIC EQUIPMENT ACCESSORIES,Medicine,NHS LOGISTICS,1019108751,0.5,
Department of Health,Salisbury NHS Foundation Trust,24-Sep-18,PATIENT APPLIANCES,Medicine,NHS LOGISTICS,1019108751,0.67,
Department of Health,Salisbury NHS Foundation Trust,24-Sep-18,PATIENT APPLIANCES,Medicine,NHS LOGISTICS,1019108751,0.67,
Department of Health,Salisbury NHS Foundation Trust,24-Sep-18,PATIENT APPLIANCES,Medicine,NHS LOGISTICS,1019108751,0.67,
Department of Health,Salisbury NHS Foundation Trust,24-Sep-18,MEDSURGCONS - OTHER,Medicine,NHS LOGISTICS,1019108751,5.42,
Department of Health,Salisbury NHS Foundation Trust,24-Sep-18,TISSUES HAND TOWELS & TOILET PAPER,Medicine,NHS LOGISTICS,1019108751,0.14,
Department of Health,Salisbury NHS Foundation Trust,24-Sep-18,NON DISPOSABLE BED LINEN,Medicine,NHS LOGISTICS,1019108751,4.5,
Department of Health,Salisbury NHS Foundation Trust,24-Sep-18,DISPOSABLE THEATRE DRAPES WIPES,Medicine,NHS LOGISTICS,1019108751,0.71,
Department of Health,Salisbury NHS Foundation Trust,24-Sep-18,DRESSINGS - PRE STERILE,Medicine,NHS LOGISTICS,1019108751,0.97,
Department of Health,Salisbury NHS Foundation Trust,24-Sep-18,DRESSINGS - PRE STERILE,Medicine,NHS LOGISTICS,1019108751,0.66,
Department of Health,Salisbury NHS Foundation Trust,24-Sep-18,PATIENT APPLIANCES,Medicine,NHS LOGISTICS,1019108751,9.47,
Department of Health,Salisbury NHS Foundation Trust,24-Sep-18,PATIENT APPLIANCES,Medicine,NHS LOGISTICS,1019108751,1.07,
Department of Health,Salisbury NHS Foundation Trust,24-Sep-18,DRESSINGS - PRE STERILE,Medicine,NHS LOGISTICS,1019108751,0.21,
Department of Health,Salisbury NHS Foundation Trust,24-Sep-18,DRESSINGS - PRE STERILE,Medicine,NHS LOGISTICS,1019108751,0.36,
Department of Health,Salisbury NHS Foundation Trust,24-Sep-18,DRESSINGS - PRE STERILE,Medicine,NHS LOGISTICS,1019108751,5.6,
Department of Health,Salisbury NHS Foundation Trust,24-Sep-18,M & S EQUIPELECTEQUIPINST - OTHER,Medicine,NHS LOGISTICS,1019108751,4.05,
Department of Health,Salisbury NHS Foundation Trust,24-Sep-18,DRESSINGS - PRE STERILE,Medicine,NHS LOGISTICS,1019108751,2.24,
Department of Health,Salisbury NHS Foundation Trust,24-Sep-18,OTHER MEDICAL SUPPLIES,Medicine,NHS LOGISTICS,1019108751,2.74,
Department of Health,Salisbury NHS Foundation Trust,24-Sep-18,DRUGS,Medicine,NHS LOGISTICS,1019108751,1.87,
Department of Health,Salisbury NHS Foundation Trust,24-Sep-18,SERVICES FROM NHS BODIES,Medicine,NHS LOGISTICS,1019108751,0.89,
Department of Health,Salisbury NHS Foundation Trust,24-Sep-18,MEDSURGCONS - OTHER,Medicine,NHS LOGISTICS,1019108751,11.96,
Department of Health,Salisbury NHS Foundation Trust,24-Sep-18,DRESSINGS - PRE STERILE,Medicine,NHS LOGISTICS,1019108751,0.57,
Department of Health,Salisbury NHS Foundation Trust,24-Sep-18,MEDSURGCONS - OTHER,Medicine,NHS LOGISTICS,1019108751,2.86,
Department of Health,Salisbury NHS Foundation Trust,24-Sep-18,MEDSURGCONS - OTHER,Medicine,NHS LOGISTICS,1019108751,1.77,
Department of Health,Salisbury NHS Foundation Trust,24-Sep-18,NON DISPOSABLE BED LINEN,Medicine,NHS LOGISTICS,1019108751,1.5,
Department of Health,Salisbury NHS Foundation Trust,24-Sep-18,DISPOSABLE THEATRE DRAPES WIPES,Medicine,NHS LOGISTICS,1019108751,2.84,
Department of Health,Salisbury NHS Foundation Trust,24-Sep-18,PAPER ITEMS GENERAL STATIONERY SUNDRIES,Surgery,NHS LOGISTICS,1019108751,6.71,
Department of Health,Salisbury NHS Foundation Trust,24-Sep-18,CLEANING MATERIALS PRODUCTS SUNDRIES,Clinical Support and Family Services,NHS LOGISTICS,1019108751,1.76,
Department of Health,Salisbury NHS Foundation Trust,24-Sep-18,DRESSINGS - PRE STERILE,Surgery,NHS LOGISTICS,1019108751,0.43,
Department of Health,Salisbury NHS Foundation Trust,24-Sep-18,DRESSINGS - PRE STERILE,Surgery,NHS LOGISTICS,1019108751,0.36,
Department of Health,Salisbury NHS Foundation Trust,24-Sep-18,DRESSINGS - PRE STERILE,Surgery,NHS LOGISTICS,1019108751,3.48,
Department of Health,Salisbury NHS Foundation Trust,24-Sep-18,DRESSINGS - PRE STERILE,Surgery,NHS LOGISTICS,1019108751,111.23,
Department of Health,Salisbury NHS Foundation Trust,24-Sep-18,MEDSURGCONS-SUTURES,Surgery,NHS LOGISTICS,1019108751,9.3,
Department of Health,Salisbury NHS Foundation Trust,24-Sep-18,DISPOSABLE THEATRE DRAPES WIPES,Surgery,NHS LOGISTICS,1019108751,2.13,
Department of Health,Salisbury NHS Foundation Trust,24-Sep-18,PAPER ITEMS GENERAL STATIONERY SUNDRIES,Clinical Support and Family Services,NHS LOGISTICS,1019108751,5.04,
Department of Health,Salisbury NHS Foundation Trust,24-Sep-18,M & S EQUIPELECTEQUIPINST - OTHER,Clinical Support and Family Services,NHS LOGISTICS,1019108751,70.1,
Department of Health,Salisbury NHS Foundation Trust,24-Sep-18,M & S EQUIPELECTEQUIPINST - OTHER,Clinical Support and Family Services,NHS LOGISTICS,1019108751,30.93,
Department of Health,Salisbury NHS Foundation Trust,24-Sep-18,MEDSURGCONS - OTHER,Facilities Directorate,NHS LOGISTICS,1019108751,7.57,
Department of Health,Salisbury NHS Foundation Trust,24-Sep-18,BAGS SACKS - OTHER,Facilities Directorate,NHS LOGISTICS,1019108751,25.8,
Department of Health,Salisbury NHS Foundation Trust,24-Sep-18,BAGS SACKS - OTHER,Facilities Directorate,NHS LOGISTICS,1019108751,2.03,
Department of Health,Salisbury NHS Foundation Trust,24-Sep-18,BAGS SACKS - OTHER,Facilities Directorate,NHS LOGISTICS,1019108751,16.21,
Department of Health,Salisbury NHS Foundation Trust,24-Sep-18,LIQUID REFRESHMENTS,Facilities Directorate,NHS LOGISTICS,1019108751,1.56,
Department of Health,Salisbury NHS Foundation Trust,24-Sep-18,CLEANING MATERIALS PRODUCTS SUNDRIES,Facilities Directorate,NHS LOGISTICS,1019108751,9.28,
Department of Health,Salisbury NHS Foundation Trust,24-Sep-18,TOILETRIES PERSONAL HYGIENE PRODUCTS,Facilities Directorate,NHS LOGISTICS,1019108751,48.56,
Department of Health,Salisbury NHS Foundation Trust,24-Sep-18,CLEANING MATERIALS PRODUCTS SUNDRIES,Facilities Directorate,NHS LOGISTICS,1019108751,15.96,
Department of Health,Salisbury NHS Foundation Trust,24-Sep-18,CLEANING MATERIALS PRODUCTS SUNDRIES,Facilities Directorate,NHS LOGISTICS,1019108751,5.64,
Department of Health,Salisbury NHS Foundation Trust,24-Sep-18,DISPOSABLE THEATRE DRAPES WIPES,Facilities Directorate,NHS LOGISTICS,1019108751,13.68,
Department of Health,Salisbury NHS Foundation Trust,24-Sep-18,MEDSURGCONS - OTHER,Medicine,NHS LOGISTICS,1019108751,146.94,
Department of Health,Salisbury NHS Foundation Trust,24-Sep-18,MEDSURGCONS - OTHER,Medicine,NHS LOGISTICS,1019108751,48.98,
Department of Health,Salisbury NHS Foundation Trust,24-Sep-18,MEDSURGCONS - OTHER,Medicine,NHS LOGISTICS,1019108751,11.22,
Department of Health,Salisbury NHS Foundation Trust,24-Sep-18,LAB EQUIP-LABORATORY APPARATUS,Clinical Support and Family Services,NHS LOGISTICS,1019108751,149.73,
Department of Health,Salisbury NHS Foundation Trust,24-Sep-18,MEDSURGCONS-SUTURES,Medicine,NHS LOGISTICS,1019108751,13.27,
Department of Health,Salisbury NHS Foundation Trust,24-Sep-18,M & S EQUIPELECTEQUIPINST - OTHER,Medicine,NHS LOGISTICS,1019108751,1.68,
Department of Health,Salisbury NHS Foundation Trust,24-Sep-18,TOILETRIES PERSONAL HYGIENE PRODUCTS,Medicine,NHS LOGISTICS,1019108751,0.31,
Department of Health,Salisbury NHS Foundation Trust,24-Sep-18,OTHER MEDICAL SUPPLIES,Medicine,NHS LOGISTICS,1019108751,0.38,
Department of Health,Salisbury NHS Foundation Trust,24-Sep-18,NON DISPOSABLE BED LINEN,Medicine,NHS LOGISTICS,1019108751,0.75,
Department of Health,Salisbury NHS Foundation Trust,24-Sep-18,TOILETRIES PERSONAL HYGIENE PRODUCTS,Medicine,NHS LOGISTICS,1019108751,0.31,
Department of Health,Salisbury NHS Foundation Trust,24-Sep-18,OTHER MEDICAL SUPPLIES,Medicine,NHS LOGISTICS,1019108751,0.38,
Department of Health,Salisbury NHS Foundation Trust,24-Sep-18,OTHER MEDICAL SUPPLIES,Medicine,NHS LOGISTICS,1019108751,0.4,
Department of Health,Salisbury NHS Foundation Trust,24-Sep-18,MEDSURGCONS - OTHER,Medicine,NHS LOGISTICS,1019108751,1.43,
Department of Health,Salisbury NHS Foundation Trust,24-Sep-18,DRESSINGS  -  PROCEDURE PACKS,Medicine,NHS LOGISTICS,1019108751,137.51,
Department of Health,Salisbury NHS Foundation Trust,24-Sep-18,DRESSINGS - PRE STERILE,Critical care,NHS LOGISTICS,1019108751,3.8,
Department of Health,Salisbury NHS Foundation Trust,24-Sep-18,DRESSINGS - PRE STERILE,Critical care,NHS LOGISTICS,1019108751,11.63,
Department of Health,Salisbury NHS Foundation Trust,24-Sep-18,DRESSINGS - PRE STERILE,Critical care,NHS LOGISTICS,1019108751,1.87,
Department of Health,Salisbury NHS Foundation Trust,24-Sep-18,DRESSINGS - PRE STERILE,Critical care,NHS LOGISTICS,1019108751,4.83,
Department of Health,Salisbury NHS Foundation Trust,24-Sep-18,DRESSINGS - PRE STERILE,Critical care,NHS LOGISTICS,1019108751,8.71,
Department of Health,Salisbury NHS Foundation Trust,24-Sep-18,DRESSINGS - PRE STERILE,Critical care,NHS LOGISTICS,1019108751,11.63,
Department of Health,Salisbury NHS Foundation Trust,24-Sep-18,DRESSINGS - PRE STERILE,Critical care,NHS LOGISTICS,1019108751,12.06,
Department of Health,Salisbury NHS Foundation Trust,24-Sep-18,DRESSINGS - PRE STERILE,Critical care,NHS LOGISTICS,1019108751,1.87,
Department of Health,Salisbury NHS Foundation Trust,24-Sep-18,DENTAL SURGERY SUNDRIES,Surgery,NHS LOGISTICS,1019108751,22.2,
Department of Health,Salisbury NHS Foundation Trust,24-Sep-18,DRESSINGS - PRE STERILE,Critical care,NHS LOGISTICS,1019108751,0.76,
Department of Health,Salisbury NHS Foundation Trust,24-Sep-18,OPTICAL  -  OTHER,Surgery,NHS LOGISTICS,1019108751,345,
Department of Health,Salisbury NHS Foundation Trust,24-Sep-18,OPTICAL  -  OTHER,Surgery,NHS LOGISTICS,1019108751,69,
Department of Health,Salisbury NHS Foundation Trust,24-Sep-18,D IMAG & RADIO - X RAY FILM PROCESSING CHEMICALS,Clinical Support and Family Services,NHS LOGISTICS,1019108751,112.58,
Department of Health,Salisbury NHS Foundation Trust,24-Sep-18,D IMAG & RADIO - X RAY FILM PROCESSING CHEMICALS,Clinical Support and Family Services,NHS LOGISTICS,1019108751,22.52,
Department of Health,Salisbury NHS Foundation Trust,24-Sep-18,SERVICES FROM NHS BODIES,Medicine,NHS LOGISTICS,1019108751,4.44,
Department of Health,Salisbury NHS Foundation Trust,24-Sep-18,SERVICES FROM NHS BODIES,Medicine,NHS LOGISTICS,1019108751,0.89,
Department of Health,Salisbury NHS Foundation Trust,24-Sep-18,DISPOSABLE THEATRE DRAPES WIPES,Medicine,NHS LOGISTICS,1019108751,3.95,
Department of Health,Salisbury NHS Foundation Trust,24-Sep-18,DISPOSABLE THEATRE DRAPES WIPES,Medicine,NHS LOGISTICS,1019108751,0.79,
Department of Health,Salisbury NHS Foundation Trust,24-Sep-18,DRESSINGS - PRE STERILE,Medicine,NHS LOGISTICS,1019108751,13.78,
Department of Health,Salisbury NHS Foundation Trust,24-Sep-18,DRESSINGS - PRE STERILE,Medicine,NHS LOGISTICS,1019108751,8.71,
Department of Health,Salisbury NHS Foundation Trust,24-Sep-18,DRESSINGS  -  PROCEDURE PACKS,Medicine,NHS LOGISTICS,1019108751,687.55,
Department of Health,Salisbury NHS Foundation Trust,24-Sep-18,NON DISPOSABLE BED LINEN,Clinical Support and Family Services,NHS LOGISTICS,1019108751,11.83,
Department of Health,Salisbury NHS Foundation Trust,24-Sep-18,NON DISPOSABLE BED LINEN,Clinical Support and Family Services,NHS LOGISTICS,1019108751,15,
Department of Health,Salisbury NHS Foundation Trust,24-Sep-18,NON DISPOSABLE BED LINEN,Clinical Support and Family Services,NHS LOGISTICS,1019108751,17.75,
Department of Health,Salisbury NHS Foundation Trust,24-Sep-18,NON DISPOSABLE BED LINEN,Clinical Support and Family Services,NHS LOGISTICS,1019108751,7.5,
Department of Health,Salisbury NHS Foundation Trust,24-Sep-18,TUBES,Medicine,NHS LOGISTICS,1019108751,6.85,
Department of Health,Salisbury NHS Foundation Trust,24-Sep-18,HEALTHCARE - WEAR,Critical care,NHS LOGISTICS,1019108751,293.82,
Department of Health,Salisbury NHS Foundation Trust,24-Sep-18,LAB EQUIP-ANALYSERS,Clinical Support and Family Services,NHS LOGISTICS,1019108751,30.98,
Department of Health,Salisbury NHS Foundation Trust,24-Sep-18,NON DISPOSABLE THEATRE DRAPES WIPES,Clinical Support and Family Services,NHS LOGISTICS,1019108751,40.08,
Department of Health,Salisbury NHS Foundation Trust,24-Sep-18,SURGICAL INSTRUMENTS: GENERAL,Critical care,NHS LOGISTICS,1019108751,7.3,
Department of Health,Salisbury NHS Foundation Trust,24-Sep-18,TUBES,Critical care,NHS LOGISTICS,1019108751,13.7,
Department of Health,Salisbury NHS Foundation Trust,24-Sep-18,MEDSURGCONS - OTHER,Surgery,NHS LOGISTICS,1019108751,9.5,
Department of Health,Salisbury NHS Foundation Trust,24-Sep-18,TISSUES HAND TOWELS & TOILET PAPER,Clinical Support and Family Services,NHS LOGISTICS,1019108751,7.6,
Department of Health,Salisbury NHS Foundation Trust,24-Sep-18,DRESSINGS - PRE STERILE,Medicine,NHS LOGISTICS,1019108751,2.76,
Department of Health,Salisbury NHS Foundation Trust,24-Sep-18,DRESSINGS - PRE STERILE,Medicine,NHS LOGISTICS,1019108751,1.74,
Department of Health,Salisbury NHS Foundation Trust,24-Sep-18,TISSUES HAND TOWELS & TOILET PAPER,Clinical Support and Family Services,NHS LOGISTICS,1019108751,4.38,
Department of Health,Salisbury NHS Foundation Trust,24-Sep-18,MED SURG EQUIP REP MAINT CLEANING,Clinical Support and Family Services,NHS LOGISTICS,1019108751,126.35,
Department of Health,Salisbury NHS Foundation Trust,24-Sep-18,DRESSINGS - PRE STERILE,Clinical Support and Family Services,NHS LOGISTICS,1019108751,0.37,
Department of Health,Salisbury NHS Foundation Trust,24-Sep-18,OTHER MEDICAL SUPPLIES,Clinical Support and Family Services,NHS LOGISTICS,1019108751,1.37,
Department of Health,Salisbury NHS Foundation Trust,24-Sep-18,DRESSINGS - PRE STERILE,Clinical Support and Family Services,NHS LOGISTICS,1019108751,0.54,
Department of Health,Salisbury NHS Foundation Trust,24-Sep-18,NON DISPOSABLE BED LINEN,Clinical Support and Family Services,NHS LOGISTICS,1019108751,2.37,
Department of Health,Salisbury NHS Foundation Trust,24-Sep-18,MEDSURGCONS - OTHER,Clinical Support and Family Services,NHS LOGISTICS,1019108751,2,
Department of Health,Salisbury NHS Foundation Trust,24-Sep-18,NON DISPOSABLE BED LINEN,Clinical Support and Family Services,NHS LOGISTICS,1019108751,3,
Department of Health,Salisbury NHS Foundation Trust,24-Sep-18,DISPOSABLE THEATRE DRAPES WIPES,Clinical Support and Family Services,NHS LOGISTICS,1019108751,2.13,
Department of Health,Salisbury NHS Foundation Trust,24-Sep-18,ELECTRICAL EQUIPMENT x,Human Resources,NHS LOGISTICS,1019108751,0.39,
Department of Health,Salisbury NHS Foundation Trust,24-Sep-18,M & S EQUIPELECTEQUIPINST - OTHER,Clinical Support and Family Services,NHS LOGISTICS,1019108751,45.36,
Department of Health,Salisbury NHS Foundation Trust,24-Sep-18,M & S EQUIPELECTEQUIPINST - OTHER,Clinical Support and Family Services,NHS LOGISTICS,1019108751,20.62,
Department of Health,Salisbury NHS Foundation Trust,24-Sep-18,MED SURG EQUIP REP MAINT CLEANING,Clinical Support and Family Services,NHS LOGISTICS,1019108751,21.86,
Department of Health,Salisbury NHS Foundation Trust,24-Sep-18,M & S EQUIPELECTEQUIPINST - OTHER,Clinical Support and Family Services,NHS LOGISTICS,1019108751,33.96,
Department of Health,Salisbury NHS Foundation Trust,24-Sep-18,M & S EQUIPELECTEQUIPINST - OTHER,Clinical Support and Family Services,NHS LOGISTICS,1019108751,25.77,
Department of Health,Salisbury NHS Foundation Trust,24-Sep-18,M & S EQUIPELECTEQUIPINST - OTHER,Clinical Support and Family Services,NHS LOGISTICS,1019108751,46.39,
Department of Health,Salisbury NHS Foundation Trust,24-Sep-18,M & S EQUIPELECTEQUIPINST - OTHER,Clinical Support and Family Services,NHS LOGISTICS,1019108751,46.39,
Department of Health,Salisbury NHS Foundation Trust,24-Sep-18,DRESSINGS - PRE STERILE,Clinical Support and Family Services,NHS LOGISTICS,1019108751,0.19,
Department of Health,Salisbury NHS Foundation Trust,24-Sep-18,DRESSINGS - PRE STERILE,Clinical Support and Family Services,NHS LOGISTICS,1019108751,1.82,
Department of Health,Salisbury NHS Foundation Trust,24-Sep-18,OTHER MEDICAL SUPPLIES,Clinical Support and Family Services,NHS LOGISTICS,1019108751,44.98,
Department of Health,Salisbury NHS Foundation Trust,24-Sep-18,NON DISPOSABLE BED LINEN,Clinical Support and Family Services,NHS LOGISTICS,1019108751,1.5,
Department of Health,Salisbury NHS Foundation Trust,24-Sep-18,LAB EQUIP-LABORATORY APPARATUS,Clinical Support and Family Services,NHS LOGISTICS,1019108751,7.57,
Department of Health,Salisbury NHS Foundation Trust,24-Sep-18,LAB EQUIP-LABORATORY APPARATUS,Clinical Support and Family Services,NHS LOGISTICS,1019108751,66.69,
Department of Health,Salisbury NHS Foundation Trust,24-Sep-18,LAB EQUIP-LABORATORY APPARATUS,Clinical Support and Family Services,NHS LOGISTICS,1019108751,10.27,
Department of Health,Salisbury NHS Foundation Trust,24-Sep-18,DRESSINGS - PRE STERILE,Surgery,NHS LOGISTICS,1019108751,5.6,
Department of Health,Salisbury NHS Foundation Trust,24-Sep-18,MEDSURGCONS-SUTURES,Surgery,NHS LOGISTICS,1019108751,9.3,
Department of Health,Salisbury NHS Foundation Trust,24-Sep-18,M & S EQUIPELECTEQUIPINST - OTHER,Critical care,NHS LOGISTICS,1019108751,3.36,
Department of Health,Salisbury NHS Foundation Trust,24-Sep-18,TOILETRIES PERSONAL HYGIENE PRODUCTS,Critical care,NHS LOGISTICS,1019108751,0.62,
Department of Health,Salisbury NHS Foundation Trust,24-Sep-18,DRESSINGS - PRE STERILE,Critical care,NHS LOGISTICS,1019108751,2.33,
Department of Health,Salisbury NHS Foundation Trust,24-Sep-18,ANAESTHETIC EQUIPMENT ACCESSORIES,Critical care,NHS LOGISTICS,1019108751,0.26,
Department of Health,Salisbury NHS Foundation Trust,24-Sep-18,DRESSINGS - PRE STERILE,Critical care,NHS LOGISTICS,1019108751,0.37,
Department of Health,Salisbury NHS Foundation Trust,24-Sep-18,OTHER MEDICAL SUPPLIES,Critical care,NHS LOGISTICS,1019108751,1.64,
Department of Health,Salisbury NHS Foundation Trust,24-Sep-18,OTHER MEDICAL SUPPLIES,Critical care,NHS LOGISTICS,1019108751,0.75,
Department of Health,Salisbury NHS Foundation Trust,24-Sep-18,TOILETRIES PERSONAL HYGIENE PRODUCTS,Critical care,NHS LOGISTICS,1019108751,0.73,
Department of Health,Salisbury NHS Foundation Trust,24-Sep-18,MEDSURGCONS - OTHER,Critical care,NHS LOGISTICS,1019108751,4.29,
Department of Health,Salisbury NHS Foundation Trust,24-Sep-18,TOILETRIES PERSONAL HYGIENE PRODUCTS,Critical care,NHS LOGISTICS,1019108751,0.83,
Department of Health,Salisbury NHS Foundation Trust,24-Sep-18,M & S EQUIPELECTEQUIPINST - OTHER,Critical care,NHS LOGISTICS,1019108751,0.32,
Department of Health,Salisbury NHS Foundation Trust,24-Sep-18,MEDSURGCONS - OTHER,Critical care,NHS LOGISTICS,1019108751,0.35,
Department of Health,Salisbury NHS Foundation Trust,24-Sep-18,NON DISPOSABLE BED LINEN,Critical care,NHS LOGISTICS,1019108751,3,
Department of Health,Salisbury NHS Foundation Trust,24-Sep-18,DISPOSABLE THEATRE DRAPES WIPES,Critical care,NHS LOGISTICS,1019108751,6.16,
Department of Health,Salisbury NHS Foundation Trust,24-Sep-18,DISPOSABLE THEATRE DRAPES WIPES,Critical care,NHS LOGISTICS,1019108751,0.71,
Department of Health,Salisbury NHS Foundation Trust,24-Sep-18,PAPER ITEMS GENERAL STATIONERY SUNDRIES,Medicine,NHS LOGISTICS,1019108751,12.91,
Department of Health,Salisbury NHS Foundation Trust,24-Sep-18,MEDSURGCONS - OTHER,Medicine,NHS LOGISTICS,1019108751,15.26,
Department of Health,Salisbury NHS Foundation Trust,24-Sep-18,MEDSURGCONS - OTHER,Medicine,NHS LOGISTICS,1019108751,15.26,
Department of Health,Salisbury NHS Foundation Trust,24-Sep-18,DRESSINGS - PRE STERILE,Clinical Support and Family Services,NHS LOGISTICS,1019108751,3.55,
Department of Health,Salisbury NHS Foundation Trust,24-Sep-18,DRESSINGS - PRE STERILE,Clinical Support and Family Services,NHS LOGISTICS,1019108751,5.14,
Department of Health,Salisbury NHS Foundation Trust,24-Sep-18,DRESSINGS - PRE STERILE,Clinical Support and Family Services,NHS LOGISTICS,1019108751,8.88,
Department of Health,Salisbury NHS Foundation Trust,24-Sep-18,DRESSINGS - PRE STERILE,Clinical Support and Family Services,NHS LOGISTICS,1019108751,5.6,
Department of Health,Salisbury NHS Foundation Trust,24-Sep-18,DRESSINGS - PRE STERILE,Clinical Support and Family Services,NHS LOGISTICS,1019108751,12.49,
Department of Health,Salisbury NHS Foundation Trust,24-Sep-18,DRESSINGS - PRE STERILE,Clinical Support and Family Services,NHS LOGISTICS,1019108751,3.08,
Department of Health,Salisbury NHS Foundation Trust,24-Sep-18,DRESSINGS - PRE STERILE,Clinical Support and Family Services,NHS LOGISTICS,1019108751,6.86,
Department of Health,Salisbury NHS Foundation Trust,24-Sep-18,TOILETRIES PERSONAL HYGIENE PRODUCTS,Clinical Support and Family Services,NHS LOGISTICS,1019108751,2.89,
Department of Health,Salisbury NHS Foundation Trust,24-Sep-18,DRESSINGS - PRE STERILE,Medicine,NHS LOGISTICS,1019108751,1.93,
Department of Health,Salisbury NHS Foundation Trust,24-Sep-18,COOKING & KITCHEN UTENSILS,Medicine,NHS LOGISTICS,1019108751,0.36,
Department of Health,Salisbury NHS Foundation Trust,24-Sep-18,TOILETRIES PERSONAL HYGIENE PRODUCTS,Medicine,NHS LOGISTICS,1019108751,0.62,
Department of Health,Salisbury NHS Foundation Trust,24-Sep-18,DRESSINGS - PRE STERILE,Medicine,NHS LOGISTICS,1019108751,2.8,
Department of Health,Salisbury NHS Foundation Trust,24-Sep-18,DRESSINGS - PRE STERILE,Medicine,NHS LOGISTICS,1019108751,0.37,
Department of Health,Salisbury NHS Foundation Trust,24-Sep-18,OTHER MEDICAL SUPPLIES,Medicine,NHS LOGISTICS,1019108751,1.88,
Department of Health,Salisbury NHS Foundation Trust,24-Sep-18,ANAESTHETIC EQUIPMENT ACCESSORIES,Medicine,NHS LOGISTICS,1019108751,0.5,
Department of Health,Salisbury NHS Foundation Trust,24-Sep-18,OTHER MEDICAL SUPPLIES,Medicine,NHS LOGISTICS,1019108751,1.64,
Department of Health,Salisbury NHS Foundation Trust,24-Sep-18,OTHER MEDICAL SUPPLIES,Medicine,NHS LOGISTICS,1019108751,1.37,
Department of Health,Salisbury NHS Foundation Trust,24-Sep-18,OTHER MEDICAL SUPPLIES,Medicine,NHS LOGISTICS,1019108751,0.75,
Department of Health,Salisbury NHS Foundation Trust,24-Sep-18,PATIENT APPLIANCES,Medicine,NHS LOGISTICS,1019108751,0.67,
Department of Health,Salisbury NHS Foundation Trust,24-Sep-18,DRESSINGS - PRE STERILE,Medicine,NHS LOGISTICS,1019108751,1.07,
Department of Health,Salisbury NHS Foundation Trust,24-Sep-18,MEDSURGCONS - OTHER,Medicine,NHS LOGISTICS,1019108751,11.96,
Department of Health,Salisbury NHS Foundation Trust,24-Sep-18,MEDSURGCONS - OTHER,Medicine,NHS LOGISTICS,1019108751,2.86,
Department of Health,Salisbury NHS Foundation Trust,24-Sep-18,MEDSURGCONS - OTHER,Medicine,NHS LOGISTICS,1019108751,0.53,
Department of Health,Salisbury NHS Foundation Trust,24-Sep-18,NON DISPOSABLE BED LINEN,Medicine,NHS LOGISTICS,1019108751,1.5,
Department of Health,Salisbury NHS Foundation Trust,24-Sep-18,DISPOSABLE THEATRE DRAPES WIPES,Medicine,NHS LOGISTICS,1019108751,0.71,
Department of Health,Salisbury NHS Foundation Trust,24-Sep-18,M & S EQUIPELECTEQUIPINST - OTHER,Medicine,NHS LOGISTICS,1019108751,1.68,
Department of Health,Salisbury NHS Foundation Trust,24-Sep-18,CLEANING MATERIALS PRODUCTS SUNDRIES,Medicine,NHS LOGISTICS,1019108751,1.76,
Department of Health,Salisbury NHS Foundation Trust,24-Sep-18,DRESSINGS - PRE STERILE,Medicine,NHS LOGISTICS,1019108751,0.5,
Department of Health,Salisbury NHS Foundation Trust,24-Sep-18,PATIENTS INCONTINENCE,Medicine,NHS LOGISTICS,1019108751,0.6,
Department of Health,Salisbury NHS Foundation Trust,24-Sep-18,PATIENTS INCONTINENCE,Medicine,NHS LOGISTICS,1019108751,1.24,
Department of Health,Salisbury NHS Foundation Trust,24-Sep-18,TUBES,Medicine,NHS LOGISTICS,1019108751,1.37,
Department of Health,Salisbury NHS Foundation Trust,24-Sep-18,OTHER MEDICAL SUPPLIES,Medicine,NHS LOGISTICS,1019108751,1.37,
Department of Health,Salisbury NHS Foundation Trust,24-Sep-18,OTHER MEDICAL SUPPLIES,Medicine,NHS LOGISTICS,1019108751,0.75,
Department of Health,Salisbury NHS Foundation Trust,24-Sep-18,PATIENT APPLIANCES,Medicine,NHS LOGISTICS,1019108751,0.67,
Department of Health,Salisbury NHS Foundation Trust,24-Sep-18,PATIENT APPLIANCES,Medicine,NHS LOGISTICS,1019108751,0.67,
Department of Health,Salisbury NHS Foundation Trust,24-Sep-18,TOILETRIES PERSONAL HYGIENE PRODUCTS,Medicine,NHS LOGISTICS,1019108751,0.73,
Department of Health,Salisbury NHS Foundation Trust,24-Sep-18,DRESSINGS - PRE STERILE,Medicine,NHS LOGISTICS,1019108751,0.54,
Department of Health,Salisbury NHS Foundation Trust,24-Sep-18,MEDSURGCONS - OTHER,Medicine,NHS LOGISTICS,1019108751,2.86,
Department of Health,Salisbury NHS Foundation Trust,24-Sep-18,TISSUES HAND TOWELS & TOILET PAPER,Medicine,NHS LOGISTICS,1019108751,0.14,
Department of Health,Salisbury NHS Foundation Trust,24-Sep-18,NON DISPOSABLE BED LINEN,Medicine,NHS LOGISTICS,1019108751,1.5,
Department of Health,Salisbury NHS Foundation Trust,24-Sep-18,DISPOSABLE THEATRE DRAPES WIPES,Medicine,NHS LOGISTICS,1019108751,1.42,
Department of Health,Salisbury NHS Foundation Trust,24-Sep-18,PATIENTS INCONTINENCE,Medicine,NHS LOGISTICS,1019108751,0.6,
Department of Health,Salisbury NHS Foundation Trust,24-Sep-18,DRESSINGS - PRE STERILE,Medicine,NHS LOGISTICS,1019108751,0.19,
Department of Health,Salisbury NHS Foundation Trust,24-Sep-18,TOILETRIES PERSONAL HYGIENE PRODUCTS,Medicine,NHS LOGISTICS,1019108751,0.73,
Department of Health,Salisbury NHS Foundation Trust,24-Sep-18,MEDSURGCONS - OTHER,Medicine,NHS LOGISTICS,1019108751,2.86,
Department of Health,Salisbury NHS Foundation Trust,24-Sep-18,MEDSURGCONS - OTHER,Medicine,NHS LOGISTICS,1019108751,0.18,
Department of Health,Salisbury NHS Foundation Trust,24-Sep-18,NON DISPOSABLE BED LINEN,Medicine,NHS LOGISTICS,1019108751,0.75,
Department of Health,Salisbury NHS Foundation Trust,24-Sep-18,DISPOSABLE THEATRE DRAPES WIPES,Medicine,NHS LOGISTICS,1019108751,0.71,
Department of Health,Salisbury NHS Foundation Trust,24-Sep-18,PATIENTS FOOTWEAR,Medicine,NHS LOGISTICS,1019108751,13,
Department of Health,Salisbury NHS Foundation Trust,24-Sep-18,PATIENTS INCONTINENCE,Surgery,NHS LOGISTICS,1019108751,0.62,
Department of Health,Salisbury NHS Foundation Trust,24-Sep-18,TOILETRIES PERSONAL HYGIENE PRODUCTS,Surgery,NHS LOGISTICS,1019108751,0.19,
Department of Health,Salisbury NHS Foundation Trust,24-Sep-18,MEDSURGCONS - OTHER,Surgery,NHS LOGISTICS,1019108751,0.18,
Department of Health,Salisbury NHS Foundation Trust,24-Sep-18,TUBES,Surgery,NHS LOGISTICS,1019108751,0.72,
Department of Health,Salisbury NHS Foundation Trust,24-Sep-18,MEDSURGCONS-SUTURES,Surgery,NHS LOGISTICS,1019108751,22.53,
Department of Health,Salisbury NHS Foundation Trust,24-Sep-18,PATIENTS INCONTINENCE,Medicine,NHS LOGISTICS,1019108751,2.48,
Department of Health,Salisbury NHS Foundation Trust,24-Sep-18,DRESSINGS - PRE STERILE,Medicine,NHS LOGISTICS,1019108751,0.37,
Department of Health,Salisbury NHS Foundation Trust,24-Sep-18,OTHER MEDICAL SUPPLIES,Medicine,NHS LOGISTICS,1019108751,0.75,
Department of Health,Salisbury NHS Foundation Trust,24-Sep-18,DRESSINGS - PRE STERILE,Medicine,NHS LOGISTICS,1019108751,0.54,
Department of Health,Salisbury NHS Foundation Trust,24-Sep-18,MEDSURGCONS - OTHER,Medicine,NHS LOGISTICS,1019108751,2.86,
Department of Health,Salisbury NHS Foundation Trust,24-Sep-18,MEDSURGCONS - OTHER,Medicine,NHS LOGISTICS,1019108751,0.35,
Department of Health,Salisbury NHS Foundation Trust,24-Sep-18,NON DISPOSABLE BED LINEN,Medicine,NHS LOGISTICS,1019108751,3,
Department of Health,Salisbury NHS Foundation Trust,24-Sep-18,TUBES,Surgery,NHS LOGISTICS,1019108751,1.32,
Department of Health,Salisbury NHS Foundation Trust,24-Sep-18,M & S EQUIPELECTEQUIPINST - OTHER,Surgery,NHS LOGISTICS,1019108751,1.35,
Department of Health,Salisbury NHS Foundation Trust,24-Sep-18,OTHER MEDICAL SUPPLIES,Surgery,NHS LOGISTICS,1019108751,0.94,
Department of Health,Salisbury NHS Foundation Trust,24-Sep-18,OTHER MEDICAL SUPPLIES,Surgery,NHS LOGISTICS,1019108751,1.13,
Department of Health,Salisbury NHS Foundation Trust,24-Sep-18,MEDSURGCONS - OTHER,Surgery,NHS LOGISTICS,1019108751,8.28,
Department of Health,Salisbury NHS Foundation Trust,24-Sep-18,TISSUES HAND TOWELS & TOILET PAPER,Surgery,NHS LOGISTICS,1019108751,0.14,
Department of Health,Salisbury NHS Foundation Trust,24-Sep-18,TUBES,Surgery,NHS LOGISTICS,1019108751,0.72,
Department of Health,Salisbury NHS Foundation Trust,24-Sep-18,DISPOSABLE THEATRE DRAPES WIPES,Surgery,NHS LOGISTICS,1019108751,0.42,
Department of Health,Salisbury NHS Foundation Trust,24-Sep-18,PATIENTS INCONTINENCE,Surgery,NHS LOGISTICS,1019108751,1.24,
Department of Health,Salisbury NHS Foundation Trust,24-Sep-18,M & S EQUIPELECTEQUIPINST - OTHER,Surgery,NHS LOGISTICS,1019108751,4.05,
Department of Health,Salisbury NHS Foundation Trust,24-Sep-18,DRESSINGS - PRE STERILE,Surgery,NHS LOGISTICS,1019108751,0.54,
Department of Health,Salisbury NHS Foundation Trust,24-Sep-18,TISSUES HAND TOWELS & TOILET PAPER,Surgery,NHS LOGISTICS,1019108751,0.14,
Department of Health,Salisbury NHS Foundation Trust,24-Sep-18,MEDSURGCONS - OTHER,Surgery,NHS LOGISTICS,1019108751,0.35,
Department of Health,Salisbury NHS Foundation Trust,24-Sep-18,NON DISPOSABLE BED LINEN,Surgery,NHS LOGISTICS,1019108751,1.5,
Department of Health,Salisbury NHS Foundation Trust,24-Sep-18,DISPOSABLE THEATRE DRAPES WIPES,Surgery,NHS LOGISTICS,1019108751,1.42,
Department of Health,Salisbury NHS Foundation Trust,24-Sep-18,BEVERAGES & AMBIENT FOOD,Facilities Directorate,NHS LOGISTICS,1019108751,2.37,
Department of Health,Salisbury NHS Foundation Trust,24-Sep-18,BEVERAGES & AMBIENT FOOD,Facilities Directorate,NHS LOGISTICS,1019108751,33.98,
Department of Health,Salisbury NHS Foundation Trust,24-Sep-18,BEVERAGES & AMBIENT FOOD,Facilities Directorate,NHS LOGISTICS,1019108751,1.2,
Department of Health,Salisbury NHS Foundation Trust,24-Sep-18,MEAT GAME POULTRY FISH,Facilities Directorate,NHS LOGISTICS,1019108751,10.37,
Department of Health,Salisbury NHS Foundation Trust,24-Sep-18,FRUIT & VEGETABLES,Facilities Directorate,NHS LOGISTICS,1019108751,16.46,
Department of Health,Salisbury NHS Foundation Trust,24-Sep-18,FRUIT & VEGETABLES,Facilities Directorate,NHS LOGISTICS,1019108751,3.5,
Department of Health,Salisbury NHS Foundation Trust,24-Sep-18,FRUIT & VEGETABLES,Facilities Directorate,NHS LOGISTICS,1019108751,5.04,
Department of Health,Salisbury NHS Foundation Trust,24-Sep-18,FRUIT & VEGETABLES,Facilities Directorate,NHS LOGISTICS,1019108751,4.15,
Department of Health,Salisbury NHS Foundation Trust,24-Sep-18,FRUIT & VEGETABLES,Facilities Directorate,NHS LOGISTICS,1019108751,2.56,
Department of Health,Salisbury NHS Foundation Trust,24-Sep-18,FRUIT & VEGETABLES,Facilities Directorate,NHS LOGISTICS,1019108751,2.34,
Department of Health,Salisbury NHS Foundation Trust,24-Sep-18,FRUIT & VEGETABLES,Facilities Directorate,NHS LOGISTICS,1019108751,7.13,
Department of Health,Salisbury NHS Foundation Trust,24-Sep-18,FRUIT & VEGETABLES,Facilities Directorate,NHS LOGISTICS,1019108751,2.64,
Department of Health,Salisbury NHS Foundation Trust,24-Sep-18,FRUIT & VEGETABLES,Facilities Directorate,NHS LOGISTICS,1019108751,0.96,
Department of Health,Salisbury NHS Foundation Trust,24-Sep-18,FRUIT & VEGETABLES,Facilities Directorate,NHS LOGISTICS,1019108751,1.05,
Department of Health,Salisbury NHS Foundation Trust,24-Sep-18,FRUIT & VEGETABLES,Facilities Directorate,NHS LOGISTICS,1019108751,12,
Department of Health,Salisbury NHS Foundation Trust,24-Sep-18,FRUIT & VEGETABLES,Facilities Directorate,NHS LOGISTICS,1019108751,4.06,
Department of Health,Salisbury NHS Foundation Trust,24-Sep-18,FRUIT & VEGETABLES,Facilities Directorate,NHS LOGISTICS,1019108751,2.12,
Department of Health,Salisbury NHS Foundation Trust,24-Sep-18,BEVERAGES & AMBIENT FOOD,Facilities Directorate,NHS LOGISTICS,1019108751,0.91,
Department of Health,Salisbury NHS Foundation Trust,24-Sep-18,BEVERAGES & AMBIENT FOOD,Facilities Directorate,NHS LOGISTICS,1019108751,2.05,
Department of Health,Salisbury NHS Foundation Trust,24-Sep-18,BEVERAGES & AMBIENT FOOD,Facilities Directorate,NHS LOGISTICS,1019108751,13.41,
Department of Health,Salisbury NHS Foundation Trust,24-Sep-18,BEVERAGES & AMBIENT FOOD,Facilities Directorate,NHS LOGISTICS,1019108751,21.1,
Department of Health,Salisbury NHS Foundation Trust,24-Sep-18,LIQUID REFRESHMENTS,Facilities Directorate,NHS LOGISTICS,1019108751,3.49,
Department of Health,Salisbury NHS Foundation Trust,24-Sep-18,LIQUID REFRESHMENTS,Facilities Directorate,NHS LOGISTICS,1019108751,3.95,
Department of Health,Salisbury NHS Foundation Trust,24-Sep-18,LIQUID REFRESHMENTS,Facilities Directorate,NHS LOGISTICS,1019108751,1.01,
Department of Health,Salisbury NHS Foundation Trust,24-Sep-18,LIQUID REFRESHMENTS,Facilities Directorate,NHS LOGISTICS,1019108751,4.96,
Department of Health,Salisbury NHS Foundation Trust,24-Sep-18,LIQUID REFRESHMENTS,Facilities Directorate,NHS LOGISTICS,1019108751,1.01,
Department of Health,Salisbury NHS Foundation Trust,24-Sep-18,LIQUID REFRESHMENTS,Facilities Directorate,NHS LOGISTICS,1019108751,7.1,
Department of Health,Salisbury NHS Foundation Trust,24-Sep-18,LIQUID REFRESHMENTS,Facilities Directorate,NHS LOGISTICS,1019108751,5.3,
Department of Health,Salisbury NHS Foundation Trust,24-Sep-18,LIQUID REFRESHMENTS,Facilities Directorate,NHS LOGISTICS,1019108751,5.3,
Department of Health,Salisbury NHS Foundation Trust,24-Sep-18,LIQUID REFRESHMENTS,Facilities Directorate,NHS LOGISTICS,1019108751,42.12,
Department of Health,Salisbury NHS Foundation Trust,24-Sep-18,LIQUID REFRESHMENTS,Facilities Directorate,NHS LOGISTICS,1019108751,0.78,
Department of Health,Salisbury NHS Foundation Trust,24-Sep-18,BEVERAGES & AMBIENT FOOD,Facilities Directorate,NHS LOGISTICS,1019108751,1.51,
Department of Health,Salisbury NHS Foundation Trust,24-Sep-18,TISSUES HAND TOWELS & TOILET PAPER,Facilities Directorate,NHS LOGISTICS,1019108751,2.19,
Department of Health,Salisbury NHS Foundation Trust,24-Sep-18,COOKING & KITCHEN UTENSILS,Facilities Directorate,NHS LOGISTICS,1019108751,5,
Department of Health,Salisbury NHS Foundation Trust,24-Sep-18,BEVERAGES & AMBIENT FOOD,Facilities Directorate,NHS LOGISTICS,1019108751,3.74,
Department of Health,Salisbury NHS Foundation Trust,24-Sep-18,BEVERAGES & AMBIENT FOOD,Facilities Directorate,NHS LOGISTICS,1019108751,3.94,
Department of Health,Salisbury NHS Foundation Trust,24-Sep-18,BEVERAGES & AMBIENT FOOD,Facilities Directorate,NHS LOGISTICS,1019108751,3.49,
Department of Health,Salisbury NHS Foundation Trust,24-Sep-18,BEVERAGES & AMBIENT FOOD,Facilities Directorate,NHS LOGISTICS,1019108751,4.3,
Department of Health,Salisbury NHS Foundation Trust,24-Sep-18,MEDSURGCONS - OTHER,Facilities Directorate,NHS LOGISTICS,1019108751,4.31,
Department of Health,Salisbury NHS Foundation Trust,24-Sep-18,MEDSURGCONS - OTHER,Facilities Directorate,NHS LOGISTICS,1019108751,4.78,
Department of Health,Salisbury NHS Foundation Trust,24-Sep-18,BEVERAGES & AMBIENT FOOD,Facilities Directorate,NHS LOGISTICS,1019108751,11.5,
Department of Health,Salisbury NHS Foundation Trust,24-Sep-18,BEVERAGES & AMBIENT FOOD,Facilities Directorate,NHS LOGISTICS,1019108751,1.54,
Department of Health,Salisbury NHS Foundation Trust,24-Sep-18,BEVERAGES & AMBIENT FOOD,Facilities Directorate,NHS LOGISTICS,1019108751,1.78,
Department of Health,Salisbury NHS Foundation Trust,24-Sep-18,FLAVOURINGS HERBS SPICES,Facilities Directorate,NHS LOGISTICS,1019108751,0.28,
Department of Health,Salisbury NHS Foundation Trust,24-Sep-18,FLAVOURINGS HERBS SPICES,Facilities Directorate,NHS LOGISTICS,1019108751,0.62,
Department of Health,Salisbury NHS Foundation Trust,24-Sep-18,BEVERAGES & AMBIENT FOOD,Facilities Directorate,NHS LOGISTICS,1019108751,0.64,
Department of Health,Salisbury NHS Foundation Trust,24-Sep-18,BEVERAGES & AMBIENT FOOD,Facilities Directorate,NHS LOGISTICS,1019108751,1.01,
Department of Health,Salisbury NHS Foundation Trust,24-Sep-18,BEVERAGES & AMBIENT FOOD,Facilities Directorate,NHS LOGISTICS,1019108751,0.89,
Department of Health,Salisbury NHS Foundation Trust,24-Sep-18,BEVERAGES & AMBIENT FOOD,Facilities Directorate,NHS LOGISTICS,1019108751,1.24,
Department of Health,Salisbury NHS Foundation Trust,24-Sep-18,BEVERAGES & AMBIENT FOOD,Facilities Directorate,NHS LOGISTICS,1019108751,4.63,
Department of Health,Salisbury NHS Foundation Trust,24-Sep-18,BEVERAGES & AMBIENT FOOD,Facilities Directorate,NHS LOGISTICS,1019108751,1.77,
Department of Health,Salisbury NHS Foundation Trust,24-Sep-18,BEVERAGES & AMBIENT FOOD,Facilities Directorate,NHS LOGISTICS,1019108751,2.33,
Department of Health,Salisbury NHS Foundation Trust,24-Sep-18,BEVERAGES & AMBIENT FOOD,Facilities Directorate,NHS LOGISTICS,1019108751,0.91,
Department of Health,Salisbury NHS Foundation Trust,24-Sep-18,BEVERAGES & AMBIENT FOOD,Facilities Directorate,NHS LOGISTICS,1019108751,1.28,
Department of Health,Salisbury NHS Foundation Trust,24-Sep-18,BEVERAGES & AMBIENT FOOD,Facilities Directorate,NHS LOGISTICS,1019108751,1.78,
Department of Health,Salisbury NHS Foundation Trust,24-Sep-18,EGGS MILK OTHER DAIRY PRODUCTS,Facilities Directorate,NHS LOGISTICS,1019108751,12.92,
Department of Health,Salisbury NHS Foundation Trust,24-Sep-18,DIETETIC FOOD,Facilities Directorate,NHS LOGISTICS,1019108751,2.41,
Department of Health,Salisbury NHS Foundation Trust,24-Sep-18,DIETETIC FOOD,Facilities Directorate,NHS LOGISTICS,1019108751,2.41,
Department of Health,Salisbury NHS Foundation Trust,24-Sep-18,FLAVOURINGS HERBS SPICES,Facilities Directorate,NHS LOGISTICS,1019108751,5.01,
Department of Health,Salisbury NHS Foundation Trust,24-Sep-18,BABY TEXTURE MODIFIED FOODS,Facilities Directorate,NHS LOGISTICS,1019108751,9.61,
Department of Health,Salisbury NHS Foundation Trust,24-Sep-18,BEVERAGES & AMBIENT FOOD,Facilities Directorate,NHS LOGISTICS,1019108751,2.14,
Department of Health,Salisbury NHS Foundation Trust,24-Sep-18,FLAVOURINGS HERBS SPICES,Facilities Directorate,NHS LOGISTICS,1019108751,0.68,
Department of Health,Salisbury NHS Foundation Trust,24-Sep-18,BEVERAGES & AMBIENT FOOD,Facilities Directorate,NHS LOGISTICS,1019108751,2.16,
Department of Health,Salisbury NHS Foundation Trust,24-Sep-18,BEVERAGES & AMBIENT FOOD,Facilities Directorate,NHS LOGISTICS,1019108751,9.47,
Department of Health,Salisbury NHS Foundation Trust,24-Sep-18,BEVERAGES & AMBIENT FOOD,Facilities Directorate,NHS LOGISTICS,1019108751,1.21,
Department of Health,Salisbury NHS Foundation Trust,24-Sep-18,BEVERAGES & AMBIENT FOOD,Facilities Directorate,NHS LOGISTICS,1019108751,5.55,
Department of Health,Salisbury NHS Foundation Trust,24-Sep-18,BEVERAGES & AMBIENT FOOD,Facilities Directorate,NHS LOGISTICS,1019108751,7.32,
Department of Health,Salisbury NHS Foundation Trust,24-Sep-18,MEDPROSTH-OTHOPAEDICS TRAUMA PRODUCTS,Critical care,NHS LOGISTICS,1019108751,8.23,
Department of Health,Salisbury NHS Foundation Trust,24-Sep-18,BAGS SACKS - OTHER,Surgery,NHS LOGISTICS,1019108751,2.44,
Department of Health,Salisbury NHS Foundation Trust,24-Sep-18,DRESSINGS - PRE STERILE,Surgery,NHS LOGISTICS,1019108751,0.95,
Department of Health,Salisbury NHS Foundation Trust,24-Sep-18,DRESSINGS - PRE STERILE,Surgery,NHS LOGISTICS,1019108751,14.94,
Department of Health,Salisbury NHS Foundation Trust,24-Sep-18,DRESSINGS - PRE STERILE,Surgery,NHS LOGISTICS,1019108751,0.25,
Department of Health,Salisbury NHS Foundation Trust,24-Sep-18,M & S EQUIPELECTEQUIPINST - OTHER,Medicine,NHS LOGISTICS,1019108751,1.35,
Department of Health,Salisbury NHS Foundation Trust,24-Sep-18,DRESSINGS - PRE STERILE,Medicine,NHS LOGISTICS,1019108751,0.37,
Department of Health,Salisbury NHS Foundation Trust,24-Sep-18,ANAESTHETIC EQUIPMENT ACCESSORIES,Medicine,NHS LOGISTICS,1019108751,0.63,
Department of Health,Salisbury NHS Foundation Trust,24-Sep-18,PATIENT APPLIANCES,Medicine,NHS LOGISTICS,1019108751,0.67,
Department of Health,Salisbury NHS Foundation Trust,24-Sep-18,PATIENT APPLIANCES,Medicine,NHS LOGISTICS,1019108751,0.88,
Department of Health,Salisbury NHS Foundation Trust,24-Sep-18,MEDSURGCONS - OTHER,Medicine,NHS LOGISTICS,1019108751,1.18,
Department of Health,Salisbury NHS Foundation Trust,24-Sep-18,TISSUES HAND TOWELS & TOILET PAPER,Medicine,NHS LOGISTICS,1019108751,0.14,
Department of Health,Salisbury NHS Foundation Trust,24-Sep-18,NON DISPOSABLE BED LINEN,Medicine,NHS LOGISTICS,1019108751,2.25,
Department of Health,Salisbury NHS Foundation Trust,24-Sep-18,DISPOSABLE THEATRE DRAPES WIPES,Medicine,NHS LOGISTICS,1019108751,0.71,
Department of Health,Salisbury NHS Foundation Trust,24-Sep-18,DRESSINGS - PRE STERILE,Critical care,NHS LOGISTICS,1019108751,18,
Department of Health,Salisbury NHS Foundation Trust,24-Sep-18,MEDSURGCONS - OTHER,Critical care,NHS LOGISTICS,1019108751,2.86,
Department of Health,Salisbury NHS Foundation Trust,24-Sep-18,MEDSURGCONS - OTHER,Critical care,NHS LOGISTICS,1019108751,0.18,
Department of Health,Salisbury NHS Foundation Trust,24-Sep-18,DISPOSABLE THEATRE DRAPES WIPES,Critical care,NHS LOGISTICS,1019108751,13.19,
Department of Health,Salisbury NHS Foundation Trust,24-Sep-18,HEALTHCARE - WEAR,Critical care,NHS LOGISTICS,1019108751,58.76,
Department of Health,Salisbury NHS Foundation Trust,24-Sep-18,MEDSURGCONS - OTHER,Surgery,NHS LOGISTICS,1019108751,4.28,
Department of Health,Salisbury NHS Foundation Trust,24-Sep-18,OTHER MEDICAL SUPPLIES,Surgery,NHS LOGISTICS,1019108751,0.38,
Department of Health,Salisbury NHS Foundation Trust,24-Sep-18,OTHER MEDICAL SUPPLIES,Surgery,NHS LOGISTICS,1019108751,10.55,
Department of Health,Salisbury NHS Foundation Trust,24-Sep-18,MEDSURGCONS - OTHER,Surgery,NHS LOGISTICS,1019108751,9.57,
Department of Health,Salisbury NHS Foundation Trust,24-Sep-18,M & S EQUIPELECTEQUIPINST - OTHER,Surgery,NHS LOGISTICS,1019108751,0.63,
Department of Health,Salisbury NHS Foundation Trust,24-Sep-18,MED SURG EQUIP REP MAINT CLEANING,Surgery,NHS LOGISTICS,1019108751,2.19,
Department of Health,Salisbury NHS Foundation Trust,24-Sep-18,NON DISPOSABLE BED LINEN,Surgery,NHS LOGISTICS,1019108751,4.5,
Department of Health,Salisbury NHS Foundation Trust,24-Sep-18,PATIENT APPLIANCES,Surgery,NHS LOGISTICS,1019108751,1.56,
Department of Health,Salisbury NHS Foundation Trust,24-Sep-18,MEDSURGCONS - OTHER,Surgery,NHS LOGISTICS,1019108751,1.07,
Department of Health,Salisbury NHS Foundation Trust,24-Sep-18,DISPOSABLE THEATRE DRAPES WIPES,Surgery,NHS LOGISTICS,1019108751,0.71,
Department of Health,Salisbury NHS Foundation Trust,24-Sep-18,HABERDASHERY,Surgery,NHS LOGISTICS,1019108751,0.35,
Department of Health,Salisbury NHS Foundation Trust,24-Sep-18,M & S EQUIPELECTEQUIPINST - OTHER,Clinical Support and Family Services,NHS LOGISTICS,1019108751,123.71,
Department of Health,Salisbury NHS Foundation Trust,24-Sep-18,MEDPROSTH-OTHOPAEDICS TRAUMA PRODUCTS,Critical care,NHS LOGISTICS,1019108751,28.87,
Department of Health,Salisbury NHS Foundation Trust,24-Sep-18,LAB EQUIP-LABORATORY APPARATUS,Clinical Support and Family Services,NHS LOGISTICS,1019108751,5.17,
Department of Health,Salisbury NHS Foundation Trust,24-Sep-18,LAB EQUIP-LABORATORY APPARATUS,Clinical Support and Family Services,NHS LOGISTICS,1019108751,14.64,
Department of Health,Salisbury NHS Foundation Trust,24-Sep-18,BEVERAGES & AMBIENT FOOD,Facilities Directorate,NHS LOGISTICS,1019108751,1.39,
Department of Health,Salisbury NHS Foundation Trust,24-Sep-18,LIQUID REFRESHMENTS,Facilities Directorate,NHS LOGISTICS,1019108751,3.49,
Department of Health,Salisbury NHS Foundation Trust,24-Sep-18,BEVERAGES & AMBIENT FOOD,Facilities Directorate,NHS LOGISTICS,1019108751,21.1,
Department of Health,Salisbury NHS Foundation Trust,24-Sep-18,BEVERAGES & AMBIENT FOOD,Facilities Directorate,NHS LOGISTICS,1019108751,6.47,
Department of Health,Salisbury NHS Foundation Trust,24-Sep-18,FLAVOURINGS HERBS SPICES,Facilities Directorate,NHS LOGISTICS,1019108751,5.01,
Department of Health,Salisbury NHS Foundation Trust,24-Sep-18,BEVERAGES & AMBIENT FOOD,Facilities Directorate,NHS LOGISTICS,1019108751,1.78,
Department of Health,Salisbury NHS Foundation Trust,24-Sep-18,LIQUID REFRESHMENTS,Facilities Directorate,NHS LOGISTICS,1019108751,1.01,
Department of Health,Salisbury NHS Foundation Trust,24-Sep-18,BEVERAGES & AMBIENT FOOD,Facilities Directorate,NHS LOGISTICS,1019108751,0.7,
Department of Health,Salisbury NHS Foundation Trust,24-Sep-18,BEVERAGES & AMBIENT FOOD,Facilities Directorate,NHS LOGISTICS,1019108751,8.05,
Department of Health,Salisbury NHS Foundation Trust,24-Sep-18,DIETETIC FOOD,Facilities Directorate,NHS LOGISTICS,1019108751,0.8,
Department of Health,Salisbury NHS Foundation Trust,24-Sep-18,LIQUID REFRESHMENTS,Facilities Directorate,NHS LOGISTICS,1019108751,3.95,
Department of Health,Salisbury NHS Foundation Trust,24-Sep-18,BEVERAGES & AMBIENT FOOD,Facilities Directorate,NHS LOGISTICS,1019108751,1.78,
Department of Health,Salisbury NHS Foundation Trust,24-Sep-18,LIQUID REFRESHMENTS,Facilities Directorate,NHS LOGISTICS,1019108751,1.01,
Department of Health,Salisbury NHS Foundation Trust,24-Sep-18,TISSUES HAND TOWELS & TOILET PAPER,Facilities Directorate,NHS LOGISTICS,1019108751,2.19,
Department of Health,Salisbury NHS Foundation Trust,24-Sep-18,MEDSURGCONS - OTHER,Facilities Directorate,NHS LOGISTICS,1019108751,4.31,
Department of Health,Salisbury NHS Foundation Trust,24-Sep-18,LIQUID REFRESHMENTS,Facilities Directorate,NHS LOGISTICS,1019108751,3.09,
Department of Health,Salisbury NHS Foundation Trust,24-Sep-18,BEVERAGES & AMBIENT FOOD,Facilities Directorate,NHS LOGISTICS,1019108751,2.16,
Department of Health,Salisbury NHS Foundation Trust,24-Sep-18,BABY TEXTURE MODIFIED FOODS,Facilities Directorate,NHS LOGISTICS,1019108751,4.81,
Department of Health,Salisbury NHS Foundation Trust,24-Sep-18,LIQUID REFRESHMENTS,Facilities Directorate,NHS LOGISTICS,1019108751,42.12,
Department of Health,Salisbury NHS Foundation Trust,24-Sep-18,LIQUID REFRESHMENTS,Facilities Directorate,NHS LOGISTICS,1019108751,4.96,
Department of Health,Salisbury NHS Foundation Trust,24-Sep-18,MEDSURGCONS - OTHER,Facilities Directorate,NHS LOGISTICS,1019108751,4.78,
Department of Health,Salisbury NHS Foundation Trust,24-Sep-18,LIQUID REFRESHMENTS,Facilities Directorate,NHS LOGISTICS,1019108751,7.1,
Department of Health,Salisbury NHS Foundation Trust,24-Sep-18,COOKING & KITCHEN UTENSILS,Facilities Directorate,NHS LOGISTICS,1019108751,5,
Department of Health,Salisbury NHS Foundation Trust,24-Sep-18,LIQUID REFRESHMENTS,Facilities Directorate,NHS LOGISTICS,1019108751,5.3,
Department of Health,Salisbury NHS Foundation Trust,24-Sep-18,LIQUID REFRESHMENTS,Facilities Directorate,NHS LOGISTICS,1019108751,0.78,
Department of Health,Salisbury NHS Foundation Trust,24-Sep-18,LIQUID REFRESHMENTS,Facilities Directorate,NHS LOGISTICS,1019108751,5.3,
Department of Health,Salisbury NHS Foundation Trust,24-Sep-18,LAB EQUIP-LABORATORY APPARATUS,Surgery,NHS LOGISTICS,1019108751,5.53,
Department of Health,Salisbury NHS Foundation Trust,24-Sep-18,BEVERAGES & AMBIENT FOOD,Surgery,NHS LOGISTICS,1019108751,12.7,
Department of Health,Salisbury NHS Foundation Trust,24-Sep-18,DRESSINGS - PRE STERILE,Surgery,NHS LOGISTICS,1019108751,0.94,
Department of Health,Salisbury NHS Foundation Trust,24-Sep-18,DRESSINGS - PRE STERILE,Surgery,NHS LOGISTICS,1019108751,0.85,
Department of Health,Salisbury NHS Foundation Trust,24-Sep-18,MEDSURGCONS - OTHER,Surgery,NHS LOGISTICS,1019108751,1.36,
Department of Health,Salisbury NHS Foundation Trust,24-Sep-18,DRUGS,Surgery,NHS LOGISTICS,1019108751,7.85,
Department of Health,Salisbury NHS Foundation Trust,24-Sep-18,DRUGS,Surgery,NHS LOGISTICS,1019108751,12.85,
Department of Health,Salisbury NHS Foundation Trust,24-Sep-18,OTHER MEDICAL SUPPLIES,Surgery,NHS LOGISTICS,1019108751,1.51,
Department of Health,Salisbury NHS Foundation Trust,24-Sep-18,BEVERAGES & AMBIENT FOOD,Surgery,NHS LOGISTICS,1019108751,0.74,
Department of Health,Salisbury NHS Foundation Trust,24-Sep-18,TUBES,Surgery,NHS LOGISTICS,1019108751,4.92,
Department of Health,Salisbury NHS Foundation Trust,24-Sep-18,PATIENT APPLIANCES,Surgery,NHS LOGISTICS,1019108751,0.65,
Department of Health,Salisbury NHS Foundation Trust,24-Sep-18,MEDSURGCONS - OTHER,Surgery,NHS LOGISTICS,1019108751,18.21,
Department of Health,Salisbury NHS Foundation Trust,24-Sep-18,DISPOSABLE THEATRE DRAPES WIPES,Surgery,NHS LOGISTICS,1019108751,0.75,
Department of Health,Salisbury NHS Foundation Trust,24-Sep-18,DRESSINGS - PRE STERILE,Surgery,NHS LOGISTICS,1019108751,8.32,
Department of Health,Salisbury NHS Foundation Trust,24-Sep-18,DRESSINGS - PRE STERILE,Surgery,NHS LOGISTICS,1019108751,0.78,
Department of Health,Salisbury NHS Foundation Trust,24-Sep-18,TISSUES HAND TOWELS & TOILET PAPER,Surgery,NHS LOGISTICS,1019108751,0.75,
Department of Health,Salisbury NHS Foundation Trust,24-Sep-18,TISSUES HAND TOWELS & TOILET PAPER,Surgery,NHS LOGISTICS,1019108751,1.52,
Department of Health,Salisbury NHS Foundation Trust,24-Sep-18,DRESSINGS - PRE STERILE,Surgery,NHS LOGISTICS,1019108751,2.42,
Department of Health,Salisbury NHS Foundation Trust,24-Sep-18,NON DISPOSABLE BED LINEN,Surgery,NHS LOGISTICS,1019108751,0.75,
Department of Health,Salisbury NHS Foundation Trust,24-Sep-18,TISSUES HAND TOWELS & TOILET PAPER,Critical care,NHS LOGISTICS,1019108751,0.76,
Department of Health,Salisbury NHS Foundation Trust,24-Sep-18,DRESSINGS - PRE STERILE,Critical care,NHS LOGISTICS,1019108751,2.8,
Department of Health,Salisbury NHS Foundation Trust,24-Sep-18,MEDSURGCONS - OTHER,Critical care,NHS LOGISTICS,1019108751,1.43,
Department of Health,Salisbury NHS Foundation Trust,24-Sep-18,DISPOSABLE THEATRE DRAPES WIPES,Critical care,NHS LOGISTICS,1019108751,0.71,
Department of Health,Salisbury NHS Foundation Trust,24-Sep-18,HEALTHCARE - WEAR,Surgery,NHS LOGISTICS,1019108751,38.03,
Department of Health,Salisbury NHS Foundation Trust,24-Sep-18,TISSUES HAND TOWELS & TOILET PAPER,Surgery,NHS LOGISTICS,1019108751,2.19,
Department of Health,Salisbury NHS Foundation Trust,24-Sep-18,DRESSINGS - PRE STERILE,Surgery,NHS LOGISTICS,1019108751,0.59,
Department of Health,Salisbury NHS Foundation Trust,24-Sep-18,SURGICAL INSTRUMENTS: DISPOSABLE,Surgery,NHS LOGISTICS,1019108751,14.12,
Department of Health,Salisbury NHS Foundation Trust,24-Sep-18,LAB EQUIP-ANALYSERS,Clinical Support and Family Services,NHS LOGISTICS,1019108751,6.2,
Department of Health,Salisbury NHS Foundation Trust,24-Sep-18,LAB EQUIP-LABORATORY APPARATUS,Clinical Support and Family Services,NHS LOGISTICS,1019108751,1.26,
Department of Health,Salisbury NHS Foundation Trust,24-Sep-18,LAB EQUIP-LABORATORY APPARATUS,Clinical Support and Family Services,NHS LOGISTICS,1019108751,9.81,
Department of Health,Salisbury NHS Foundation Trust,24-Sep-18,LAB EQUIP-LABORATORY APPARATUS,Clinical Support and Family Services,NHS LOGISTICS,1019108751,18.72,
Department of Health,Salisbury NHS Foundation Trust,24-Sep-18,LAB EQUIP-LABORATORY APPARATUS,Clinical Support and Family Services,NHS LOGISTICS,1019108751,2.57,
Department of Health,Salisbury NHS Foundation Trust,24-Sep-18,LAB EQUIP-LABORATORY APPARATUS,Clinical Support and Family Services,NHS LOGISTICS,1019108751,1.26,
Department of Health,Salisbury NHS Foundation Trust,24-Sep-18,OTHER MEDICAL SUPPLIES,Clinical Support and Family Services,NHS LOGISTICS,1019108751,7.51,
Department of Health,Salisbury NHS Foundation Trust,24-Sep-18,MEDSURGCONS - OTHER,Clinical Support and Family Services,NHS LOGISTICS,1019108751,1.77,
Department of Health,Salisbury NHS Foundation Trust,24-Sep-18,TOILETRIES PERSONAL HYGIENE PRODUCTS,Critical care,NHS LOGISTICS,1019108751,1.23,
Department of Health,Salisbury NHS Foundation Trust,24-Sep-18,DRESSINGS - PRE STERILE,Critical care,NHS LOGISTICS,1019108751,0.59,
Department of Health,Salisbury NHS Foundation Trust,24-Sep-18,DRESSINGS - PRE STERILE,Critical care,NHS LOGISTICS,1019108751,0.43,
Department of Health,Salisbury NHS Foundation Trust,24-Sep-18,DRESSINGS - PRE STERILE,Critical care,NHS LOGISTICS,1019108751,1.13,
Department of Health,Salisbury NHS Foundation Trust,24-Sep-18,DRESSINGS - PRE STERILE,Critical care,NHS LOGISTICS,1019108751,0.79,
Department of Health,Salisbury NHS Foundation Trust,24-Sep-18,TISSUES HAND TOWELS & TOILET PAPER,Surgery,NHS LOGISTICS,1019108751,0.25,
Department of Health,Salisbury NHS Foundation Trust,24-Sep-18,NON DISPOSABLE THEATRE DRAPES WIPES,Clinical Support and Family Services,NHS LOGISTICS,1019108751,8.02,
Department of Health,Salisbury NHS Foundation Trust,24-Sep-18,DRESSINGS - PRE STERILE,Clinical Support and Family Services,NHS LOGISTICS,1019108751,33.77,
Department of Health,Salisbury NHS Foundation Trust,24-Sep-18,NON DISPOSABLE BED LINEN,Clinical Support and Family Services,NHS LOGISTICS,1019108751,1.5,
Department of Health,Salisbury NHS Foundation Trust,24-Sep-18,PATIENT APPLIANCES,Clinical Support and Family Services,NHS LOGISTICS,1019108751,1.73,
Department of Health,Salisbury NHS Foundation Trust,24-Sep-18,DRESSINGS - PRE STERILE,Critical care,NHS LOGISTICS,1019108751,0.97,
Department of Health,Salisbury NHS Foundation Trust,24-Sep-18,M & S EQUIPELECTEQUIPINST - OTHER,Critical care,NHS LOGISTICS,1019108751,1.68,
Department of Health,Salisbury NHS Foundation Trust,24-Sep-18,TOILETRIES PERSONAL HYGIENE PRODUCTS,Critical care,NHS LOGISTICS,1019108751,0.31,
Department of Health,Salisbury NHS Foundation Trust,24-Sep-18,TISSUES HAND TOWELS & TOILET PAPER,Critical care,NHS LOGISTICS,1019108751,1.52,
Department of Health,Salisbury NHS Foundation Trust,24-Sep-18,DRESSINGS - PRE STERILE,Critical care,NHS LOGISTICS,1019108751,1.74,
Department of Health,Salisbury NHS Foundation Trust,24-Sep-18,DRESSINGS - PRE STERILE,Critical care,NHS LOGISTICS,1019108751,2.33,
Department of Health,Salisbury NHS Foundation Trust,24-Sep-18,DRESSINGS - PRE STERILE,Critical care,NHS LOGISTICS,1019108751,2.41,
Department of Health,Salisbury NHS Foundation Trust,24-Sep-18,DRESSINGS - PRE STERILE,Critical care,NHS LOGISTICS,1019108751,0.37,
Department of Health,Salisbury NHS Foundation Trust,24-Sep-18,OTHER MEDICAL SUPPLIES,Critical care,NHS LOGISTICS,1019108751,1.64,
Department of Health,Salisbury NHS Foundation Trust,24-Sep-18,OTHER MEDICAL SUPPLIES,Critical care,NHS LOGISTICS,1019108751,1.13,
Department of Health,Salisbury NHS Foundation Trust,24-Sep-18,MEDSURGCONS - OTHER,Critical care,NHS LOGISTICS,1019108751,3.31,
Department of Health,Salisbury NHS Foundation Trust,24-Sep-18,MEDSURGCONS - OTHER,Critical care,NHS LOGISTICS,1019108751,0.78,
Department of Health,Salisbury NHS Foundation Trust,24-Sep-18,MEDSURGCONS - OTHER,Critical care,NHS LOGISTICS,1019108751,4.29,
Department of Health,Salisbury NHS Foundation Trust,24-Sep-18,TOILETRIES PERSONAL HYGIENE PRODUCTS,Critical care,NHS LOGISTICS,1019108751,0.83,
Department of Health,Salisbury NHS Foundation Trust,24-Sep-18,M & S EQUIPELECTEQUIPINST - OTHER,Critical care,NHS LOGISTICS,1019108751,0.32,
Department of Health,Salisbury NHS Foundation Trust,24-Sep-18,MEDSURGCONS - OTHER,Critical care,NHS LOGISTICS,1019108751,0.18,
Department of Health,Salisbury NHS Foundation Trust,24-Sep-18,NON DISPOSABLE BED LINEN,Critical care,NHS LOGISTICS,1019108751,3,
Department of Health,Salisbury NHS Foundation Trust,24-Sep-18,DISPOSABLE THEATRE DRAPES WIPES,Critical care,NHS LOGISTICS,1019108751,4.62,
Department of Health,Salisbury NHS Foundation Trust,24-Sep-18,MEDSURGCONS - OTHER,Surgery,NHS LOGISTICS,1019108751,17.42,
Department of Health,Salisbury NHS Foundation Trust,24-Sep-18,PATIENTS INCONTINENCE,Critical care,NHS LOGISTICS,1019108751,0.62,
Department of Health,Salisbury NHS Foundation Trust,24-Sep-18,OTHER MEDICAL SUPPLIES,Critical care,NHS LOGISTICS,1019108751,1.51,
Department of Health,Salisbury NHS Foundation Trust,24-Sep-18,DRESSINGS - PRE STERILE,Critical care,NHS LOGISTICS,1019108751,10.91,
Department of Health,Salisbury NHS Foundation Trust,24-Sep-18,DRESSINGS - PRE STERILE,Critical care,NHS LOGISTICS,1019108751,18,
Department of Health,Salisbury NHS Foundation Trust,24-Sep-18,MEDSURGCONS - OTHER,Critical care,NHS LOGISTICS,1019108751,0.35,
Department of Health,Salisbury NHS Foundation Trust,24-Sep-18,DISPOSABLE THEATRE DRAPES WIPES,Critical care,NHS LOGISTICS,1019108751,0.71,
Department of Health,Salisbury NHS Foundation Trust,24-Sep-18,TISSUES HAND TOWELS & TOILET PAPER,Clinical Support and Family Services,NHS LOGISTICS,1019108751,4.38,
Department of Health,Salisbury NHS Foundation Trust,24-Sep-18,ANAESTHETIC EQUIPMENT ACCESSORIES,Clinical Support and Family Services,NHS LOGISTICS,1019108751,0.13,
Department of Health,Salisbury NHS Foundation Trust,24-Sep-18,OTHER MEDICAL SUPPLIES,Clinical Support and Family Services,NHS LOGISTICS,1019108751,1.37,
Department of Health,Salisbury NHS Foundation Trust,24-Sep-18,DRESSINGS - PRE STERILE,Clinical Support and Family Services,NHS LOGISTICS,1019108751,0.54,
Department of Health,Salisbury NHS Foundation Trust,24-Sep-18,DRESSINGS - PRE STERILE,Clinical Support and Family Services,NHS LOGISTICS,1019108751,1.45,
Department of Health,Salisbury NHS Foundation Trust,24-Sep-18,DRESSINGS - PRE STERILE,Clinical Support and Family Services,NHS LOGISTICS,1019108751,0.88,
Department of Health,Salisbury NHS Foundation Trust,24-Sep-18,NON DISPOSABLE BED LINEN,Clinical Support and Family Services,NHS LOGISTICS,1019108751,3.55,
Department of Health,Salisbury NHS Foundation Trust,24-Sep-18,NON DISPOSABLE BED LINEN,Clinical Support and Family Services,NHS LOGISTICS,1019108751,1.5,
Department of Health,Salisbury NHS Foundation Trust,24-Sep-18,DISPOSABLE THEATRE DRAPES WIPES,Clinical Support and Family Services,NHS LOGISTICS,1019108751,0.71,
Department of Health,Salisbury NHS Foundation Trust,24-Sep-18,OTHER MEDICAL SUPPLIES,Medicine,NHS LOGISTICS,1019108751,10.55,
Department of Health,Salisbury NHS Foundation Trust,24-Sep-18,OTHER MEDICAL SUPPLIES,Medicine,NHS LOGISTICS,1019108751,104.27,
Department of Health,Salisbury NHS Foundation Trust,24-Sep-18,OTHER MEDICAL SUPPLIES,Medicine,NHS LOGISTICS,1019108751,31.11,
Department of Health,Salisbury NHS Foundation Trust,24-Sep-18,ELECTRICAL EQUIPMENT x,Medicine,NHS LOGISTICS,1019108751,0.77,
Department of Health,Salisbury NHS Foundation Trust,24-Sep-18,TISSUES HAND TOWELS & TOILET PAPER,Medicine,NHS LOGISTICS,1019108751,2.19,
Department of Health,Salisbury NHS Foundation Trust,24-Sep-18,TISSUES HAND TOWELS & TOILET PAPER,Medicine,NHS LOGISTICS,1019108751,0.08,
Department of Health,Salisbury NHS Foundation Trust,24-Sep-18,MEDSURGCONS - OTHER,Medicine,NHS LOGISTICS,1019108751,0.95,
Department of Health,Salisbury NHS Foundation Trust,24-Sep-18,DRESSINGS - PRE STERILE,Surgery,NHS LOGISTICS,1019108751,5.52,
Department of Health,Salisbury NHS Foundation Trust,24-Sep-18,DRESSINGS - PRE STERILE,Surgery,NHS LOGISTICS,1019108751,14.94,
Department of Health,Salisbury NHS Foundation Trust,24-Sep-18,BEVERAGES & AMBIENT FOOD,Surgery,NHS LOGISTICS,1019108751,11.47,
Department of Health,Salisbury NHS Foundation Trust,24-Sep-18,BEVERAGES & AMBIENT FOOD,Surgery,NHS LOGISTICS,1019108751,0.5,
Department of Health,Salisbury NHS Foundation Trust,24-Sep-18,BEVERAGES & AMBIENT FOOD,Surgery,NHS LOGISTICS,1019108751,2.82,
Department of Health,Salisbury NHS Foundation Trust,24-Sep-18,TOILETRIES PERSONAL HYGIENE PRODUCTS,Surgery,NHS LOGISTICS,1019108751,0.31,
Department of Health,Salisbury NHS Foundation Trust,24-Sep-18,DRESSINGS - PRE STERILE,Surgery,NHS LOGISTICS,1019108751,0.19,
Department of Health,Salisbury NHS Foundation Trust,24-Sep-18,TUBES,Clinical Support and Family Services,NHS LOGISTICS,1019108751,1.32,
Department of Health,Salisbury NHS Foundation Trust,24-Sep-18,DRESSINGS - PRE STERILE,Clinical Support and Family Services,NHS LOGISTICS,1019108751,5.6,
Department of Health,Salisbury NHS Foundation Trust,24-Sep-18,M & S EQUIPELECTEQUIPINST - OTHER,Clinical Support and Family Services,NHS LOGISTICS,1019108751,20.62,
Department of Health,Salisbury NHS Foundation Trust,24-Sep-18,MED SURG EQUIP REP MAINT CLEANING,Clinical Support and Family Services,NHS LOGISTICS,1019108751,21.86,
Department of Health,Salisbury NHS Foundation Trust,24-Sep-18,M & S EQUIPELECTEQUIPINST - OTHER,Clinical Support and Family Services,NHS LOGISTICS,1019108751,25.77,
Department of Health,Salisbury NHS Foundation Trust,24-Sep-18,TISSUES HAND TOWELS & TOILET PAPER,Clinical Support and Family Services,NHS LOGISTICS,1019108751,0.16,
Department of Health,Salisbury NHS Foundation Trust,24-Sep-18,OTHER MEDICAL SUPPLIES,Clinical Support and Family Services,NHS LOGISTICS,1019108751,1.37,
Department of Health,Salisbury NHS Foundation Trust,24-Sep-18,OTHER MEDICAL SUPPLIES,Clinical Support and Family Services,NHS LOGISTICS,1019108751,0.38,
Department of Health,Salisbury NHS Foundation Trust,24-Sep-18,DRESSINGS - PRE STERILE,Clinical Support and Family Services,NHS LOGISTICS,1019108751,0.91,
Department of Health,Salisbury NHS Foundation Trust,24-Sep-18,TUBES,Clinical Support and Family Services,NHS LOGISTICS,1019108751,0.72,
Department of Health,Salisbury NHS Foundation Trust,24-Sep-18,NON DISPOSABLE BED LINEN,Clinical Support and Family Services,NHS LOGISTICS,1019108751,1.5,
Department of Health,Salisbury NHS Foundation Trust,24-Sep-18,LAB EQUIP-LABORATORY APPARATUS,Surgery,NHS LOGISTICS,1019108751,3.69,
Department of Health,Salisbury NHS Foundation Trust,24-Sep-18,BAGS SACKS - OTHER,Critical care,NHS LOGISTICS,1019108751,0.6,
Department of Health,Salisbury NHS Foundation Trust,24-Sep-18,SURGICAL INSTRUMENTS: GENERAL,Critical care,NHS LOGISTICS,1019108751,1.46,
Department of Health,Salisbury NHS Foundation Trust,24-Sep-18,TOILETRIES PERSONAL HYGIENE PRODUCTS,Critical care,NHS LOGISTICS,1019108751,0.93,
Department of Health,Salisbury NHS Foundation Trust,24-Sep-18,TUBES,Critical care,NHS LOGISTICS,1019108751,2.74,
Department of Health,Salisbury NHS Foundation Trust,24-Sep-18,MEDSURGCONS - OTHER,Critical care,NHS LOGISTICS,1019108751,0.18,
Department of Health,Salisbury NHS Foundation Trust,24-Sep-18,NON DISPOSABLE BED LINEN,Critical care,NHS LOGISTICS,1019108751,0.75,
Department of Health,Salisbury NHS Foundation Trust,24-Sep-18,PATIENTS BABY WEAR,Medicine,NHS LOGISTICS,1019108751,9.64,
Department of Health,Salisbury NHS Foundation Trust,24-Sep-18,MEDSURGCONS - OTHER,Medicine,NHS LOGISTICS,1019108751,2.86,
Department of Health,Salisbury NHS Foundation Trust,24-Sep-18,NON DISPOSABLE BED LINEN,Medicine,NHS LOGISTICS,1019108751,5.25,
Department of Health,Salisbury NHS Foundation Trust,24-Sep-18,TOILETRIES PERSONAL HYGIENE PRODUCTS,Medicine,NHS LOGISTICS,1019108751,0.62,
Department of Health,Salisbury NHS Foundation Trust,24-Sep-18,PATIENTS INCONTINENCE,Medicine,NHS LOGISTICS,1019108751,1.2,
Department of Health,Salisbury NHS Foundation Trust,24-Sep-18,DRESSINGS - PRE STERILE,Medicine,NHS LOGISTICS,1019108751,0.37,
Department of Health,Salisbury NHS Foundation Trust,24-Sep-18,PATIENT APPLIANCES,Medicine,NHS LOGISTICS,1019108751,1.61,
Department of Health,Salisbury NHS Foundation Trust,24-Sep-18,MEDSURGCONS - OTHER,Medicine,NHS LOGISTICS,1019108751,0.97,
Department of Health,Salisbury NHS Foundation Trust,24-Sep-18,MEDSURGCONS - OTHER,Medicine,NHS LOGISTICS,1019108751,0.71,
Department of Health,Salisbury NHS Foundation Trust,24-Sep-18,NON DISPOSABLE BED LINEN,Medicine,NHS LOGISTICS,1019108751,0.75,
Department of Health,Salisbury NHS Foundation Trust,24-Sep-18,DISPOSABLE THEATRE DRAPES WIPES,Medicine,NHS LOGISTICS,1019108751,0.71,
Department of Health,Salisbury NHS Foundation Trust,24-Sep-18,DRESSINGS - PRE STERILE,Critical care,NHS LOGISTICS,1019108751,1.32,
Department of Health,Salisbury NHS Foundation Trust,24-Sep-18,DRESSINGS - PRE STERILE,Critical care,NHS LOGISTICS,1019108751,1.19,
Department of Health,Salisbury NHS Foundation Trust,24-Sep-18,DRESSINGS - PRE STERILE,Critical care,NHS LOGISTICS,1019108751,4.68,
Department of Health,Salisbury NHS Foundation Trust,24-Sep-18,DRESSINGS - PRE STERILE,Critical care,NHS LOGISTICS,1019108751,3.96,
Department of Health,Salisbury NHS Foundation Trust,24-Sep-18,DRESSINGS - PRE STERILE,Critical care,NHS LOGISTICS,1019108751,4.56,
Department of Health,Salisbury NHS Foundation Trust,24-Sep-18,DRESSINGS - PRE STERILE,Critical care,NHS LOGISTICS,1019108751,0.69,
Department of Health,Salisbury NHS Foundation Trust,24-Sep-18,DISPOSABLE THEATRE DRAPES WIPES,Critical care,NHS LOGISTICS,1019108751,0.13,
Department of Health,Salisbury NHS Foundation Trust,24-Sep-18,OTHER MEDICAL SUPPLIES,Surgery,NHS LOGISTICS,1019108751,0.75,
Department of Health,Salisbury NHS Foundation Trust,24-Sep-18,OTHER MEDICAL SUPPLIES,Surgery,NHS LOGISTICS,1019108751,2.26,
Department of Health,Salisbury NHS Foundation Trust,24-Sep-18,MEDSURGCONS - OTHER,Surgery,NHS LOGISTICS,1019108751,4,
Department of Health,Salisbury NHS Foundation Trust,24-Sep-18,OTHER MEDICAL SUPPLIES,Surgery,NHS LOGISTICS,1019108751,24.69,
Department of Health,Salisbury NHS Foundation Trust,24-Sep-18,DRESSINGS - PRE STERILE,Surgery,NHS LOGISTICS,1019108751,3.6,
Department of Health,Salisbury NHS Foundation Trust,24-Sep-18,MEDSURGCONS - OTHER,Surgery,NHS LOGISTICS,1019108751,20.36,
Department of Health,Salisbury NHS Foundation Trust,24-Sep-18,M & S EQUIPELECTEQUIPINST - OTHER,Surgery,NHS LOGISTICS,1019108751,25.74,
Department of Health,Salisbury NHS Foundation Trust,24-Sep-18,OTHER MEDICAL SUPPLIES,Surgery,NHS LOGISTICS,1019108751,3.77,
Department of Health,Salisbury NHS Foundation Trust,24-Sep-18,TOILETRIES PERSONAL HYGIENE PRODUCTS,Surgery,NHS LOGISTICS,1019108751,1.85,
Department of Health,Salisbury NHS Foundation Trust,24-Sep-18,DRESSINGS - PRE STERILE,Surgery,NHS LOGISTICS,1019108751,1.99,
Department of Health,Salisbury NHS Foundation Trust,24-Sep-18,DRUGS,Surgery,NHS LOGISTICS,1019108751,14.47,
Department of Health,Salisbury NHS Foundation Trust,24-Sep-18,DISPOSABLE THEATRE DRAPES WIPES,Surgery,NHS LOGISTICS,1019108751,7.49,
Department of Health,Salisbury NHS Foundation Trust,24-Sep-18,MEDSURGCONS-SUTURES,Surgery,NHS LOGISTICS,1019108751,13.12,
Department of Health,Salisbury NHS Foundation Trust,24-Sep-18,MEDSURGCONS-SUTURES,Surgery,NHS LOGISTICS,1019108751,5.26,
Department of Health,Salisbury NHS Foundation Trust,24-Sep-18,MEDSURGCONS-SUTURES,Surgery,NHS LOGISTICS,1019108751,5.35,
Department of Health,Salisbury NHS Foundation Trust,24-Sep-18,MEDSURGCONS-SUTURES,Surgery,NHS LOGISTICS,1019108751,10.53,
Department of Health,Salisbury NHS Foundation Trust,24-Sep-18,PAPER ITEMS GENERAL STATIONERY SUNDRIES,Clinical Support and Family Services,NHS LOGISTICS,1019108751,34.83,
Department of Health,Salisbury NHS Foundation Trust,24-Sep-18,OTHER MEDICAL SUPPLIES,Medicine,NHS LOGISTICS,1019108751,5.25,
Department of Health,Salisbury NHS Foundation Trust,24-Sep-18,OTHER MEDICAL SUPPLIES,Clinical Support and Family Services,NHS LOGISTICS,1019108751,54.6,
Department of Health,Salisbury NHS Foundation Trust,24-Sep-18,PAPER ITEMS GENERAL STATIONERY SUNDRIES,Medicine,NHS LOGISTICS,1019108751,6.71,
Department of Health,Salisbury NHS Foundation Trust,24-Sep-18,M & S EQUIPELECTEQUIPINST - OTHER,Clinical Support and Family Services,NHS LOGISTICS,1019108751,9.85,
Department of Health,Salisbury NHS Foundation Trust,24-Sep-18,OTHER MEDICAL SUPPLIES,Surgery,NHS LOGISTICS,1019108751,9.86,
Department of Health,Salisbury NHS Foundation Trust,24-Sep-18,M & S EQUIPELECTEQUIPINST - OTHER,Critical care,NHS LOGISTICS,1019108751,5.04,
Department of Health,Salisbury NHS Foundation Trust,24-Sep-18,MEDSURGCONS - OTHER,Critical care,NHS LOGISTICS,1019108751,4.29,
Department of Health,Salisbury NHS Foundation Trust,24-Sep-18,TISSUES HAND TOWELS & TOILET PAPER,Critical care,NHS LOGISTICS,1019108751,1.44,
Department of Health,Salisbury NHS Foundation Trust,24-Sep-18,NON DISPOSABLE BED LINEN,Critical care,NHS LOGISTICS,1019108751,6.64,
Department of Health,Salisbury NHS Foundation Trust,24-Sep-18,PATIENT APPLIANCES,Critical care,NHS LOGISTICS,1019108751,2.68,
Department of Health,Salisbury NHS Foundation Trust,24-Sep-18,DRESSINGS - PRE STERILE,Critical care,NHS LOGISTICS,1019108751,4.5,
Department of Health,Salisbury NHS Foundation Trust,24-Sep-18,DRESSINGS - PRE STERILE,Critical care,NHS LOGISTICS,1019108751,0.54,
Department of Health,Salisbury NHS Foundation Trust,24-Sep-18,DRESSINGS - PRE STERILE,Critical care,NHS LOGISTICS,1019108751,0.44,
Department of Health,Salisbury NHS Foundation Trust,24-Sep-18,MEDSURGCONS - OTHER,Critical care,NHS LOGISTICS,1019108751,1.43,
Department of Health,Salisbury NHS Foundation Trust,24-Sep-18,NON DISPOSABLE BED LINEN,Critical care,NHS LOGISTICS,1019108751,12,
Department of Health,Salisbury NHS Foundation Trust,24-Sep-18,PATIENT APPLIANCES,Critical care,NHS LOGISTICS,1019108751,25.9,
Department of Health,Salisbury NHS Foundation Trust,24-Sep-18,PATIENT APPLIANCES,Critical care,NHS LOGISTICS,1019108751,3.9,
Department of Health,Salisbury NHS Foundation Trust,24-Sep-18,DISPOSABLE THEATRE DRAPES WIPES,Critical care,NHS LOGISTICS,1019108751,5.68,
Department of Health,Salisbury NHS Foundation Trust,24-Sep-18,DRESSINGS - PRE STERILE,Critical care,NHS LOGISTICS,1019108751,0.37,
Department of Health,Salisbury NHS Foundation Trust,24-Sep-18,OTHER MEDICAL SUPPLIES,Critical care,NHS LOGISTICS,1019108751,0.38,
Department of Health,Salisbury NHS Foundation Trust,24-Sep-18,PATIENT APPLIANCES,Medicine,NHS LOGISTICS,1019108751,14.94,
Department of Health,Salisbury NHS Foundation Trust,24-Sep-18,LAB EQUIP-LABORATORY APPARATUS,Clinical Support and Family Services,NHS LOGISTICS,1019108751,18.84,
Department of Health,Salisbury NHS Foundation Trust,24-Sep-18,M & S EQUIPELECTEQUIPINST - OTHER,Clinical Support and Family Services,NHS LOGISTICS,1019108751,1.68,
Department of Health,Salisbury NHS Foundation Trust,24-Sep-18,TOILETRIES PERSONAL HYGIENE PRODUCTS,Clinical Support and Family Services,NHS LOGISTICS,1019108751,0.62,
Department of Health,Salisbury NHS Foundation Trust,24-Sep-18,TISSUES HAND TOWELS & TOILET PAPER,Clinical Support and Family Services,NHS LOGISTICS,1019108751,0.25,
Department of Health,Salisbury NHS Foundation Trust,24-Sep-18,M & S EQUIPELECTEQUIPINST - OTHER,Clinical Support and Family Services,NHS LOGISTICS,1019108751,1.35,
Department of Health,Salisbury NHS Foundation Trust,24-Sep-18,SURGICAL INSTRUMENTS: GENERAL,Clinical Support and Family Services,NHS LOGISTICS,1019108751,0.98,
Department of Health,Salisbury NHS Foundation Trust,24-Sep-18,DRESSINGS - PRE STERILE,Clinical Support and Family Services,NHS LOGISTICS,1019108751,0.54,
Department of Health,Salisbury NHS Foundation Trust,24-Sep-18,DRESSINGS - PRE STERILE,Clinical Support and Family Services,NHS LOGISTICS,1019108751,0.36,
Department of Health,Salisbury NHS Foundation Trust,24-Sep-18,MEDSURGCONS - OTHER,Clinical Support and Family Services,NHS LOGISTICS,1019108751,0.76,
Department of Health,Salisbury NHS Foundation Trust,24-Sep-18,MEDSURGCONS - OTHER,Clinical Support and Family Services,NHS LOGISTICS,1019108751,0.78,
Department of Health,Salisbury NHS Foundation Trust,24-Sep-18,BABY TEXTURE MODIFIED FOODS,Clinical Support and Family Services,NHS LOGISTICS,1019108751,3.33,
Department of Health,Salisbury NHS Foundation Trust,24-Sep-18,MEDSURGCONS - OTHER,Clinical Support and Family Services,NHS LOGISTICS,1019108751,1.43,
Department of Health,Salisbury NHS Foundation Trust,24-Sep-18,NON DISPOSABLE BED LINEN,Clinical Support and Family Services,NHS LOGISTICS,1019108751,2.25,
Department of Health,Salisbury NHS Foundation Trust,24-Sep-18,PATIENT APPLIANCES,Clinical Support and Family Services,NHS LOGISTICS,1019108751,0.86,
Department of Health,Salisbury NHS Foundation Trust,24-Sep-18,TISSUES HAND TOWELS & TOILET PAPER,Clinical Support and Family Services,NHS LOGISTICS,1019108751,2.19,
Department of Health,Salisbury NHS Foundation Trust,24-Sep-18,NON DISPOSABLE BED LINEN,Clinical Support and Family Services,NHS LOGISTICS,1019108751,0.75,
Department of Health,Salisbury NHS Foundation Trust,24-Sep-18,TOILETRIES PERSONAL HYGIENE PRODUCTS,Surgery,NHS LOGISTICS,1019108751,0.62,
Department of Health,Salisbury NHS Foundation Trust,24-Sep-18,TISSUES HAND TOWELS & TOILET PAPER,Surgery,NHS LOGISTICS,1019108751,0.51,
Department of Health,Salisbury NHS Foundation Trust,24-Sep-18,OTHER MEDICAL SUPPLIES,Surgery,NHS LOGISTICS,1019108751,1.88,
Department of Health,Salisbury NHS Foundation Trust,24-Sep-18,MEDSURGCONS - OTHER,Surgery,NHS LOGISTICS,1019108751,1.06,
Department of Health,Salisbury NHS Foundation Trust,24-Sep-18,DISPOSABLE THEATRE DRAPES WIPES,Surgery,NHS LOGISTICS,1019108751,0.71,
Department of Health,Salisbury NHS Foundation Trust,24-Sep-18,TISSUES HAND TOWELS & TOILET PAPER,Surgery,NHS LOGISTICS,1019108751,0.76,
Department of Health,Salisbury NHS Foundation Trust,24-Sep-18,MEDSURGCONS - OTHER,Surgery,NHS LOGISTICS,1019108751,7.1,
Department of Health,Salisbury NHS Foundation Trust,24-Sep-18,DRESSINGS - PRE STERILE,Surgery,NHS LOGISTICS,1019108751,0.18,
Department of Health,Salisbury NHS Foundation Trust,24-Sep-18,OTHER MEDICAL SUPPLIES,Directorate of Finance and Procurement,NHS LOGISTICS,1019108751,61.72,
Department of Health,Salisbury NHS Foundation Trust,24-Sep-18,TISSUES HAND TOWELS & TOILET PAPER,Surgery,NHS LOGISTICS,1019108751,0.76,
Department of Health,Salisbury NHS Foundation Trust,24-Sep-18,MEDSURGCONS - OTHER,Surgery,NHS LOGISTICS,1019108751,1.9,
Department of Health,Salisbury NHS Foundation Trust,24-Sep-18,PATIENT APPLIANCES,Clinical Support and Family Services,NHS LOGISTICS,1019108751,8.17,
Department of Health,Salisbury NHS Foundation Trust,24-Sep-18,TISSUES HAND TOWELS & TOILET PAPER,Clinical Support and Family Services,NHS LOGISTICS,1019108751,1.27,
Department of Health,Salisbury NHS Foundation Trust,24-Sep-18,LAB EQUIP-LABORATORY APPARATUS,Clinical Support and Family Services,NHS LOGISTICS,1019108751,0.63,
Department of Health,Salisbury NHS Foundation Trust,24-Sep-18,OTHER MEDICAL SUPPLIES,Clinical Support and Family Services,NHS LOGISTICS,1019108751,1.88,
Department of Health,Salisbury NHS Foundation Trust,24-Sep-18,DISPOSABLE THEATRE DRAPES WIPES,Clinical Support and Family Services,NHS LOGISTICS,1019108751,0.71,
Department of Health,Salisbury NHS Foundation Trust,24-Sep-18,BABY TEXTURE MODIFIED FOODS,Clinical Support and Family Services,NHS LOGISTICS,1019108751,2.11,
Department of Health,Salisbury NHS Foundation Trust,24-Sep-18,OTHER MEDICAL SUPPLIES,Clinical Support and Family Services,NHS LOGISTICS,1019108751,0.38,
Department of Health,Salisbury NHS Foundation Trust,24-Sep-18,MEDSURGCONS - OTHER,Clinical Support and Family Services,NHS LOGISTICS,1019108751,4.71,
Department of Health,Salisbury NHS Foundation Trust,24-Sep-18,TISSUES HAND TOWELS & TOILET PAPER,Clinical Support and Family Services,NHS LOGISTICS,1019108751,1.52,
Department of Health,Salisbury NHS Foundation Trust,24-Sep-18,OTHER MEDICAL SUPPLIES,Surgery,NHS LOGISTICS,1019108751,3.29,
Department of Health,Salisbury NHS Foundation Trust,24-Sep-18,TISSUES HAND TOWELS & TOILET PAPER,Surgery,NHS LOGISTICS,1019108751,0.25,
Department of Health,Salisbury NHS Foundation Trust,24-Sep-18,DRESSINGS - PRE STERILE,Surgery,NHS LOGISTICS,1019108751,1,
Department of Health,Salisbury NHS Foundation Trust,24-Sep-18,MEDSURGCONS - OTHER,Surgery,NHS LOGISTICS,1019108751,12.17,
Department of Health,Salisbury NHS Foundation Trust,24-Sep-18,DRESSINGS - PRE STERILE,Surgery,NHS LOGISTICS,1019108751,0.37,
Department of Health,Salisbury NHS Foundation Trust,24-Sep-18,MEDSURGCONS - OTHER,Surgery,NHS LOGISTICS,1019108751,4.28,
Department of Health,Salisbury NHS Foundation Trust,24-Sep-18,OTHER MEDICAL SUPPLIES,Surgery,NHS LOGISTICS,1019108751,1.13,
Department of Health,Salisbury NHS Foundation Trust,24-Sep-18,OTHER MEDICAL SUPPLIES,Surgery,NHS LOGISTICS,1019108751,4.16,
Department of Health,Salisbury NHS Foundation Trust,24-Sep-18,TOILETRIES PERSONAL HYGIENE PRODUCTS,Surgery,NHS LOGISTICS,1019108751,0.83,
Department of Health,Salisbury NHS Foundation Trust,24-Sep-18,MEDSURGCONS - OTHER,Surgery,NHS LOGISTICS,1019108751,9.57,
Department of Health,Salisbury NHS Foundation Trust,24-Sep-18,MEDSURGCONS - OTHER,Surgery,NHS LOGISTICS,1019108751,1.43,
Department of Health,Salisbury NHS Foundation Trust,24-Sep-18,NON DISPOSABLE BED LINEN,Surgery,NHS LOGISTICS,1019108751,11.25,
Department of Health,Salisbury NHS Foundation Trust,24-Sep-18,PATIENT APPLIANCES,Surgery,NHS LOGISTICS,1019108751,1.56,
Department of Health,Salisbury NHS Foundation Trust,24-Sep-18,MEDSURGCONS - OTHER,Surgery,NHS LOGISTICS,1019108751,1.07,
Department of Health,Salisbury NHS Foundation Trust,24-Sep-18,DISPOSABLE THEATRE DRAPES WIPES,Surgery,NHS LOGISTICS,1019108751,0.9,
Department of Health,Salisbury NHS Foundation Trust,24-Sep-18,DISPOSABLE THEATRE DRAPES WIPES,Surgery,NHS LOGISTICS,1019108751,0.71,
Department of Health,Salisbury NHS Foundation Trust,24-Sep-18,DRESSINGS - PRE STERILE,Surgery,NHS LOGISTICS,1019108751,0.97,
Department of Health,Salisbury NHS Foundation Trust,24-Sep-18,PATIENTS INCONTINENCE,Surgery,NHS LOGISTICS,1019108751,0.62,
Department of Health,Salisbury NHS Foundation Trust,24-Sep-18,OTHER MEDICAL SUPPLIES,Surgery,NHS LOGISTICS,1019108751,1.64,
Department of Health,Salisbury NHS Foundation Trust,24-Sep-18,OTHER MEDICAL SUPPLIES,Surgery,NHS LOGISTICS,1019108751,0.38,
Department of Health,Salisbury NHS Foundation Trust,24-Sep-18,MEDSURGCONS - OTHER,Surgery,NHS LOGISTICS,1019108751,4.29,
Department of Health,Salisbury NHS Foundation Trust,24-Sep-18,MEDSURGCONS - OTHER,Surgery,NHS LOGISTICS,1019108751,0.18,
Department of Health,Salisbury NHS Foundation Trust,24-Sep-18,NON DISPOSABLE BED LINEN,Surgery,NHS LOGISTICS,1019108751,2.25,
Department of Health,Salisbury NHS Foundation Trust,24-Sep-18,TUBES,Surgery,NHS LOGISTICS,1019108751,1.32,
Department of Health,Salisbury NHS Foundation Trust,24-Sep-18,NON DISPOSABLE BED LINEN,Surgery,NHS LOGISTICS,1019108751,15.95,
Department of Health,Salisbury NHS Foundation Trust,24-Sep-18,LAB EQUIP-LABORATORY APPARATUS,Clinical Support and Family Services,NHS LOGISTICS,1019108751,9.76,
Department of Health,Salisbury NHS Foundation Trust,24-Sep-18,DRESSINGS - PRE STERILE,Medicine,NHS LOGISTICS,1019108751,0.19,
Department of Health,Salisbury NHS Foundation Trust,24-Sep-18,OTHER MEDICAL SUPPLIES,Medicine,NHS LOGISTICS,1019108751,1.64,
Department of Health,Salisbury NHS Foundation Trust,24-Sep-18,OTHER MEDICAL SUPPLIES,Medicine,NHS LOGISTICS,1019108751,0.38,
Department of Health,Salisbury NHS Foundation Trust,24-Sep-18,PATIENT APPLIANCES,Medicine,NHS LOGISTICS,1019108751,1.76,
Department of Health,Salisbury NHS Foundation Trust,24-Sep-18,PATIENT APPLIANCES,Medicine,NHS LOGISTICS,1019108751,0.88,
Department of Health,Salisbury NHS Foundation Trust,24-Sep-18,MEDSURGCONS - OTHER,Medicine,NHS LOGISTICS,1019108751,0.78,
Department of Health,Salisbury NHS Foundation Trust,24-Sep-18,MEDSURGCONS - OTHER,Medicine,NHS LOGISTICS,1019108751,1.36,
Department of Health,Salisbury NHS Foundation Trust,24-Sep-18,MEDSURGCONS - OTHER,Medicine,NHS LOGISTICS,1019108751,2.86,
Department of Health,Salisbury NHS Foundation Trust,24-Sep-18,TISSUES HAND TOWELS & TOILET PAPER,Medicine,NHS LOGISTICS,1019108751,0.14,
Department of Health,Salisbury NHS Foundation Trust,24-Sep-18,MEDSURGCONS - OTHER,Medicine,NHS LOGISTICS,1019108751,0.18,
Department of Health,Salisbury NHS Foundation Trust,24-Sep-18,M & S EQUIPELECTEQUIPINST - OTHER,Medicine,NHS LOGISTICS,1019108751,1.68,
Department of Health,Salisbury NHS Foundation Trust,24-Sep-18,TISSUES HAND TOWELS & TOILET PAPER,Medicine,NHS LOGISTICS,1019108751,0.23,
Department of Health,Salisbury NHS Foundation Trust,24-Sep-18,PATIENTS INCONTINENCE,Medicine,NHS LOGISTICS,1019108751,0.62,
Department of Health,Salisbury NHS Foundation Trust,24-Sep-18,M & S EQUIPELECTEQUIPINST - OTHER,Medicine,NHS LOGISTICS,1019108751,0.53,
Department of Health,Salisbury NHS Foundation Trust,24-Sep-18,DRESSINGS - PRE STERILE,Surgery,NHS LOGISTICS,1019108751,0.5,
Department of Health,Salisbury NHS Foundation Trust,24-Sep-18,DRESSINGS - PRE STERILE,Surgery,NHS LOGISTICS,1019108751,0.37,
Department of Health,Salisbury NHS Foundation Trust,24-Sep-18,MEDSURGCONS - OTHER,Surgery,NHS LOGISTICS,1019108751,2.86,
Department of Health,Salisbury NHS Foundation Trust,24-Sep-18,TUBES,Surgery,NHS LOGISTICS,1019108751,1.44,
Department of Health,Salisbury NHS Foundation Trust,24-Sep-18,DRESSINGS - PRE STERILE,Surgery,NHS LOGISTICS,1019108751,2.49,
Department of Health,Salisbury NHS Foundation Trust,24-Sep-18,PATIENTS INCONTINENCE,Surgery,NHS LOGISTICS,1019108751,1.24,
Department of Health,Salisbury NHS Foundation Trust,24-Sep-18,M & S EQUIPELECTEQUIPINST - OTHER,Surgery,NHS LOGISTICS,1019108751,2.7,
Department of Health,Salisbury NHS Foundation Trust,24-Sep-18,TOILETRIES PERSONAL HYGIENE PRODUCTS,Surgery,NHS LOGISTICS,1019108751,0.83,
Department of Health,Salisbury NHS Foundation Trust,24-Sep-18,MEDSURGCONS - OTHER,Surgery,NHS LOGISTICS,1019108751,0.18,
Department of Health,Salisbury NHS Foundation Trust,24-Sep-18,OTHER MEDICAL SUPPLIES,Surgery,NHS LOGISTICS,1019108751,1.37,
Department of Health,Salisbury NHS Foundation Trust,24-Sep-18,DENTAL SURGERY SUNDRIES,Surgery,NHS LOGISTICS,1019108751,4.44,
Department of Health,Salisbury NHS Foundation Trust,24-Sep-18,DRESSINGS - PRE STERILE,Surgery,NHS LOGISTICS,1019108751,1.13,
Department of Health,Salisbury NHS Foundation Trust,24-Sep-18,TOILETRIES PERSONAL HYGIENE PRODUCTS,Surgery,NHS LOGISTICS,1019108751,18.21,
Department of Health,Salisbury NHS Foundation Trust,24-Sep-18,MEDSURGCONS-SUTURES,Surgery,NHS LOGISTICS,1019108751,17.22,
Department of Health,Salisbury NHS Foundation Trust,24-Sep-18,MEDSURGCONS-SUTURES,Surgery,NHS LOGISTICS,1019108751,13.12,
Department of Health,Salisbury NHS Foundation Trust,24-Sep-18,MEDSURGCONS-SUTURES,Surgery,NHS LOGISTICS,1019108751,5.26,
Department of Health,Salisbury NHS Foundation Trust,24-Sep-18,MEDSURGCONS-SUTURES,Surgery,NHS LOGISTICS,1019108751,5.35,
Department of Health,Salisbury NHS Foundation Trust,24-Sep-18,DRESSINGS - PRE STERILE,Surgery,NHS LOGISTICS,1019108751,0.25,
Department of Health,Salisbury NHS Foundation Trust,24-Sep-18,NON DISPOSABLE BED LINEN,Surgery,NHS LOGISTICS,1019108751,6,
Department of Health,Salisbury NHS Foundation Trust,24-Sep-18,FLAVOURINGS HERBS SPICES,Facilities Directorate,NHS LOGISTICS,1019108751,7.58,
Department of Health,Salisbury NHS Foundation Trust,24-Sep-18,BEVERAGES & AMBIENT FOOD,Facilities Directorate,NHS LOGISTICS,1019108751,2.37,
Department of Health,Salisbury NHS Foundation Trust,24-Sep-18,BEVERAGES & AMBIENT FOOD,Facilities Directorate,NHS LOGISTICS,1019108751,28.32,
Department of Health,Salisbury NHS Foundation Trust,24-Sep-18,BEVERAGES & AMBIENT FOOD,Facilities Directorate,NHS LOGISTICS,1019108751,0.47,
Department of Health,Salisbury NHS Foundation Trust,24-Sep-18,BEVERAGES & AMBIENT FOOD,Facilities Directorate,NHS LOGISTICS,1019108751,0.34,
Department of Health,Salisbury NHS Foundation Trust,24-Sep-18,BEVERAGES & AMBIENT FOOD,Facilities Directorate,NHS LOGISTICS,1019108751,1.2,
Department of Health,Salisbury NHS Foundation Trust,24-Sep-18,MEAT GAME POULTRY FISH,Facilities Directorate,NHS LOGISTICS,1019108751,10.37,
Department of Health,Salisbury NHS Foundation Trust,24-Sep-18,FRUIT & VEGETABLES,Facilities Directorate,NHS LOGISTICS,1019108751,10.48,
Department of Health,Salisbury NHS Foundation Trust,24-Sep-18,FRUIT & VEGETABLES,Facilities Directorate,NHS LOGISTICS,1019108751,0.62,
Department of Health,Salisbury NHS Foundation Trust,24-Sep-18,FRUIT & VEGETABLES,Facilities Directorate,NHS LOGISTICS,1019108751,5.99,
Department of Health,Salisbury NHS Foundation Trust,24-Sep-18,FRUIT & VEGETABLES,Facilities Directorate,NHS LOGISTICS,1019108751,2.64,
Department of Health,Salisbury NHS Foundation Trust,24-Sep-18,FRUIT & VEGETABLES,Facilities Directorate,NHS LOGISTICS,1019108751,0.96,
Department of Health,Salisbury NHS Foundation Trust,24-Sep-18,FRUIT & VEGETABLES,Facilities Directorate,NHS LOGISTICS,1019108751,8.11,
Department of Health,Salisbury NHS Foundation Trust,24-Sep-18,FRUIT & VEGETABLES,Facilities Directorate,NHS LOGISTICS,1019108751,3.62,
